Department Family,Entity,Date of Payment,Expense Type,Expense Area,Supplier,Voluntary & Community Sector,SME Class,Sole Trader,D-U-N-S Number,Transaction number,Narrative,Postal Code,Amount in Sterling,Grant?
Communities & Local Government,DCLG,01/11/2013,Agency Staff,Finance & Corporate Services,SQUARE ONE RESOURCES LTD,,Medium,,491410288,5106197857,interim Manager,EC2A 2AD,"2,858.82",
Communities & Local Government,DCLG,01/11/2013,Agency Staff,Finance & Corporate Services,SQUARE ONE RESOURCES LTD,,Medium,,491410288,5106198353,interim Manager,EC2A 2AD,"2,858.82",
Communities & Local Government,DCLG,01/11/2013,Current Grants to Non Profit Bodies,Localism,CFOA (NATIONAL RESILIANCE) LTD,,Small,,211512993,2100235464,CFOA CNR Assurance Work Grant 2013/14 2nd half,GL56 0RH,"1,757,114.00",Yes
Communities & Local Government,DCLG,01/11/2013,Current Grants to Non Profit Bodies,Neighbourhoods,BRITISH CHAMBERS OF COMMERCE,,,,,2100235723,Grant for organising the LEP Network,B60 4AL,"63,613.00",Yes
Communities & Local Government,DCLG,01/11/2013,Electricity,Finance & Corporate Services,EDF ENERGY 1 LIMITED,,Large,,230840469,5106198349,Rivergate Electricity 2013-14,PL3 5XQ,"10,217.15",
Communities & Local Government,DCLG,01/11/2013,Electricity,Finance & Corporate Services,EDF ENERGY 1 LIMITED,,Large,,230840469,5106198349,Rivergate Electricity 2013-14(0%),PL3 5XQ,8.10,
Communities & Local Government,DCLG,01/11/2013,Electricity,Finance & Corporate Services,EDF ENERGY 1 LIMITED,,Large,,230840469,5106198350,Rivergate Electricity 2013-14,PL3 5XQ,"12,056.09",
Communities & Local Government,DCLG,01/11/2013,Fees,Strategy and Private Office Group,MR S J HAY,,,,,2100235905,FEES + ERS ,,"5,158.98",
Communities & Local Government,DCLG,01/11/2013,IT - Service Contracts,Neighbourhoods,DEXTROUS WEB LTD,,Micro,,211267270,5106198344,Service contract for Planning Guidance website,N1 7NG,868.80,
Communities & Local Government,DCLG,01/11/2013,Publications,Finance & Corporate Services,SWETS INFORMATION SERVICES LTD,,Large,,216230292,5106198252,vat charges,OX14 1UQ,"1,842.00",
Communities & Local Government,DCLG,01/11/2013,Services provided by other Govt Orgs,Finance & Corporate Services,DEPT FOR EDUCATION,,Public Bodies,,237031612,5106198355,DCLG Security Vetting 2013-14,CF14 3UW,"1,773.59",Yes
Communities & Local Government,DCLG,01/11/2013,Software Licences,Finance & Corporate Services,HYPERTEC LTD,,Medium,,,5106198341,Inv251576 - R&W Gold x 2 - Assistive tec,RG17 0YX,644.52,
Communities & Local Government,DCLG,01/11/2013,Software Licences,Finance & Corporate Services,HYPERTEC LTD,,Medium,,,5106198342,Invoice 249484 - R&W and Inspiration,RG17 0YX,369.76,
Communities & Local Government,DCLG,01/11/2013,Training,Finance & Corporate Services,SURREY UNIVERSITY,,Large,,,5106198348,Bursary - MSc in Economics,GU2 7XH,"5,720.00",
Communities & Local Government,DCLG,01/11/2013,Work In Progress Pre-Cert 40373 Spend,Neighbourhoods,BISHOP GROSSETESTE UNIV COLL LINCOL,,Large,,,7600006570,Revenue Grant To Be Paid,LN1 3DY,"5,474.04",Yes
Communities & Local Government,DCLG,01/11/2013,Work In Progress Pre-Cert 40373 Spend,Neighbourhoods,GLOUCESTERSHIRE UNIVERSITY,,,,,7600006573,Revenue Grant To Be Paid,GL50 2RH,"48,987.86",Yes
Communities & Local Government,DCLG,01/11/2013,Work In Progress Pre-Cert 40373 Spend,Neighbourhoods,GRIMSBY INSTITUTE OF F&H EDUCATION,,Large,,,7600006350,Revenue Grant To Be Paid,DN34 5BQ,"9,424.42",Yes
Communities & Local Government,DCLG,01/11/2013,Work In Progress Pre-Cert 40373 Spend,Neighbourhoods,HERITAGE TRUST OF LINCOLNSHIRE,,Small,,,7600006576,Revenue Grant To Be Paid,NG34 9RW,"2,327.19",Yes
Communities & Local Government,DCLG,01/11/2013,Work In Progress Pre-Cert 40373 Spend,Neighbourhoods,LEICESTER UNIVERSITY,,Large,,,7600006572,Revenue Grant To Be Paid,LE1 7RH,"65,500.77",Yes
Communities & Local Government,DCLG,01/11/2013,Work In Progress Pre-Cert 40373 Spend,Neighbourhoods,LEICESTER UNIVERSITY,,Large,,,7600006577,Revenue Grant To Be Paid,LE1 7RH,"30,557.35",Yes
Communities & Local Government,DCLG,01/11/2013,Work In Progress Pre-Cert 40373 Spend,Neighbourhoods,NOTTINGHAM CITY COUNCIL,,Large,,,7600006571,Revenue Grant To Be Paid,NG2 3NG,"21,727.97",Yes
Communities & Local Government,DCLG,01/11/2013,Work In Progress Pre-Cert 40467 Spend,Neighbourhoods,HEADCAST LTD,,Micro,,,7600006575,Capital Grant To Be Paid,TR10 9TA,"14,922.78",Yes
Communities & Local Government,DCLG,01/11/2013,Work In Progress Pre-Cert 40467 Spend,Neighbourhoods,INDIANA DEVELOPMENTS LLP,,Micro,,,7600006574,Capital Grant To Be Paid,EX21 5PU,"283,850.77",Yes
Communities & Local Government,DCLG,04/11/2013,IT - Service Contracts,Localism,INFORMED SOLUTIONS LTD,,Small,,346179542,5106198362,Service Management October 13 to 28 Janu,WA14 4PA,"15,505.70",
Communities & Local Government,DCLG,04/11/2013,Legal Fees,Finance & Corporate Services,DLA PIPER UK LLP,,Large,,218124826,2100235948,Legal Advice,LS1 4BY,"-2,107.80",
Communities & Local Government,DCLG,04/11/2013,Legal Fees,Finance & Corporate Services,DLA PIPER UK LLP,,Large,,218124826,5106198370,Legal Advice,LS1 4BY,"2,107.80",
Communities & Local Government,DCLG,04/11/2013,Publications,Finance & Corporate Services,JONES YARRELL LEADENHALL LTD,,Large,,211522354,5106198381,Journals supply 2013-14,E3 3JH,330.44,
Communities & Local Government,DCLG,04/11/2013,Removals and Porterage,Finance & Corporate Services,AMARYLLIS LTD,,Medium,,672277696,5106198352,"JR434 Relocate 2 chairs,fit edging-desk",CM2 8TE,866.67,
Communities & Local Government,DCLG,04/11/2013,Security,Finance & Corporate Services,AMARYLLIS LTD,,Medium,,672277696,5106198352,JR434 Keys for pedestals,CM2 8TE,85.27,
Communities & Local Government,DCLG,04/11/2013,Training,Finance & Corporate Services,WHITEHALL & INDUSTRY GROUP,,Small,,385853957,5106198359,Enhancing Personal Impact & Presence,SW1H 9EX,450.00,
Communities & Local Government,DCLG,04/11/2013,Training,Finance & Corporate Services,WHITEHALL & INDUSTRY GROUP,,Small,,385853957,5106198359,Enhancing Personal Impact & Presence,SW1H 9EX,450.00,
Communities & Local Government,DCLG,04/11/2013,Training,Finance & Corporate Services,WHITEHALL & INDUSTRY GROUP,,Small,,385853957,5106198359,Enhancing Personal Impact & Presence,SW1H 9EX,450.00,
Communities & Local Government,DCLG,04/11/2013,Work In Progress Pre-Cert 40373 Spend,Neighbourhoods,ASTON UNIVERSITY,,Large,,,7600006578,Revenue Grant To Be Paid,B4 7ET,"50,562.79",Yes
Communities & Local Government,DCLG,04/11/2013,Work In Progress Pre-Cert 40373 Spend,Neighbourhoods,ASTON UNIVERSITY,,Large,,,7600006587,Revenue Grant To Be Paid,B4 7ET,"17,871.85",Yes
Communities & Local Government,DCLG,04/11/2013,Work In Progress Pre-Cert 40373 Spend,Neighbourhoods,ASTON UNIVERSITY,,Large,,,7600006592,Revenue Grant To Be Paid,B4 7ET,"43,261.68",Yes
Communities & Local Government,DCLG,04/11/2013,Work In Progress Pre-Cert 40373 Spend,Neighbourhoods,BIRMINGHAM CITY COUNCIL (NOT RATES),,Large,,,7600006581,Revenue Grant To Be Paid,B1 1BB,"10,377.99",Yes
Communities & Local Government,DCLG,04/11/2013,Work In Progress Pre-Cert 40373 Spend,Neighbourhoods,BIRMINGHAM CITY COUNCIL (NOT RATES),,Large,,,7600006582,Revenue Grant To Be Paid,B1 1BB,"12,732.59",Yes
Communities & Local Government,DCLG,04/11/2013,Work In Progress Pre-Cert 40373 Spend,Neighbourhoods,COVENTRY UNIVERSITY ENTERPRISES LTD,,Medium,,,7600006586,Revenue Grant To Be Paid,CV1 2TT,"59,050.84",Yes
Communities & Local Government,DCLG,04/11/2013,Work In Progress Pre-Cert 40373 Spend,Neighbourhoods,COVENTRY UNIVERSITY ENTERPRISES LTD,,Medium,,,7600006594,Revenue Grant To Be Paid,CV1 2TT,"26,296.21",Yes
Communities & Local Government,DCLG,04/11/2013,Work In Progress Pre-Cert 40373 Spend,Neighbourhoods,COVENTRY UNIVERSITY ENTERPRISES LTD,,Medium,,,7600006597,Revenue Grant To Be Paid,CV1 2TT,"32,907.37",Yes
Communities & Local Government,DCLG,04/11/2013,Work In Progress Pre-Cert 40373 Spend,Neighbourhoods,EAST ANGLIA UNIVERSITY,,,,,7600006598,Revenue Grant Clawback Offset,NR4 7TJ,"-25,393.20",Yes
Communities & Local Government,DCLG,04/11/2013,Work In Progress Pre-Cert 40373 Spend,Neighbourhoods,EAST ANGLIA UNIVERSITY,,,,,7600006598,Revenue Grant To Be Paid,NR4 7TJ,"123,712.68",Yes
Communities & Local Government,DCLG,04/11/2013,Work In Progress Pre-Cert 40373 Spend,Neighbourhoods,LEICESTER UNIVERSITY,,Large,,,7600006588,Revenue Grant To Be Paid,LE1 7RH,"21,343.42",Yes
Communities & Local Government,DCLG,04/11/2013,Work In Progress Pre-Cert 40373 Spend,Neighbourhoods,LINCONSHIRE COUNTY COUNCIL,,Large,,,7600006589,Revenue Grant To Be Paid,LN1 1YT,"48,541.43",Yes
Communities & Local Government,DCLG,04/11/2013,Work In Progress Pre-Cert 40373 Spend,Neighbourhoods,NORFOLK & WAVENEY ENTERPRISE SERV'S,,Medium,,,7600006590,Revenue Grant To Be Paid,NR2 1JH,"14,932.85",Yes
Communities & Local Government,DCLG,04/11/2013,Work In Progress Pre-Cert 40373 Spend,Neighbourhoods,NORTHAMPTON UNIVERSITY,,Large,,,7600006600,Revenue Grant Clawback Offset,NN2 7AL,"-35,158.37",Yes
Communities & Local Government,DCLG,04/11/2013,Work In Progress Pre-Cert 40373 Spend,Neighbourhoods,NORTHAMPTON UNIVERSITY,,Large,,,7600006600,Revenue Grant To Be Paid,NN2 7AL,"269,958.45",Yes
Communities & Local Government,DCLG,04/11/2013,Work In Progress Pre-Cert 40373 Spend,Neighbourhoods,SOLIHULL METROPOLITAN BC,,Large,,,7600006591,Revenue Grant To Be Paid,B91 3QS,"36,011.84",Yes
Communities & Local Government,DCLG,04/11/2013,Work In Progress Pre-Cert 40373 Spend,Neighbourhoods,UNIVERSITY OF WOLVERHAMPTON,,Large,,,7600006580,Revenue Grant To Be Paid,WV1 1SB,"45,595.83",Yes
Communities & Local Government,DCLG,04/11/2013,Work In Progress Pre-Cert 40373 Spend,Neighbourhoods,UNIVERSITY OF WOLVERHAMPTON,,Large,,,7600006583,Revenue Grant To Be Paid,WV1 1SB,"122,510.64",Yes
Communities & Local Government,DCLG,04/11/2013,Work In Progress Pre-Cert 40373 Spend,Neighbourhoods,WALSALL METROPOLITAN BC,,Large,,,7600006599,Revenue Grant To Be Paid,WS1 1TW,"2,257.47",Yes
Communities & Local Government,DCLG,04/11/2013,Work In Progress Pre-Cert 40373 Spend,Neighbourhoods,WEST MIDLANDS COUNCILS,,Large,,,7600006595,Revenue Grant To Be Paid,B1 2RA,"21,085.96",Yes
Communities & Local Government,DCLG,04/11/2013,Work In Progress Pre-Cert 40373 Spend,Neighbourhoods,WOLVERHAMPTON CITY COUNCIL,,Large,,,7600006593,Revenue Grant To Be Paid,WV1 1RL,"17,685.36",Yes
Communities & Local Government,DCLG,04/11/2013,Work In Progress Pre-Cert 40373 Spend,Neighbourhoods,WORCESTERSHIRE COUNTY COUNCIL,,Public Bodies,,,7600006579,Revenue Grant To Be Paid,WR5 2NP,"31,427.29",Yes
Communities & Local Government,DCLG,04/11/2013,Work In Progress Pre-Cert 40373 Spend,Neighbourhoods,WORCESTERSHIRE COUNTY COUNCIL,,Public Bodies,,,7600006585,Revenue Grant To Be Paid,WR5 2NP,"5,310.09",Yes
Communities & Local Government,DCLG,04/11/2013,Work In Progress Pre-Cert 40373 Spend,Neighbourhoods,WORCESTERSHIRE COUNTY COUNCIL,,Public Bodies,,,7600006596,Revenue Grant To Be Paid,WR5 2NP,"8,040.03",Yes
Communities & Local Government,DCLG,04/11/2013,Work In Progress Pre-Cert 40373 Spend,Neighbourhoods,WORKING LINKS,,,,,7600006584,Revenue Grant To Be Paid,WC2E 9JL,"35,925.76",Yes
Communities & Local Government,DCLG,04/11/2013,Work In Progress Pre-Cert 40467 Spend,Neighbourhoods,ASTON UNIVERSITY,,Large,,,7600006587,Capital Grant To Be Paid,B4 7ET,"270,113.26",Yes
Communities & Local Government,DCLG,04/11/2013,Work In Progress Pre-Cert 40467 Spend,Neighbourhoods,EAST ANGLIA UNIVERSITY,,,,,7600006598,Capital Grant Clawback Offset,NR4 7TJ,"-6,908.47",Yes
Communities & Local Government,DCLG,04/11/2013,Work In Progress Pre-Cert 40467 Spend,Neighbourhoods,EAST ANGLIA UNIVERSITY,,,,,7600006598,Capital Grant To Be Paid,NR4 7TJ,"128,486.83",Yes
Communities & Local Government,DCLG,04/11/2013,Work In Progress Pre-Cert 40467 Spend,Neighbourhoods,WOLVERHAMPTON CITY COUNCIL,,Large,,,7600006593,Capital Grant To Be Paid,WV1 1RL,"14,910.48",Yes
Communities & Local Government,DCLG,04/11/2013,Work In Progress Pre-Cert 40467 Spend,Neighbourhoods,WORCESTERSHIRE COUNTY COUNCIL,,Public Bodies,,,7600006579,Capital Grant To Be Paid,WR5 2NP,"13,927.58",Yes
Communities & Local Government,DCLG,05/11/2013,Advertising,Finance & Corporate Services,ENTER HERE LLP,,Medium,,672098311,5106198360,Fire Kills Marketing Campaign,EC1R 0JH,"1,920.00",
Communities & Local Government,DCLG,05/11/2013,Advertising,Finance & Corporate Services,ENTER HERE LLP,,Medium,,672098311,5106198363,Fire Kills Marketing Campaign,EC1R 0JH,"1,000.00",
Communities & Local Government,DCLG,05/11/2013,Advertising,Finance & Corporate Services,ENTER HERE LLP,,Medium,,672098311,5106198364,Fire Kills Marketing Campaign,EC1R 0JH,"7,500.00",
Communities & Local Government,DCLG,05/11/2013,Agency Staff,Finance & Corporate Services,ALLEN LANE FINANCIAL RECRUITMENT,,Medium,Yes,234388853,5106198393,Interim Manager (Qualified Accountant),,"3,796.08",
Communities & Local Government,DCLG,05/11/2013,Courier Services,Finance & Corporate Services,INTERSERVE (FACILITIES MANAGEMENT),,Large,,364834825,5106198397,Eland House Mail 13-14,BS32 4NH,"7,886.12",
Communities & Local Government,DCLG,05/11/2013,Courier Services,Finance & Corporate Services,INTERSERVE (FACILITIES MANAGEMENT),,Large,,364834825,5106198397,Rivergate Mail 13-14,BS32 4NH,"1,519.43",
Communities & Local Government,DCLG,05/11/2013,Current (non AEF) Grants to Local Authorities,Finance & Corporate Services,DURHAM & DARLINGTON FIRE RESCUE SER,,Public Bodies,,424872851,2100236017,Provide support to LA make the contractual Payment,DH1 1TW,"149,608.75",Yes
Communities & Local Government,DCLG,05/11/2013,Current (non AEF) Grants to Local Authorities,Finance & Corporate Services,GREATER LONDON AUTHORITY,,Large,,225353416,2100236016,Provide support to LA make the contractual Payment,SE10 1AP,"142,073.90",Yes
Communities & Local Government,DCLG,05/11/2013,Current (non AEF) Grants to Local Authorities,Finance & Corporate Services,GREATER MANCHESTER FIRE & RESCUE,,Public Bodies,,424873172,2100236015,Provide support to LA make the contractual Payment,M27 8US,"158,883.00",Yes
Communities & Local Government,DCLG,05/11/2013,Current Grants to Non Profit Bodies,Localism,BLACK TRAINING & ENTERPRISE GROUP,Yes,Small,,237255174,2100236020,Working with unemployed and socially disadvantaged young people,N1 9LH,"49,166.67",Yes
Communities & Local Government,DCLG,05/11/2013,Current Grants to Non Profit Bodies,Localism,FUTURE FOR YOUTH FOUNDATION,,Micro,,,2100236018,Organisation working to tackle youth enemployment,SE1 0EH,"12,500.00",Yes
Communities & Local Government,DCLG,05/11/2013,Domestic Services,Finance & Corporate Services,INTERSERVE (FACILITIES MANAGEMENT),,Large,,364834825,5106198397,Eland House Cleaning 13-14,BS32 4NH,"27,469.95",
Communities & Local Government,DCLG,05/11/2013,Domestic Services,Finance & Corporate Services,INTERSERVE (FACILITIES MANAGEMENT),,Large,,364834825,5106198397,TQH Cleaning 13-14,BS32 4NH,"9,032.52",
Communities & Local Government,DCLG,05/11/2013,Domestic Services,Finance & Corporate Services,INTERSERVE (FACILITIES MANAGEMENT),,Large,,364834825,5106198397,Hemel Hemp Cleaning 13-14,BS32 4NH,"2,185.31",
Communities & Local Government,DCLG,05/11/2013,Domestic Services,Finance & Corporate Services,INTERSERVE (FACILITIES MANAGEMENT),,Large,,364834825,5106198397,Rivergate Cleaning 13-14,BS32 4NH,"5,167.99",
Communities & Local Government,DCLG,05/11/2013,Domestic Services,Finance & Corporate Services,INTERSERVE (FACILITIES MANAGEMENT),,Large,,364834825,5106198397,Bridge House Cleaning 13-14,BS32 4NH,"3,029.46",
Communities & Local Government,DCLG,05/11/2013,Domestic Services,Finance & Corporate Services,INTERSERVE (FACILITIES MANAGEMENT),,Large,,364834825,5106198397,Citygate Cleaning 13-14,BS32 4NH,"3,046.41",
Communities & Local Government,DCLG,05/11/2013,Domestic Services,Finance & Corporate Services,INTERSERVE (FACILITIES MANAGEMENT),,Large,,364834825,5106198397,Queen Street Cleaning 13-14,BS32 4NH,"2,566.06",
Communities & Local Government,DCLG,05/11/2013,Domestic Services,Finance & Corporate Services,INTERSERVE (FACILITIES MANAGEMENT),,Large,,364834825,5106198397,5SPP Cleaning 13-14,BS32 4NH,"6,808.15",
Communities & Local Government,DCLG,05/11/2013,Domestic Services,Finance & Corporate Services,INTERSERVE (FACILITIES MANAGEMENT),,Large,,364834825,5106198397,Paradise Cleaning 13-14,BS32 4NH,"3,114.09",
Communities & Local Government,DCLG,05/11/2013,Facilities Management (ISD use only),Finance & Corporate Services,AMEY COMMUNITY LTD,,Large,,,5106198408,2013-14 Lateral Variable Maint,OX4 4DQ,541.17,
Communities & Local Government,DCLG,05/11/2013,Facilities Management (ISD use only),Finance & Corporate Services,INTERSERVE (FACILITIES MANAGEMENT),,Large,,364834825,5106198397,Eland House Off Site Management 13-14,BS32 4NH,"11,118.18",
Communities & Local Government,DCLG,05/11/2013,Facilities Management (ISD use only),Finance & Corporate Services,INTERSERVE (FACILITIES MANAGEMENT),,Large,,364834825,5106198397,Eland House Reception 13-14,BS32 4NH,"4,902.61",
Communities & Local Government,DCLG,05/11/2013,Facilities Management (ISD use only),Finance & Corporate Services,INTERSERVE (FACILITIES MANAGEMENT),,Large,,364834825,5106198397,TQH Off Site Management 13-14,BS32 4NH,"7,874.37",
Communities & Local Government,DCLG,05/11/2013,Facilities Management (ISD use only),Finance & Corporate Services,INTERSERVE (FACILITIES MANAGEMENT),,Large,,364834825,5106198397,TQH On Site Management 13-14,BS32 4NH,"3,181.32",
Communities & Local Government,DCLG,05/11/2013,Facilities Management (ISD use only),Finance & Corporate Services,INTERSERVE (FACILITIES MANAGEMENT),,Large,,364834825,5106198397,TQH Reception 13-14,BS32 4NH,"1,663.29",
Communities & Local Government,DCLG,05/11/2013,Facilities Management (ISD use only),Finance & Corporate Services,INTERSERVE (FACILITIES MANAGEMENT),,Large,,364834825,5106198397,Hemel Hemp Off Site Management 13-14,BS32 4NH,877.78,
Communities & Local Government,DCLG,05/11/2013,Facilities Management (ISD use only),Finance & Corporate Services,INTERSERVE (FACILITIES MANAGEMENT),,Large,,364834825,5106198397,Rivergate Off Site Management 13-14,BS32 4NH,"3,589.89",
Communities & Local Government,DCLG,05/11/2013,Facilities Management (ISD use only),Finance & Corporate Services,INTERSERVE (FACILITIES MANAGEMENT),,Large,,364834825,5106198397,Rivergate Reception 13-14,BS32 4NH,"1,653.74",
Communities & Local Government,DCLG,05/11/2013,Facilities Management (ISD use only),Finance & Corporate Services,INTERSERVE (FACILITIES MANAGEMENT),,Large,,364834825,5106198397,Bridge House Off Site Management 13-14,BS32 4NH,"1,733.80",
Communities & Local Government,DCLG,05/11/2013,Facilities Management (ISD use only),Finance & Corporate Services,INTERSERVE (FACILITIES MANAGEMENT),,Large,,364834825,5106198397,Bridge House On Site Management 13-14,BS32 4NH,"3,611.43",
Communities & Local Government,DCLG,05/11/2013,Facilities Management (ISD use only),Finance & Corporate Services,INTERSERVE (FACILITIES MANAGEMENT),,Large,,364834825,5106198397,Citygate Off Site Management 13-14,BS32 4NH,"2,946.06",
Communities & Local Government,DCLG,05/11/2013,Facilities Management (ISD use only),Finance & Corporate Services,INTERSERVE (FACILITIES MANAGEMENT),,Large,,364834825,5106198397,Citygate On Site Management 13-14,BS32 4NH,"2,493.40",
Communities & Local Government,DCLG,05/11/2013,Facilities Management (ISD use only),Finance & Corporate Services,INTERSERVE (FACILITIES MANAGEMENT),,Large,,364834825,5106198397,Citygate Reception 13-14,BS32 4NH,"1,589.29",
Communities & Local Government,DCLG,05/11/2013,Facilities Management (ISD use only),Finance & Corporate Services,INTERSERVE (FACILITIES MANAGEMENT),,Large,,364834825,5106198397,Queen Street Off Site Management 13-14,BS32 4NH,"1,596.05",
Communities & Local Government,DCLG,05/11/2013,Facilities Management (ISD use only),Finance & Corporate Services,INTERSERVE (FACILITIES MANAGEMENT),,Large,,364834825,5106198397,5SPP Off Site Management 13-14,BS32 4NH,"2,911.74",
Communities & Local Government,DCLG,05/11/2013,Facilities Management (ISD use only),Finance & Corporate Services,INTERSERVE (FACILITIES MANAGEMENT),,Large,,364834825,5106198397,5SPP On Site Management 13-14,BS32 4NH,"2,989.01",
Communities & Local Government,DCLG,05/11/2013,Facilities Management (ISD use only),Finance & Corporate Services,INTERSERVE (FACILITIES MANAGEMENT),,Large,,364834825,5106198397,5SPP Reception 13-14,BS32 4NH,"2,813.24",
Communities & Local Government,DCLG,05/11/2013,Facilities Management (ISD use only),Finance & Corporate Services,INTERSERVE (FACILITIES MANAGEMENT),,Large,,364834825,5106198397,Pardise Off Site Management 13-14,BS32 4NH,"1,673.87",
Communities & Local Government,DCLG,05/11/2013,Fixed Maintenance,Finance & Corporate Services,INTERSERVE (FACILITIES MANAGEMENT),,Large,,364834825,5106198396,Mast House Pass through costs,BS32 4NH,"6,973.20",
Communities & Local Government,DCLG,05/11/2013,Fixed Maintenance,Finance & Corporate Services,INTERSERVE (FACILITIES MANAGEMENT),,Large,,364834825,5106198397,Bridge House Grounds Maintenance 13-14,BS32 4NH,259.21,
Communities & Local Government,DCLG,05/11/2013,Fixed Maintenance,Finance & Corporate Services,INTERSERVE (FACILITIES MANAGEMENT),,Large,,364834825,5106198397,Queen Street Grounds Maintenance 13-14,BS32 4NH,13.16,
Communities & Local Government,DCLG,05/11/2013,Fixed Maintenance,Finance & Corporate Services,INTERSERVE (FACILITIES MANAGEMENT),,Large,,364834825,5106198397,Eland House Maintenance 13-14,BS32 4NH,"39,360.08",
Communities & Local Government,DCLG,05/11/2013,Fixed Maintenance,Finance & Corporate Services,INTERSERVE (FACILITIES MANAGEMENT),,Large,,364834825,5106198397,TQH Maintenance 13-14,BS32 4NH,"6,027.81",
Communities & Local Government,DCLG,05/11/2013,Fixed Maintenance,Finance & Corporate Services,INTERSERVE (FACILITIES MANAGEMENT),,Large,,364834825,5106198397,Hemel Hemp Maintenance 13-14,BS32 4NH,"5,359.95",
Communities & Local Government,DCLG,05/11/2013,Fixed Maintenance,Finance & Corporate Services,INTERSERVE (FACILITIES MANAGEMENT),,Large,,364834825,5106198397,Rivergate Maintenance 13-14,BS32 4NH,"3,840.85",
Communities & Local Government,DCLG,05/11/2013,Fixed Maintenance,Finance & Corporate Services,INTERSERVE (FACILITIES MANAGEMENT),,Large,,364834825,5106198397,Bridge House Maintenance 13-14,BS32 4NH,"4,987.45",
Communities & Local Government,DCLG,05/11/2013,Fixed Maintenance,Finance & Corporate Services,INTERSERVE (FACILITIES MANAGEMENT),,Large,,364834825,5106198397,Citygate Maintenance 13-14,BS32 4NH,"3,585.11",
Communities & Local Government,DCLG,05/11/2013,Fixed Maintenance,Finance & Corporate Services,INTERSERVE (FACILITIES MANAGEMENT),,Large,,364834825,5106198397,Queen Street Maintenance 13-14,BS32 4NH,"6,538.37",
Communities & Local Government,DCLG,05/11/2013,Fixed Maintenance,Finance & Corporate Services,INTERSERVE (FACILITIES MANAGEMENT),,Large,,364834825,5106198397,5SPP Maintenance 13-14,BS32 4NH,"10,796.00",
Communities & Local Government,DCLG,05/11/2013,Fixed Maintenance,Finance & Corporate Services,INTERSERVE (FACILITIES MANAGEMENT),,Large,,364834825,5106198397,Paradise Maintenance 13-14,BS32 4NH,"7,797.99",
Communities & Local Government,DCLG,05/11/2013,Photocopying,Finance & Corporate Services,INTERSERVE (FACILITIES MANAGEMENT),,Large,,364834825,5106198397,Eland House Reproduction 13-14,BS32 4NH,348.04,
Communities & Local Government,DCLG,05/11/2013,Photocopying,Finance & Corporate Services,INTERSERVE (FACILITIES MANAGEMENT),,Large,,364834825,5106198397,TQH Reproduction 13-14,BS32 4NH,"6,529.09",
Communities & Local Government,DCLG,05/11/2013,Photocopying,Finance & Corporate Services,INTERSERVE (FACILITIES MANAGEMENT),,Large,,364834825,5106198397,Hemel Hemp Reproduction 13-14,BS32 4NH,124.53,
Communities & Local Government,DCLG,05/11/2013,Photocopying,Finance & Corporate Services,INTERSERVE (FACILITIES MANAGEMENT),,Large,,364834825,5106198397,5SPP Reproduction 13-14,BS32 4NH,348.04,
Communities & Local Government,DCLG,05/11/2013,Professional services,Finance & Corporate Services,DAWES & FRASER CONSULTING LTD,,Small,,,5106198372,Contract and Technical support for IPC C,SE20 7BS,"5,688.00",
Communities & Local Government,DCLG,05/11/2013,Publications,Finance & Corporate Services,JONES YARRELL LEADENHALL LTD,,Large,,211522354,5106198379,Newspaper and Journal susbcription,E3 3JH,583.86,
Communities & Local Government,DCLG,05/11/2013,Security,Finance & Corporate Services,INTERSERVE (FACILITIES MANAGEMENT),,Large,,364834825,5106198397,Eland House Security 13-14,BS32 4NH,"19,761.04",
Communities & Local Government,DCLG,05/11/2013,Security,Finance & Corporate Services,INTERSERVE (FACILITIES MANAGEMENT),,Large,,364834825,5106198397,TQH Security 13-14,BS32 4NH,"9,286.58",
Communities & Local Government,DCLG,05/11/2013,Security,Finance & Corporate Services,INTERSERVE (FACILITIES MANAGEMENT),,Large,,364834825,5106198397,Hemel Hemp Security 13-14,BS32 4NH,"4,209.91",
Communities & Local Government,DCLG,05/11/2013,Security,Finance & Corporate Services,INTERSERVE (FACILITIES MANAGEMENT),,Large,,364834825,5106198397,Rivergate Security 13-14,BS32 4NH,"6,764.25",
Communities & Local Government,DCLG,05/11/2013,Security,Finance & Corporate Services,INTERSERVE (FACILITIES MANAGEMENT),,Large,,364834825,5106198397,Bridge House Security 13-14,BS32 4NH,"3,164.70",
Communities & Local Government,DCLG,05/11/2013,Security,Finance & Corporate Services,INTERSERVE (FACILITIES MANAGEMENT),,Large,,364834825,5106198397,Citygate Security 13-14,BS32 4NH,"2,510.43",
Communities & Local Government,DCLG,05/11/2013,Security,Finance & Corporate Services,INTERSERVE (FACILITIES MANAGEMENT),,Large,,364834825,5106198397,Queen Street Security 13-14,BS32 4NH,"2,321.36",
Communities & Local Government,DCLG,05/11/2013,Security,Finance & Corporate Services,INTERSERVE (FACILITIES MANAGEMENT),,Large,,364834825,5106198397,5SPP Security 13-14,BS32 4NH,"4,747.65",
Communities & Local Government,DCLG,05/11/2013,Security,Finance & Corporate Services,INTERSERVE (FACILITIES MANAGEMENT),,Large,,364834825,5106198397,Paradise Security 13-14,BS32 4NH,"2,114.36",
Communities & Local Government,DCLG,05/11/2013,Software Licences,Finance & Corporate Services,SOLOGICAL SOLUTIONS,,Micro,,215557790,5106198375,Software Licence Renewal GIS247,NG12 2NJ,"6,834.30",
Communities & Local Government,DCLG,05/11/2013,Telecoms equipment (non-capitalised),Finance & Corporate Services,DAMOVO UK LTD,,Large,,221481042,5106198399,Telephone Support Services,RH12 4QP,"13,871.22",
Communities & Local Government,DCLG,05/11/2013,Variable Maintenance < 15k,Finance & Corporate Services,INTERSERVE (FACILITIES MANAGEMENT),,Large,,364834825,5106198396,Eland House Pass Through Costs,BS32 4NH,"2,132.47",
Communities & Local Government,DCLG,05/11/2013,Variable Maintenance < 15k,Finance & Corporate Services,INTERSERVE (FACILITIES MANAGEMENT),,Large,,364834825,5106198396,Eland House Variable Maintenance Costs,BS32 4NH,"5,642.20",
Communities & Local Government,DCLG,05/11/2013,Variable Maintenance < 15k,Finance & Corporate Services,INTERSERVE (FACILITIES MANAGEMENT),,Large,,364834825,5106198396,Temple Quay Pass Through Costs,BS32 4NH,"2,667.79",
Communities & Local Government,DCLG,05/11/2013,Variable Maintenance < 15k,Finance & Corporate Services,INTERSERVE (FACILITIES MANAGEMENT),,Large,,364834825,5106198396,Temple Quay Variable Maintenance Costs,BS32 4NH,"2,009.25",
Communities & Local Government,DCLG,05/11/2013,Variable Maintenance < 15k,Finance & Corporate Services,INTERSERVE (FACILITIES MANAGEMENT),,Large,,364834825,5106198396,Hemel Pass Through Costs,BS32 4NH,97.42,
Communities & Local Government,DCLG,05/11/2013,Variable Maintenance < 15k,Finance & Corporate Services,INTERSERVE (FACILITIES MANAGEMENT),,Large,,364834825,5106198396,Bridge House Variable Maintenace Costs,BS32 4NH,171.49,
Communities & Local Government,DCLG,05/11/2013,Variable Maintenance < 15k,Finance & Corporate Services,INTERSERVE (FACILITIES MANAGEMENT),,Large,,364834825,5106198396,Citygate Variable Maintenance Costs,BS32 4NH,976.64,
Communities & Local Government,DCLG,05/11/2013,Variable Maintenance < 15k,Finance & Corporate Services,INTERSERVE (FACILITIES MANAGEMENT),,Large,,364834825,5106198396,Queen Street Variable Maintenance Costs,BS32 4NH,191.16,
Communities & Local Government,DCLG,05/11/2013,Variable Maintenance < 15k,Finance & Corporate Services,INTERSERVE (FACILITIES MANAGEMENT),,Large,,364834825,5106198396,5 SPP  Pass Through Costs,BS32 4NH,"3,105.45",
Communities & Local Government,DCLG,05/11/2013,Variable Maintenance < 15k,Finance & Corporate Services,INTERSERVE (FACILITIES MANAGEMENT),,Large,,364834825,5106198396,5 SPP  Variable Maintenance Costs,BS32 4NH,"2,953.98",
Communities & Local Government,DCLG,05/11/2013,Variable Maintenance < 15k,Finance & Corporate Services,INTERSERVE (FACILITIES MANAGEMENT),,Large,,364834825,5106198396,Paradise Circ Variable Maintenance Cost,BS32 4NH,428.96,
Communities & Local Government,DCLG,05/11/2013,Vehicle hire,Strategy and Private Office Group,GOVERNMENT CAR & DESPATCH AGENCY,,Public Bodies,,,5106198383,Car of SOS -Duty Car 1- LT206,SW8 5AX,614.15,
Communities & Local Government,DCLG,05/11/2013,Vehicle Maintenance,Localism,BABCOCK CRITICAL SERVICES LTD,,Large,,641006945,5106198395,Fixed cost 13/14,NG15 0DR,"543,813.19",
Communities & Local Government,DCLG,05/11/2013,Waste Disposal and pest control,Finance & Corporate Services,INTERSERVE (FACILITIES MANAGEMENT),,Large,,364834825,5106198397,Eland House Waste 13-14,BS32 4NH,"3,244.34",
Communities & Local Government,DCLG,05/11/2013,Waste Disposal and pest control,Finance & Corporate Services,INTERSERVE (FACILITIES MANAGEMENT),,Large,,364834825,5106198397,TQH Waste 13-14,BS32 4NH,"1,301.76",
Communities & Local Government,DCLG,05/11/2013,Waste Disposal and pest control,Finance & Corporate Services,INTERSERVE (FACILITIES MANAGEMENT),,Large,,364834825,5106198397,Hemel Hemp Waste 13-14,BS32 4NH,267.48,
Communities & Local Government,DCLG,05/11/2013,Waste Disposal and pest control,Finance & Corporate Services,INTERSERVE (FACILITIES MANAGEMENT),,Large,,364834825,5106198397,Rivergate Waste 13-14,BS32 4NH,917.18,
Communities & Local Government,DCLG,05/11/2013,Waste Disposal and pest control,Finance & Corporate Services,INTERSERVE (FACILITIES MANAGEMENT),,Large,,364834825,5106198397,Bridge House Waste 13-14,BS32 4NH,516.30,
Communities & Local Government,DCLG,05/11/2013,Waste Disposal and pest control,Finance & Corporate Services,INTERSERVE (FACILITIES MANAGEMENT),,Large,,364834825,5106198397,Citygate Waste 13-14,BS32 4NH,868.70,
Communities & Local Government,DCLG,05/11/2013,Waste Disposal and pest control,Finance & Corporate Services,INTERSERVE (FACILITIES MANAGEMENT),,Large,,364834825,5106198397,Queen Street Waste 13-14,BS32 4NH,476.25,
Communities & Local Government,DCLG,05/11/2013,Waste Disposal and pest control,Finance & Corporate Services,INTERSERVE (FACILITIES MANAGEMENT),,Large,,364834825,5106198397,5SPP Waste 13-14,BS32 4NH,858.73,
Communities & Local Government,DCLG,05/11/2013,Waste Disposal and pest control,Finance & Corporate Services,INTERSERVE (FACILITIES MANAGEMENT),,Large,,364834825,5106198397,Paradise Waste 13-14,BS32 4NH,498.92,
Communities & Local Government,DCLG,05/11/2013,Water,Finance & Corporate Services,BRISTOL WATER,,Large,,770124543,5106198394,2013/14 Rivergate Annual Water Charge,BS48 1WA,"1,179.23",
Communities & Local Government,DCLG,05/11/2013,Work In Progress Pre-Cert 40373 Spend,Neighbourhoods,BIOCITY NOTTINGHAM LIMITED,,Small,,,7600006607,Revenue Grant To Be Paid,NG1 1GF,847.21,Yes
Communities & Local Government,DCLG,05/11/2013,Work In Progress Pre-Cert 40373 Spend,Neighbourhoods,CHESTERFIELD BOROUGH COUNCIL,,Large,,,7600006603,Revenue Grant To Be Paid,S40 1LP,"6,214.77",Yes
Communities & Local Government,DCLG,05/11/2013,Work In Progress Pre-Cert 40373 Spend,Neighbourhoods,LINCONSHIRE COUNTY COUNCIL,,Large,,,7600006601,Revenue Grant To Be Paid,LN1 1YT,"4,430.51",Yes
Communities & Local Government,DCLG,05/11/2013,Work In Progress Pre-Cert 40373 Spend,Neighbourhoods,MANSFIELD DISTRICT COUNCIL,,Large,,,7600006606,Revenue Grant To Be Paid,NG19 7BH,"37,194.25",Yes
Communities & Local Government,DCLG,05/11/2013,Work In Progress Pre-Cert 40373 Spend,Neighbourhoods,NBV (NOTTINGHAM BUSINESS VENTURE),,Small,,,7600006609,Revenue Grant To Be Paid,NG7 7FN,"1,323.08",Yes
Communities & Local Government,DCLG,05/11/2013,Work In Progress Pre-Cert 40373 Spend,Neighbourhoods,NORTHAMPTON UNIVERSITY,,Large,,,7600006604,Revenue Grant To Be Paid,NN2 7AL,"52,800.78",Yes
Communities & Local Government,DCLG,05/11/2013,Work In Progress Pre-Cert 40373 Spend,Neighbourhoods,NORTHAMPTON UNIVERSITY,,Large,,,7600006608,Revenue Grant To Be Paid,NN2 7AL,"35,287.83",Yes
Communities & Local Government,DCLG,05/11/2013,Work In Progress Pre-Cert 40467 Spend,Neighbourhoods,LINCONSHIRE COUNTY COUNCIL,,Large,,,7600006602,Capital Grant To Be Paid,LN1 1YT,"83,755.14",Yes
Communities & Local Government,DCLG,05/11/2013,Work In Progress Pre-Cert 40467 Spend,Neighbourhoods,LINCONSHIRE COUNTY COUNCIL,,Large,,,7600006605,Capital Grant To Be Paid,LN1 1YT,"88,720.40",Yes
Communities & Local Government,DCLG,05/11/2013,Work In Progress Pre-Cert 40467 Spend,Neighbourhoods,MANSFIELD DISTRICT COUNCIL,,Large,,,7600006606,Capital Grant To Be Paid,NG19 7BH,"10,623.50",Yes
Communities & Local Government,DCLG,05/11/2013,Work In Progress Pre-Cert 40467 Spend,Neighbourhoods,NBV (NOTTINGHAM BUSINESS VENTURE),,Small,,,7600006609,Capital Grant To Be Paid,NG7 7FN,"739,118.18",Yes
Communities & Local Government,DCLG,06/11/2013,Agency Staff,Finance & Corporate Services,CAPITA RESOURCING LTD,,Large,,215581006,5106198417,Interim Manager,SL6 1DP,505.49,
Communities & Local Government,DCLG,06/11/2013,Agency Staff,Finance & Corporate Services,CAPITA RESOURCING LTD,,Large,,215581006,5106198428,CPD 0492030 Capita MSP,SL6 1DP,"2,702.88",
Communities & Local Government,DCLG,06/11/2013,Agency Staff,Finance & Corporate Services,CAPITA RESOURCING LTD,,Large,,215581006,5106198434,Interim Manager,SL6 1DP,"2,862.00",
Communities & Local Government,DCLG,06/11/2013,Agency Staff,Finance & Corporate Services,CAPITA RESOURCING LTD,,Large,,215581006,5106198435,Extension of Interim Mgr,SL6 1DP,"3,960.00",
Communities & Local Government,DCLG,06/11/2013,Agency Staff,Finance & Corporate Services,CAPITA RESOURCING LTD,,Large,,215581006,5106198438,CPD 0492030 Capita MSP,SL6 1DP,637.50,
Communities & Local Government,DCLG,06/11/2013,Agency Staff,Finance & Corporate Services,SBS GROUP (UK) LTD,,Large,,423935241,5106198466,SAP Technical Support,EC1N 8UA,"9,928.80",
Communities & Local Government,DCLG,06/11/2013,Agency Staff,Localism,CAPITA RESOURCING LTD,,Large,,215581006,5106198430,Expenses,SL6 1DP,52.80,
Communities & Local Government,DCLG,06/11/2013,Agency Staff,Localism,CAPITA RESOURCING LTD,,Large,,215581006,5106198430,Interim Manager (Ext 01),SL6 1DP,"4,193.45",
Communities & Local Government,DCLG,06/11/2013,Agency Staff,Neighbourhoods,CAPITA RESOURCING LTD,,Large,,215581006,5106198414,Interim Manager (Expenses),SL6 1DP,214.20,
Communities & Local Government,DCLG,06/11/2013,Agency Staff,Neighbourhoods,CAPITA RESOURCING LTD,,Large,,215581006,5106198414,Interim Manager - Ext 01,SL6 1DP,"1,912.50",
Communities & Local Government,DCLG,06/11/2013,Agency Staff,Neighbourhoods,CAPITA RESOURCING LTD,,Large,,215581006,5106198417,Expenses INTERREG 2Seas-Territorial Faci,SL6 1DP,57.30,
Communities & Local Government,DCLG,06/11/2013,Agency Staff,Neighbourhoods,CAPITA RESOURCING LTD,,Large,,215581006,5106198420,Contractor ERDF,SL6 1DP,"1,020.00",
Communities & Local Government,DCLG,06/11/2013,Agency Staff,Neighbourhoods,CAPITA RESOURCING LTD,,Large,,215581006,5106198420,Contractor ERDF Expenses,SL6 1DP,69.42,
Communities & Local Government,DCLG,06/11/2013,Agency Staff,Neighbourhoods,CAPITA RESOURCING LTD,,Large,,215581006,5106198423,Interim Manager - Ext 01,SL6 1DP,"1,794.72",
Communities & Local Government,DCLG,06/11/2013,Agency Staff,Neighbourhoods,CAPITA RESOURCING LTD,,Large,,215581006,5106198424,Interim Manager,SL6 1DP,"2,035.20",
Communities & Local Government,DCLG,06/11/2013,Agency Staff,Neighbourhoods,CAPITA RESOURCING LTD,,Large,,215581006,5106198425,Interim Manager - Ext 01,SL6 1DP,"1,242.00",
Communities & Local Government,DCLG,06/11/2013,Agency Staff,Neighbourhoods,CAPITA RESOURCING LTD,,Large,,215581006,5106198426,Interim Manager - Ext 01,SL6 1DP,"2,018.28",
Communities & Local Government,DCLG,06/11/2013,Agency Staff,Neighbourhoods,CAPITA RESOURCING LTD,,Large,,215581006,5106198431,Expenses,SL6 1DP,4.43,
Communities & Local Government,DCLG,06/11/2013,Agency Staff,Neighbourhoods,CAPITA RESOURCING LTD,,Large,,215581006,5106198431,Interim Manager - Ext 01,SL6 1DP,"1,912.50",
Communities & Local Government,DCLG,06/11/2013,Agency Staff,Neighbourhoods,CAPITA RESOURCING LTD,,Large,,215581006,5106198432,Interim Manager - Ext 01,SL6 1DP,"2,375.94",
Communities & Local Government,DCLG,06/11/2013,Agency Staff,Neighbourhoods,CAPITA RESOURCING LTD,,Large,,215581006,5106198433,CPD 0492030 Capita MSP,SL6 1DP,"1,749.00",
Communities & Local Government,DCLG,06/11/2013,Agency Staff,Neighbourhoods,CAPITA RESOURCING LTD,,Large,,215581006,5106198437,Expenses,SL6 1DP,15.24,
Communities & Local Government,DCLG,06/11/2013,Agency Staff,Neighbourhoods,CAPITA RESOURCING LTD,,Large,,215581006,5106198437,Interim Manager - Ext 01,SL6 1DP,"1,552.50",
Communities & Local Government,DCLG,06/11/2013,Agency Staff,Neighbourhoods,CAPITA RESOURCING LTD,,Large,,215581006,5106198460,CPD 0492030 Capita MSP,SL6 1DP,"1,399.20",
Communities & Local Government,DCLG,06/11/2013,Agency Staff,Neighbourhoods,CAPITA RESOURCING LTD,,Large,,215581006,5106198460,Expenses,SL6 1DP,41.40,
Communities & Local Government,DCLG,06/11/2013,Fees,Strategy and Private Office Group,MRS S V WELLER,,,,,2100236061,FEES + ERS,,"10,848.42",
Communities & Local Government,DCLG,06/11/2013,Grant in Aid to NDPBs (non budget),Localism,VALUATION TRIBUNAL SERVICE,,,,211218366,2100236021,,E1 1DU,"476,501.00",Yes
Communities & Local Government,DCLG,06/11/2013,Grant in Aid to NDPBs (non budget),Neighbourhoods,HOMES & COMMUNITIES AGENCY,,Public Bodies,,215576860,2100236057,HCA Grant in Aid for November 2013,NE11 0NA,"156,503,137.00",Yes
Communities & Local Government,DCLG,06/11/2013,IT - Service Contracts,Finance & Corporate Services,AMOR BUSINESS TECHNOLOGY SOLUTIONS,,Large,,399909910,5106198454,Database ERDF (development service),PA4 9LH,"5,136.00",
Communities & Local Government,DCLG,06/11/2013,IT - Service Contracts,Finance & Corporate Services,AMOR BUSINESS TECHNOLOGY SOLUTIONS,,Large,,399909910,5106198455,Database ERDF (development service),PA4 9LH,"5,661.00",
Communities & Local Government,DCLG,06/11/2013,IT - Service Contracts,Finance & Corporate Services,AMOR BUSINESS TECHNOLOGY SOLUTIONS,,Large,,399909910,5106198473,Database ERDF (development service),PA4 9LH,"5,661.00",
Communities & Local Government,DCLG,06/11/2013,IT - Service Contracts,Finance & Corporate Services,SWIRRL IT LIMITED,,Micro,,211074993,5106198459,DCLG Open Data Strategy,FK7 7WT,"12,150.00",
Communities & Local Government,DCLG,06/11/2013,IT - Service Contracts,Localism,INFORMED SOLUTIONS LTD,,Small,,346179542,5106198409,GPSManaged Servcies to 28 January 2014,WA14 4PA,"33,712.26",
Communities & Local Government,DCLG,06/11/2013,NNDR Outturn Adjustments,Localism,BEXLEY LB,,,,,5000236876,Grant Payable by Exchequer,DA8 1TL,"26,909.00",Yes
Communities & Local Government,DCLG,06/11/2013,NNDR Outturn Adjustments,Localism,BOLSOVER DC,,Large,,235516523,5000236877,Grant Payable by Exchequer,S44 6NF,"65,057.00",Yes
Communities & Local Government,DCLG,06/11/2013,NNDR Outturn Adjustments,Localism,COLCHESTER BC,,,,,5000236879,Grant Payable by Exchequer,CO3 3WG,752.00,Yes
Communities & Local Government,DCLG,06/11/2013,NNDR Outturn Adjustments,Localism,ENFIELD LB,,,,,5000236882,Grant Payable by Exchequer,EN1 3XF,"936,783.00",Yes
Communities & Local Government,DCLG,06/11/2013,NNDR Outturn Adjustments,Localism,HARBOROUGH DC,,Public Bodies,,232611962,5000236883,Grant Payable by Exchequer,LE16 7AG,"1,525,093.00",Yes
Communities & Local Government,DCLG,06/11/2013,NNDR Outturn Adjustments,Localism,IPSWICH BC,,,,226861391,5000236885,Grant Payable by Exchequer,IP1 2EE,"910,560.00",Yes
Communities & Local Government,DCLG,06/11/2013,NNDR Outturn Adjustments,Localism,ISLES OF SCILLY COUNCIL,,,,214146040,5000236886,Grant Payable by Exchequer,TR21 0LW,"45,314.00",Yes
Communities & Local Government,DCLG,06/11/2013,NNDR Outturn Adjustments,Localism,KNOWSLEY MBC,,,,,5000236889,Grant Payable by Exchequer,L36 9YZ,"4,883.00",Yes
Communities & Local Government,DCLG,06/11/2013,NNDR Outturn Adjustments,Localism,LEWES DC,,,,213090082,5000236890,Grant Payable by Exchequer,BN7 2DQ,"146,063.00",Yes
Communities & Local Government,DCLG,06/11/2013,NNDR Outturn Adjustments,Localism,MID SUFFOLK DC,,,,219028933,5000236893,Grant Payable by Exchequer,IP6 8DL,"425,885.00",Yes
Communities & Local Government,DCLG,06/11/2013,NNDR Outturn Adjustments,Localism,NORTH TYNESIDE MBC,,,,,5000236896,Grant Payable by Exchequer,NE30 1AE,"1,126,218.00",Yes
Communities & Local Government,DCLG,06/11/2013,NNDR Outturn Adjustments,Localism,NORTH WARWICKSHIRE BC,,,,,5000236897,Grant Payable by Exchequer,CV9 1DE,"42,524.00",Yes
Communities & Local Government,DCLG,06/11/2013,NNDR Outturn Adjustments,Localism,PRESTON BC,,,,232604124,5000236899,Grant Payable by Exchequer,PR1 2RL,"250,042.00",Yes
Communities & Local Government,DCLG,06/11/2013,NNDR Outturn Adjustments,Localism,RUSHCLIFFE BOROUGH COUNCIL,,,,,5000236900,Grant Payable by Exchequer,NG2 5FE,"1,378,413.00",Yes
Communities & Local Government,DCLG,06/11/2013,NNDR Outturn Adjustments,Localism,SALFORD CITY CNCL,,,,213180073,5000236902,Grant Payable by Exchequer,M27 5AW,"275,577.00",Yes
Communities & Local Government,DCLG,06/11/2013,NNDR Outturn Adjustments,Localism,SOUTH BUCKS DC,,,,221356624,5000236904,Grant Payable by Exchequer,UB9 4LH,821.00,Yes
Communities & Local Government,DCLG,06/11/2013,NNDR Outturn Adjustments,Localism,SOUTH STAFFORDSHIRE DC,,,,210305155,5000236906,Grant Payable by Exchequer,WV8 1PX,359.00,Yes
Communities & Local Government,DCLG,06/11/2013,NNDR Outturn Adjustments,Localism,STEVENAGE BC,,,,236440186,5000236909,Grant Payable by Exchequer,SG1 1HN,"310,305.00",Yes
Communities & Local Government,DCLG,06/11/2013,NNDR Outturn Adjustments,Localism,STRATFORD ON AVON DC,,,,227473881,5000236910,Grant Payable by Exchequer,CV37 6HX,"10,992.00",Yes
Communities & Local Government,DCLG,06/11/2013,NNDR Outturn Adjustments,Localism,SUTTON LB,,,,,5000236911,Grant Payable by Exchequer,SM1 1EA,"108,000.00",Yes
Communities & Local Government,DCLG,06/11/2013,NNDR Outturn Adjustments,Localism,SWINDON BC,,,,458639697,5000236912,Grant Payable by Exchequer,SN1 2JH,"1,752,887.00",Yes
Communities & Local Government,DCLG,06/11/2013,NNDR Outturn Adjustments,Localism,TANDRIDGE DC,,,,225481076,5000236913,Grant Payable by Exchequer,RH8 0BT,"72,479.00",Yes
Communities & Local Government,DCLG,06/11/2013,NNDR Outturn Adjustments,Localism,WALSALL MBC,,,,212515585,5000236916,Grant Payable by Exchequer,WS1 1TW,"211,835.00",Yes
Communities & Local Government,DCLG,06/11/2013,NNDR Outturn Adjustments,Localism,WEALDEN DC,,,,232688697,5000236918,Grant Payable by Exchequer,BN22 9LN,"680,551.00",Yes
Communities & Local Government,DCLG,06/11/2013,NNDR Outturn Adjustments,Localism,WELWYN HATFIELD COUNCIL,,,,210360804,5000236919,Grant Payable by Exchequer,AL8 6AE,"10,428.00",Yes
Communities & Local Government,DCLG,06/11/2013,NNDR Outturn Adjustments,Localism,WEST DORSET DC,,,,424295350,5000236920,Grant Payable by Exchequer,DT1 1UZ,"62,748.00",Yes
Communities & Local Government,DCLG,06/11/2013,NNDR Outturn Adjustments,Localism,WEYMOUTH & PORTLAND BC,,,,735157948,5000236921,Grant Payable by Exchequer,DT4 8TA,"127,472.00",Yes
Communities & Local Government,DCLG,06/11/2013,Online Database Information Retrieval,Finance & Corporate Services,DOW JONES REUTERS BUS INTERACTIVE L,,Large,,221036630,5106198415,Factiva 2013-14,E1W 1AZ,954.00,
Communities & Local Government,DCLG,06/11/2013,Professional services,Localism,VALUATION OFFICE AGENCY,,Public Bodies,,215253886,2100236019,,W1B 5BU,"12,000,000.00",
Communities & Local Government,DCLG,06/11/2013,Publicity,Finance & Corporate Services,GORKANA GROUP LTD,,Large,,210089876,5106198467,Press Cuttings,EC1Y 8QE,"3,255.70",
Communities & Local Government,DCLG,06/11/2013,Steady State Service Provision,Finance & Corporate Services,CGI IT UK LIMITED,,Large,,239881618,5106198471,Payroll Services & Licences   13/14,CF31 9AP,"7,484.69",
Communities & Local Government,DCLG,06/11/2013,Steady State Service Provision,Localism,FIRE & RISK MANAGEMENT SUPPORT SERV,,Medium,,516076168,5106198369,Support of FSEC Toolkit,SK8 5JA,"5,985.00",
Communities & Local Government,DCLG,06/11/2013,Training,Finance & Corporate Services,INSTITUTE OF INTERNAL AUDITORS,,Small,,292669967,5106198440,IIA/FAP Annual Conference 2013,SW4 7BX,210.00,
Communities & Local Government,DCLG,06/11/2013,Training,Finance & Corporate Services,LEARNING TREE INTERNATIONAL LTD,,Large,,396922072,5106198422,SQL Server(R) 2008 Introduction Course,KT22 7FG,"1,840.00",
Communities & Local Government,DCLG,06/11/2013,Travel and Subsistence Account,Strategy and Private Office Group,MRS S V WELLER,,,,,2100236061,EXPENSES,,425.70,
Communities & Local Government,DCLG,06/11/2013,Work In Progress Pre-Cert 40373 Spend,Neighbourhoods,BUSINESS & ENTERPRISE COMMERCIAL,,Medium,,,7600006615,Revenue Grant Clawback Offset,SR7 7TT,"-28,065.68",Yes
Communities & Local Government,DCLG,06/11/2013,Work In Progress Pre-Cert 40373 Spend,Neighbourhoods,BUSINESS & ENTERPRISE COMMERCIAL,,Medium,,,7600006615,Revenue Grant To Be Paid,SR7 7TT,"424,210.13",Yes
Communities & Local Government,DCLG,06/11/2013,Work In Progress Pre-Cert 40373 Spend,Neighbourhoods,DE MONTFORT UNIVERSITY,,Large,,,7600006610,Revenue Grant To Be Paid,LE1 9BH,"6,092.80",Yes
Communities & Local Government,DCLG,06/11/2013,Work In Progress Pre-Cert 40373 Spend,Neighbourhoods,DE MONTFORT UNIVERSITY,,Large,,,7600006611,Revenue Grant To Be Paid,LE1 9BH,"4,189.96",Yes
Communities & Local Government,DCLG,06/11/2013,Work In Progress Pre-Cert 40373 Spend,Neighbourhoods,DERBY CITY COUNCIL,,Large,,,7600006612,Revenue Grant To Be Paid,DE1 2FE,"3,815.02",Yes
Communities & Local Government,DCLG,06/11/2013,Work In Progress Pre-Cert 40373 Spend,Neighbourhoods,EAST MIDLANDS BUSINESS LTD,,Medium,,,7600006613,Revenue Grant To Be Paid,LE19 1RJ,"22,928.09",Yes
Communities & Local Government,DCLG,06/11/2013,Work In Progress Pre-Cert 40373 Spend,Neighbourhoods,NBV (NOTTINGHAM BUSINESS VENTURE),,Small,,,7600006617,Revenue Grant To Be Paid,NG7 7FN,"57,631.64",Yes
Communities & Local Government,DCLG,06/11/2013,Work In Progress Pre-Cert 40467 Spend,Neighbourhoods,DERBY CITY COUNCIL,,Large,,,7600006612,Capital Grant To Be Paid,DE1 2FE,"7,052.00",Yes
Communities & Local Government,DCLG,06/11/2013,Work In Progress Pre-Cert 40467 Spend,Neighbourhoods,LINCONSHIRE COUNTY COUNCIL,,Large,,,7600006616,Capital Grant To Be Paid,LN1 1YT,"202,285.21",Yes
Communities & Local Government,DCLG,07/11/2013,Advertising,Finance & Corporate Services,INFORMED COMMUNICATIONS LTD,,Small,,,5106198498,Camden Digital Prog - Sponsorship Partner,BN43 5RH,"10,000.00",
Communities & Local Government,DCLG,07/11/2013,Agency Staff,Finance & Corporate Services,REED EMPLOYMENT SERVICES,,Large,,292193364,5106198507,PA admin = AWR,SW20 0BA,846.95,
Communities & Local Government,DCLG,07/11/2013,Agency Staff,Neighbourhoods,REED EMPLOYMENT SERVICES,,Large,,292193364,5106198506,POLICY SUPPORT FOR HGAH,SW20 0BA,"1,075.96",
Communities & Local Government,DCLG,07/11/2013,Conferences and Meeting Facilities,Neighbourhoods,HEARTLANDS TRUST,,Small,,,5106198497,Convergence LMC & Annual Event 30/10/13,TR15 3QY,369.00,
Communities & Local Government,DCLG,07/11/2013,Electricity,Finance & Corporate Services,EDF ENERGY 1 LIMITED,,Large,,230840469,5106198504,EoE Waterbeach Electricity 2013-14,PL3 5XQ,"2,920.26",
Communities & Local Government,DCLG,07/11/2013,Electricity,Finance & Corporate Services,EDF ENERGY 1 LIMITED,,Large,,230840469,5106198505,Y&H Wakefeild Electricity 2013-14,PL3 5XQ,"2,526.56",
Communities & Local Government,DCLG,07/11/2013,Electricity,Finance & Corporate Services,EDF ENERGY 1 LIMITED,,Large,,230840469,5106198508,WM Wolverhampton Electricity - 2013-14,PL3 5XQ,"2,339.29",
Communities & Local Government,DCLG,07/11/2013,Electricity,Finance & Corporate Services,EDF ENERGY 1 LIMITED,,Large,,230840469,5106198509,SW Taunton Electricity 2013-14,PL3 5XQ,"2,707.15",
Communities & Local Government,DCLG,07/11/2013,Electronic Data Storage,Finance & Corporate Services,TNT UK LIMITED,,Large,,,5106198526,Visions electronic storage,BL10 9GR,"3,750.44",
Communities & Local Government,DCLG,07/11/2013,IT - Service Contracts,Finance & Corporate Services,PROCSERVE SHARED SERVICES LTD,,Large,,739834971,5106198479,32mths subscriptions Jul 2011-Jul 2014,SW1W 9SR,"6,176.64",
Communities & Local Government,DCLG,07/11/2013,IT - Service Contracts,Finance & Corporate Services,QUO IMUS LTD,,Small,,458934304,5106198482,Benchmarking services,SE1 7SJ,"11,250.00",
Communities & Local Government,DCLG,07/11/2013,Office Supplies,Localism,BANNER BUSINESS SUPPLIES LTD,,Large,,236638362,5106198489,DELWEEKLY Banner A4 Recycled Copier Pape,NR3 1PD,394.92,
Communities & Local Government,DCLG,07/11/2013,Office Supplies,Localism,BANNER BUSINESS SUPPLIES LTD,,Large,,236638362,5106198489,DELWEEKLY Banner Easy Tear Adhesive Tape,NR3 1PD,0.86,
Communities & Local Government,DCLG,07/11/2013,Office Supplies,Localism,BANNER BUSINESS SUPPLIES LTD,,Large,,236638362,5106198489,DELWEEKLY Banner Medium Glue Stick 20g,NR3 1PD,1.92,
Communities & Local Government,DCLG,07/11/2013,Office Supplies,Localism,BANNER BUSINESS SUPPLIES LTD,,Large,,236638362,5106198489,DELWEEKLY Banner Polypropylene Adhesive,NR3 1PD,2.34,
Communities & Local Government,DCLG,07/11/2013,Office Supplies,Neighbourhoods,BANNER BUSINESS SUPPLIES LTD,,Large,,236638362,5106198495,DELWEEKLY Banner A4 Recycled Copier Pape,NR3 1PD,263.28,
Communities & Local Government,DCLG,07/11/2013,Physical Storage,Finance & Corporate Services,TNT UK LIMITED,,Large,,,2100236090,Offsite Records Storage FYR 13/14,BL10 9GR,"-3,750.44",
Communities & Local Government,DCLG,07/11/2013,Physical Storage,Finance & Corporate Services,TNT UK LIMITED,,Large,,,5106198511,Offsite Records Storage FYR 13/14,BL10 9GR,"3,750.44",
Communities & Local Government,DCLG,07/11/2013,Professional services,Finance & Corporate Services,E C HARRIS LLP,,Large,,,5106198443,PAMU Com - TFM Service Manager Support,N1 9AB,"6,720.00",
Communities & Local Government,DCLG,07/11/2013,Professional services,Finance & Corporate Services,E C HARRIS LLP,,Large,,,5106198447,PAMU Com 23 - additional resource - FE,N1 9AB,"-11,856.00",
Communities & Local Government,DCLG,07/11/2013,Professional services,Neighbourhoods,E C HARRIS LLP,,Large,,,5106198027,ERDF East Midlands QS Services,N1 9AB,"2,826.00",
Communities & Local Government,DCLG,07/11/2013,Professional services,Neighbourhoods,E C HARRIS LLP,,Large,,,5106198244,ERDF East Midlands QS Services,N1 9AB,"2,334.00",
Communities & Local Government,DCLG,07/11/2013,Professional services,Neighbourhoods,E C HARRIS LLP,,Large,,,5106198246,ERDF East Midlands QS Services,N1 9AB,"2,580.00",
Communities & Local Government,DCLG,07/11/2013,Professional services,Neighbourhoods,E C HARRIS LLP,,Large,,,5106198474,ERDF East Midlands QS Services,N1 9AB,"2,334.00",
Communities & Local Government,DCLG,07/11/2013,Professional services,Neighbourhoods,E C HARRIS LLP,,Large,,,5106198518,ERDF East Midlands QS Services,N1 9AB,"2,334.00",
Communities & Local Government,DCLG,07/11/2013,Professional services,Neighbourhoods,E C HARRIS LLP,,Large,,,5106198519,ERDF East Midlands QS Services,N1 9AB,"2,826.00",
Communities & Local Government,DCLG,07/11/2013,Professional services,Neighbourhoods,E C HARRIS LLP,,Large,,,5106198520,ERDF East Midlands QS Services,N1 9AB,"2,334.00",
Communities & Local Government,DCLG,07/11/2013,Publicity,Finance & Corporate Services,PRESS ASSOCIATION,,Large,,217191704,5106198475,Press Association - NewsWire service,DN14 7YH,"1,240.93",
Communities & Local Government,DCLG,07/11/2013,Steady State Service Provision,Localism,MOTT MACDONALD LTD,,Large,,225250398,5106198512,Core Service Period 1 (Jun 13-May 15),BN1 4FY,"55,872.92",
Communities & Local Government,DCLG,07/11/2013,Steady State Service Provision,Neighbourhoods,TRIBAL EDUCATION-MANAGEMENT FEES,,Large,,221445146,5106198358,Year 2 Grant Administration,BS2 8RR,"7,446.00",
Communities & Local Government,DCLG,07/11/2013,Telecoms equipment (non-capitalised),Finance & Corporate Services,DAMOVO UK LTD,,Large,,221481042,5106198527,Broadband Lines,RH12 4QP,59.93,
Communities & Local Government,DCLG,07/11/2013,Telecoms equipment (non-capitalised),Finance & Corporate Services,DAMOVO UK LTD,,Large,,221481042,5106198527,MPLS Circuit Charges 9 sites,RH12 4QP,"7,773.53",
Communities & Local Government,DCLG,07/11/2013,Telecoms equipment (non-capitalised),Finance & Corporate Services,DAMOVO UK LTD,,Large,,221481042,5106198527,Regional Hubs Mont5hly recurring and Lin,RH12 4QP,"12,246.18",
Communities & Local Government,DCLG,07/11/2013,Telecoms equipment (non-capitalised),Finance & Corporate Services,DAMOVO UK LTD,,Large,,221481042,5106198527,Telephone Calls,RH12 4QP,484.75,
Communities & Local Government,DCLG,07/11/2013,Telecoms equipment (non-capitalised),Finance & Corporate Services,DAMOVO UK LTD,,Large,,221481042,5106198527,Telephone Support Services,RH12 4QP,"91,352.17",
Communities & Local Government,DCLG,07/11/2013,Training,Finance & Corporate Services,FOCUS ON TRAINING,,Micro,,349052014,5106198476,User Acceptance Training - KIT Division,PE4 6NA,"2,495.00",
Communities & Local Government,DCLG,07/11/2013,Training,Finance & Corporate Services,WHITEHALL & INDUSTRY GROUP,,Small,,385853957,5106198522,Enhancing Personal Impact & Presence,SW1H 9EX,450.00,
Communities & Local Government,DCLG,07/11/2013,Travel and Subsistence Account,Finance & Corporate Services,REDFERN TRAVEL LIMITED,,Small,,213089972,2100236088,MONTHLY CONSOLIDATED TRAVEL COSTS OCTOBER 2013,BD1 3AZ,999.38,
Communities & Local Government,DCLG,07/11/2013,Travel and Subsistence Account,Finance & Corporate Services,REDFERN TRAVEL LIMITED,,Small,,213089972,2100236088,MONTHLY CONSOLIDATED TRAVEL COSTS OCTOBER 2013,BD1 3AZ,764.12,
Communities & Local Government,DCLG,07/11/2013,Travel and Subsistence Account,Finance & Corporate Services,REDFERN TRAVEL LIMITED,,Small,,213089972,2100236088,MONTHLY CONSOLIDATED TRAVEL COSTS OCTOBER 2013,BD1 3AZ,"7,983.33",
Communities & Local Government,DCLG,07/11/2013,Travel and Subsistence Account,Finance & Corporate Services,REDFERN TRAVEL LIMITED,,Small,,213089972,2100236088,MONTHLY CONSOLIDATED TRAVEL COSTS OCTOBER 2013,BD1 3AZ,708.49,
Communities & Local Government,DCLG,07/11/2013,Travel and Subsistence Account,Finance & Corporate Services,REDFERN TRAVEL LIMITED,,Small,,213089972,2100236088,MONTHLY CONSOLIDATED TRAVEL COSTS OCTOBER 2013,BD1 3AZ,406.69,
Communities & Local Government,DCLG,07/11/2013,Travel and Subsistence Account,Finance & Corporate Services,REDFERN TRAVEL LIMITED,,Small,,213089972,2100236088,MONTHLY CONSOLIDATED TRAVEL COSTS OCTOBER 2013,BD1 3AZ,"1,151.21",
Communities & Local Government,DCLG,07/11/2013,Travel and Subsistence Account,Finance & Corporate Services,REDFERN TRAVEL LIMITED,,Small,,213089972,2100236088,MONTHLY CONSOLIDATED TRAVEL COSTS OCTOBER 2013,BD1 3AZ,"7,360.64",
Communities & Local Government,DCLG,07/11/2013,Travel and Subsistence Account,Finance & Corporate Services,REDFERN TRAVEL LIMITED,,Small,,213089972,2100236088,MONTHLY CONSOLIDATED TRAVEL COSTS OCTOBER 2013,BD1 3AZ,"1,101.43",
Communities & Local Government,DCLG,07/11/2013,Travel and Subsistence Account,Finance & Corporate Services,REDFERN TRAVEL LIMITED,,Small,,213089972,2100236088,MONTHLY CONSOLIDATED TRAVEL COSTS OCTOBER 2013,BD1 3AZ,"1,295.09",
Communities & Local Government,DCLG,07/11/2013,Travel and Subsistence Account,Finance & Corporate Services,REDFERN TRAVEL LIMITED,,Small,,213089972,2100236088,MONTHLY CONSOLIDATED TRAVEL COSTS OCTOBER 2013,BD1 3AZ,"1,531.42",
Communities & Local Government,DCLG,07/11/2013,Travel and Subsistence Account,Finance & Corporate Services,REDFERN TRAVEL LIMITED,,Small,,213089972,2100236088,MONTHLY CONSOLIDATED TRAVEL COSTS OCTOBER 2013,BD1 3AZ,609.90,
Communities & Local Government,DCLG,07/11/2013,Travel and Subsistence Account,Finance & Corporate Services,REDFERN TRAVEL LIMITED,,Small,,213089972,2100236088,MONTHLY CONSOLIDATED TRAVEL COSTS OCTOBER 2013,BD1 3AZ,"1,810.11",
Communities & Local Government,DCLG,07/11/2013,Travel and Subsistence Account,Localism,REDFERN TRAVEL LIMITED,,Small,,213089972,2100236088,MONTHLY CONSOLIDATED TRAVEL COSTS OCTOBER 2013,BD1 3AZ,473.71,
Communities & Local Government,DCLG,07/11/2013,Travel and Subsistence Account,Localism,REDFERN TRAVEL LIMITED,,Small,,213089972,2100236088,MONTHLY CONSOLIDATED TRAVEL COSTS OCTOBER 2013,BD1 3AZ,738.00,
Communities & Local Government,DCLG,07/11/2013,Travel and Subsistence Account,Localism,REDFERN TRAVEL LIMITED,,Small,,213089972,2100236088,MONTHLY CONSOLIDATED TRAVEL COSTS OCTOBER 2013,BD1 3AZ,636.76,
Communities & Local Government,DCLG,07/11/2013,Travel and Subsistence Account,Localism,REDFERN TRAVEL LIMITED,,Small,,213089972,2100236088,MONTHLY CONSOLIDATED TRAVEL COSTS OCTOBER 2013,BD1 3AZ,"1,061.75",
Communities & Local Government,DCLG,07/11/2013,Travel and Subsistence Account,Localism,REDFERN TRAVEL LIMITED,,Small,,213089972,2100236088,MONTHLY CONSOLIDATED TRAVEL COSTS OCTOBER 2013,BD1 3AZ,"1,453.77",
Communities & Local Government,DCLG,07/11/2013,Travel and Subsistence Account,Localism,REDFERN TRAVEL LIMITED,,Small,,213089972,2100236088,MONTHLY CONSOLIDATED TRAVEL COSTS OCTOBER 2013,BD1 3AZ,280.07,
Communities & Local Government,DCLG,07/11/2013,Travel and Subsistence Account,Localism,REDFERN TRAVEL LIMITED,,Small,,213089972,2100236088,MONTHLY CONSOLIDATED TRAVEL COSTS OCTOBER 2013,BD1 3AZ,468.80,
Communities & Local Government,DCLG,07/11/2013,Travel and Subsistence Account,Localism,REDFERN TRAVEL LIMITED,,Small,,213089972,2100236088,MONTHLY CONSOLIDATED TRAVEL COSTS OCTOBER 2013,BD1 3AZ,575.75,
Communities & Local Government,DCLG,07/11/2013,Travel and Subsistence Account,Localism,REDFERN TRAVEL LIMITED,,Small,,213089972,2100236088,MONTHLY CONSOLIDATED TRAVEL COSTS OCTOBER 2013,BD1 3AZ,393.04,
Communities & Local Government,DCLG,07/11/2013,Travel and Subsistence Account,Localism,REDFERN TRAVEL LIMITED,,Small,,213089972,2100236088,MONTHLY CONSOLIDATED TRAVEL COSTS OCTOBER 2013,BD1 3AZ,268.34,
Communities & Local Government,DCLG,07/11/2013,Travel and Subsistence Account,Localism,REDFERN TRAVEL LIMITED,,Small,,213089972,2100236088,MONTHLY CONSOLIDATED TRAVEL COSTS OCTOBER 2013,BD1 3AZ,"1,310.96",
Communities & Local Government,DCLG,07/11/2013,Travel and Subsistence Account,Localism,REDFERN TRAVEL LIMITED,,Small,,213089972,2100236088,MONTHLY CONSOLIDATED TRAVEL COSTS OCTOBER 2013,BD1 3AZ,340.63,
Communities & Local Government,DCLG,07/11/2013,Travel and Subsistence Account,Localism,REDFERN TRAVEL LIMITED,,Small,,213089972,2100236088,MONTHLY CONSOLIDATED TRAVEL COSTS OCTOBER 2013,BD1 3AZ,782.47,
Communities & Local Government,DCLG,07/11/2013,Travel and Subsistence Account,Localism,REDFERN TRAVEL LIMITED,,Small,,213089972,2100236088,MONTHLY CONSOLIDATED TRAVEL COSTS OCTOBER 2013,BD1 3AZ,"1,527.67",
Communities & Local Government,DCLG,07/11/2013,Travel and Subsistence Account,Localism,REDFERN TRAVEL LIMITED,,Small,,213089972,2100236088,MONTHLY CONSOLIDATED TRAVEL COSTS OCTOBER 2013,BD1 3AZ,"3,243.98",
Communities & Local Government,DCLG,07/11/2013,Travel and Subsistence Account,Localism,REDFERN TRAVEL LIMITED,,Small,,213089972,2100236088,MONTHLY CONSOLIDATED TRAVEL COSTS OCTOBER 2013,BD1 3AZ,"3,365.04",
Communities & Local Government,DCLG,07/11/2013,Travel and Subsistence Account,Localism,REDFERN TRAVEL LIMITED,,Small,,213089972,2100236088,MONTHLY CONSOLIDATED TRAVEL COSTS OCTOBER 2013,BD1 3AZ,"1,240.47",
Communities & Local Government,DCLG,07/11/2013,Travel and Subsistence Account,Localism,REDFERN TRAVEL LIMITED,,Small,,213089972,2100236088,MONTHLY CONSOLIDATED TRAVEL COSTS OCTOBER 2013,BD1 3AZ,"2,803.16",
Communities & Local Government,DCLG,07/11/2013,Travel and Subsistence Account,Localism,REDFERN TRAVEL LIMITED,,Small,,213089972,2100236088,MONTHLY CONSOLIDATED TRAVEL COSTS OCTOBER 2013,BD1 3AZ,356.81,
Communities & Local Government,DCLG,07/11/2013,Travel and Subsistence Account,Localism,REDFERN TRAVEL LIMITED,,Small,,213089972,2100236088,MONTHLY CONSOLIDATED TRAVEL COSTS OCTOBER 2013,BD1 3AZ,960.99,
Communities & Local Government,DCLG,07/11/2013,Travel and Subsistence Account,Localism,REDFERN TRAVEL LIMITED,,Small,,213089972,2100236088,MONTHLY CONSOLIDATED TRAVEL COSTS OCTOBER 2013,BD1 3AZ,"5,415.19",
Communities & Local Government,DCLG,07/11/2013,Travel and Subsistence Account,Neighbourhoods,REDFERN TRAVEL LIMITED,,Small,,213089972,2100236088,MONTHLY CONSOLIDATED TRAVEL COSTS OCTOBER 2013,BD1 3AZ,802.38,
Communities & Local Government,DCLG,07/11/2013,Travel and Subsistence Account,Neighbourhoods,REDFERN TRAVEL LIMITED,,Small,,213089972,2100236088,MONTHLY CONSOLIDATED TRAVEL COSTS OCTOBER 2013,BD1 3AZ,373.70,
Communities & Local Government,DCLG,07/11/2013,Travel and Subsistence Account,Neighbourhoods,REDFERN TRAVEL LIMITED,,Small,,213089972,2100236088,MONTHLY CONSOLIDATED TRAVEL COSTS OCTOBER 2013,BD1 3AZ,"1,423.65",
Communities & Local Government,DCLG,07/11/2013,Travel and Subsistence Account,Neighbourhoods,REDFERN TRAVEL LIMITED,,Small,,213089972,2100236088,MONTHLY CONSOLIDATED TRAVEL COSTS OCTOBER 2013,BD1 3AZ,"5,471.29",
Communities & Local Government,DCLG,07/11/2013,Travel and Subsistence Account,Neighbourhoods,REDFERN TRAVEL LIMITED,,Small,,213089972,2100236088,MONTHLY CONSOLIDATED TRAVEL COSTS OCTOBER 2013,BD1 3AZ,"4,168.99",
Communities & Local Government,DCLG,07/11/2013,Travel and Subsistence Account,Neighbourhoods,REDFERN TRAVEL LIMITED,,Small,,213089972,2100236088,MONTHLY CONSOLIDATED TRAVEL COSTS OCTOBER 2013,BD1 3AZ,"4,221.52",
Communities & Local Government,DCLG,07/11/2013,Travel and Subsistence Account,Neighbourhoods,REDFERN TRAVEL LIMITED,,Small,,213089972,2100236088,MONTHLY CONSOLIDATED TRAVEL COSTS OCTOBER 2013,BD1 3AZ,"1,236.19",
Communities & Local Government,DCLG,07/11/2013,Travel and Subsistence Account,Neighbourhoods,REDFERN TRAVEL LIMITED,,Small,,213089972,2100236088,MONTHLY CONSOLIDATED TRAVEL COSTS OCTOBER 2013,BD1 3AZ,"6,034.08",
Communities & Local Government,DCLG,07/11/2013,Travel and Subsistence Account,Neighbourhoods,REDFERN TRAVEL LIMITED,,Small,,213089972,2100236088,MONTHLY CONSOLIDATED TRAVEL COSTS OCTOBER 2013,BD1 3AZ,"3,000.47",
Communities & Local Government,DCLG,07/11/2013,Travel and Subsistence Account,Neighbourhoods,REDFERN TRAVEL LIMITED,,Small,,213089972,2100236088,MONTHLY CONSOLIDATED TRAVEL COSTS OCTOBER 2013,BD1 3AZ,"1,312.56",
Communities & Local Government,DCLG,07/11/2013,Travel and Subsistence Account,Neighbourhoods,REDFERN TRAVEL LIMITED,,Small,,213089972,2100236088,MONTHLY CONSOLIDATED TRAVEL COSTS OCTOBER 2013,BD1 3AZ,"1,863.85",
Communities & Local Government,DCLG,07/11/2013,Travel and Subsistence Account,Neighbourhoods,REDFERN TRAVEL LIMITED,,Small,,213089972,2100236088,MONTHLY CONSOLIDATED TRAVEL COSTS OCTOBER 2013,BD1 3AZ,"1,279.53",
Communities & Local Government,DCLG,07/11/2013,Travel and Subsistence Account,Neighbourhoods,REDFERN TRAVEL LIMITED,,Small,,213089972,2100236088,MONTHLY CONSOLIDATED TRAVEL COSTS OCTOBER 2013,BD1 3AZ,"1,399.60",
Communities & Local Government,DCLG,07/11/2013,Travel and Subsistence Account,Neighbourhoods,REDFERN TRAVEL LIMITED,,Small,,213089972,2100236088,MONTHLY CONSOLIDATED TRAVEL COSTS OCTOBER 2013,BD1 3AZ,"2,640.36",
Communities & Local Government,DCLG,07/11/2013,Travel and Subsistence Account,Neighbourhoods,REDFERN TRAVEL LIMITED,,Small,,213089972,2100236088,MONTHLY CONSOLIDATED TRAVEL COSTS OCTOBER 2013,BD1 3AZ,"2,903.81",
Communities & Local Government,DCLG,07/11/2013,Travel and Subsistence Account,Neighbourhoods,REDFERN TRAVEL LIMITED,,Small,,213089972,2100236088,MONTHLY CONSOLIDATED TRAVEL COSTS OCTOBER 2013,BD1 3AZ,"1,365.58",
Communities & Local Government,DCLG,07/11/2013,Travel and Subsistence Account,Neighbourhoods,REDFERN TRAVEL LIMITED,,Small,,213089972,2100236088,MONTHLY CONSOLIDATED TRAVEL COSTS OCTOBER 2013,BD1 3AZ,"3,717.79",
Communities & Local Government,DCLG,07/11/2013,Travel and Subsistence Account,Neighbourhoods,REDFERN TRAVEL LIMITED,,Small,,213089972,2100236088,MONTHLY CONSOLIDATED TRAVEL COSTS OCTOBER 2013,BD1 3AZ,"3,256.72",
Communities & Local Government,DCLG,07/11/2013,Travel and Subsistence Account,Neighbourhoods,REDFERN TRAVEL LIMITED,,Small,,213089972,2100236088,MONTHLY CONSOLIDATED TRAVEL COSTS OCTOBER 2013,BD1 3AZ,"1,934.18",
Communities & Local Government,DCLG,07/11/2013,Travel and Subsistence Account,Neighbourhoods,REDFERN TRAVEL LIMITED,,Small,,213089972,2100236088,MONTHLY CONSOLIDATED TRAVEL COSTS OCTOBER 2013,BD1 3AZ,374.84,
Communities & Local Government,DCLG,07/11/2013,Travel and Subsistence Account,Neighbourhoods,REDFERN TRAVEL LIMITED,,Small,,213089972,2100236088,MONTHLY CONSOLIDATED TRAVEL COSTS OCTOBER 2013,BD1 3AZ,"2,974.69",
Communities & Local Government,DCLG,07/11/2013,Travel and Subsistence Account,Neighbourhoods,REDFERN TRAVEL LIMITED,,Small,,213089972,2100236088,MONTHLY CONSOLIDATED TRAVEL COSTS OCTOBER 2013,BD1 3AZ,276.44,
Communities & Local Government,DCLG,07/11/2013,Travel and Subsistence Account,Strategic Performance Team,REDFERN TRAVEL LIMITED,,Small,,213089972,2100236088,MONTHLY CONSOLIDATED TRAVEL COSTS OCTOBER 2013,BD1 3AZ,"1,539.83",
Communities & Local Government,DCLG,07/11/2013,Travel and Subsistence Account,Strategy and Private Office Group,REDFERN TRAVEL LIMITED,,Small,,213089972,2100236088,MONTHLY CONSOLIDATED TRAVEL COSTS OCTOBER 2013,BD1 3AZ,329.34,
Communities & Local Government,DCLG,07/11/2013,Travel and Subsistence Account,Strategy and Private Office Group,REDFERN TRAVEL LIMITED,,Small,,213089972,2100236088,MONTHLY CONSOLIDATED TRAVEL COSTS OCTOBER 2013,BD1 3AZ,456.09,
Communities & Local Government,DCLG,07/11/2013,Travel and Subsistence Account,Troubled Families,REDFERN TRAVEL LIMITED,,Small,,213089972,2100236088,MONTHLY CONSOLIDATED TRAVEL COSTS OCTOBER 2013,BD1 3AZ,"17,612.48",
Communities & Local Government,DCLG,07/11/2013,Work In Progress Pre-Cert 40373 Spend,Neighbourhoods,ASTON UNIVERSITY,,Large,,,7600006630,Revenue Grant To Be Paid,B4 7ET,"50,989.37",Yes
Communities & Local Government,DCLG,07/11/2013,Work In Progress Pre-Cert 40373 Spend,Neighbourhoods,BARNSLEY METROPOLITAN BC,,Public Bodies,,,7600006650,Revenue Grant To Be Paid,S70 9OO,"10,368.66",Yes
Communities & Local Government,DCLG,07/11/2013,Work In Progress Pre-Cert 40373 Spend,Neighbourhoods,BIRMINGHAM SCIENCE PARK ASTON,,Small,,,7600006626,Revenue Grant To Be Paid,B7 4BB,"2,911.43",Yes
Communities & Local Government,DCLG,07/11/2013,Work In Progress Pre-Cert 40373 Spend,Neighbourhoods,BIRMINGHAM SCIENCE PARK ASTON,,Small,,,7600006629,Revenue Grant To Be Paid,B7 4BB,"15,749.21",Yes
Communities & Local Government,DCLG,07/11/2013,Work In Progress Pre-Cert 40373 Spend,Neighbourhoods,BIRMINGHAM SCIENCE PARK ASTON,,Small,,,7600006635,Revenue Grant To Be Paid,B7 4BB,"6,051.56",Yes
Communities & Local Government,DCLG,07/11/2013,Work In Progress Pre-Cert 40373 Spend,Neighbourhoods,BRADFORD  MDC,,,,,7600006631,Revenue Grant To Be Paid,BD1 1HY,"13,404.15",Yes
Communities & Local Government,DCLG,07/11/2013,Work In Progress Pre-Cert 40373 Spend,Neighbourhoods,BRADFORD  MDC,,,,,7600006636,Revenue Grant To Be Paid,BD1 1HY,"17,963.48",Yes
Communities & Local Government,DCLG,07/11/2013,Work In Progress Pre-Cert 40373 Spend,Neighbourhoods,BRADFORD  MDC,,,,,7600006652,Revenue Grant To Be Paid,BD1 1HY,"46,946.48",Yes
Communities & Local Government,DCLG,07/11/2013,Work In Progress Pre-Cert 40373 Spend,Neighbourhoods,COMMUNITY FOUNDATION FOR LEEDS,Yes,Micro,,,7600006639,Revenue Grant To Be Paid,LS1 2TE,"13,463.87",Yes
Communities & Local Government,DCLG,07/11/2013,Work In Progress Pre-Cert 40373 Spend,Neighbourhoods,COMMUNITY FOUNDATION FOR LEEDS,Yes,Micro,,,7600006640,Revenue Grant To Be Paid,LS1 2TE,"2,606.82",Yes
Communities & Local Government,DCLG,07/11/2013,Work In Progress Pre-Cert 40373 Spend,Neighbourhoods,COVENTRY UNIVERSITY ENTERPRISES LTD,,Medium,,,7600006622,Revenue Grant To Be Paid,CV1 2TT,"27,634.81",Yes
Communities & Local Government,DCLG,07/11/2013,Work In Progress Pre-Cert 40373 Spend,Neighbourhoods,COVENTRY UNIVERSITY ENTERPRISES LTD,,Medium,,,7600006623,Revenue Grant To Be Paid,CV1 2TT,"32,639.45",Yes
Communities & Local Government,DCLG,07/11/2013,Work In Progress Pre-Cert 40373 Spend,Neighbourhoods,COVENTRY UNIVERSITY ENTERPRISES LTD,,Medium,,,7600006627,Revenue Grant To Be Paid,CV1 2TT,"11,688.53",Yes
Communities & Local Government,DCLG,07/11/2013,Work In Progress Pre-Cert 40373 Spend,Neighbourhoods,COVENTRY UNIVERSITY ENTERPRISES LTD,,Medium,,,7600006628,Revenue Grant To Be Paid,CV1 2TT,"6,840.36",Yes
Communities & Local Government,DCLG,07/11/2013,Work In Progress Pre-Cert 40373 Spend,Neighbourhoods,COVENTRY UNIVERSITY ENTERPRISES LTD,,Medium,,,7600006645,Revenue Grant To Be Paid,CV1 2TT,"36,389.51",Yes
Communities & Local Government,DCLG,07/11/2013,Work In Progress Pre-Cert 40373 Spend,Neighbourhoods,COVENTRY UNIVERSITY ENTERPRISES LTD,,Medium,,,7600006647,Revenue Grant To Be Paid,CV1 2TT,"30,376.97",Yes
Communities & Local Government,DCLG,07/11/2013,Work In Progress Pre-Cert 40373 Spend,Neighbourhoods,COVENTRY UNIVERSITY ENTERPRISES LTD,,Medium,,,7600006657,Revenue Grant To Be Paid,CV1 2TT,"39,287.21",Yes
Communities & Local Government,DCLG,07/11/2013,Work In Progress Pre-Cert 40373 Spend,Neighbourhoods,DNCC LIMITED,,Medium,,,7600006659,Revenue Grant To Be Paid,S41 7NA,"16,962.00",Yes
Communities & Local Government,DCLG,07/11/2013,Work In Progress Pre-Cert 40373 Spend,Neighbourhoods,DONCASTER METROPOLITAN BC,,,,,7600006643,Revenue Grant To Be Paid,DN1 1DE,"21,509.87",Yes
Communities & Local Government,DCLG,07/11/2013,Work In Progress Pre-Cert 40373 Spend,Neighbourhoods,EXPERIENCE NOTTINGHAMSHIRE LTD,,Small,,,7600006649,Revenue Grant To Be Paid,NG1 1JU,"44,002.30",Yes
Communities & Local Government,DCLG,07/11/2013,Work In Progress Pre-Cert 40373 Spend,Neighbourhoods,MARKETING BIRMINGHAM LIMITED,,Medium,,,7600006655,Revenue Grant To Be Paid,B1 2ND,"345,655.55",Yes
Communities & Local Government,DCLG,07/11/2013,Work In Progress Pre-Cert 40373 Spend,Neighbourhoods,NGAGE SOLUTIONS LTD,,Medium,,,7600006618,Revenue Grant To Be Paid,HP14 4BF,"13,289.94",Yes
Communities & Local Government,DCLG,07/11/2013,Work In Progress Pre-Cert 40373 Spend,Neighbourhoods,PASTURES DEVELOPMENT COMPANY LTD,,,,,7600006646,Revenue Grant To Be Paid,DN31 1LW,863.19,Yes
Communities & Local Government,DCLG,07/11/2013,Work In Progress Pre-Cert 40373 Spend,Neighbourhoods,PRINCES TRUST,,Medium,,,7600006620,Revenue Grant To Be Paid,B9 4AA,"2,113.21",Yes
Communities & Local Government,DCLG,07/11/2013,Work In Progress Pre-Cert 40373 Spend,Neighbourhoods,REMADE SOUTH EAST,,Micro,,,7600006638,Revenue Grant To Be Paid,ME19 6BJ,"26,700.54",Yes
Communities & Local Government,DCLG,07/11/2013,Work In Progress Pre-Cert 40373 Spend,Neighbourhoods,SHROPSHIRE COUNCIL,,Public Bodies,,,7600006651,Revenue Grant To Be Paid,SY2 6ND,"2,321.83",Yes
Communities & Local Government,DCLG,07/11/2013,Work In Progress Pre-Cert 40373 Spend,Neighbourhoods,SHROPSHIRE ENTERPRISE PARTNERSHIP,,Micro,,,7600006644,Revenue Grant To Be Paid,TF1 6QJ,"5,700.97",Yes
Communities & Local Government,DCLG,07/11/2013,Work In Progress Pre-Cert 40373 Spend,Neighbourhoods,SHROPSHIRE ENTERPRISE PARTNERSHIP,,Micro,,,7600006658,Revenue Grant To Be Paid,TF1 6QJ,"15,282.42",Yes
Communities & Local Government,DCLG,07/11/2013,Work In Progress Pre-Cert 40373 Spend,Neighbourhoods,STAFFORDSHIRE & BLACK COUNTRY BIC L,,Small,,,7600006656,Revenue Grant To Be Paid,ST18 0AR,"17,357.69",Yes
Communities & Local Government,DCLG,07/11/2013,Work In Progress Pre-Cert 40373 Spend,Neighbourhoods,STH WEST MANUFACTURING ADV SERVICE,,,,,7600006632,Revenue Grant To Be Paid,GL2 9PG,"102,172.08",Yes
Communities & Local Government,DCLG,07/11/2013,Work In Progress Pre-Cert 40373 Spend,Neighbourhoods,STOKE-ON-TRENT CITY COUNCIL,,Large,,,7600006621,Revenue Grant To Be Paid,ST4 1HP,"15,816.10",Yes
Communities & Local Government,DCLG,07/11/2013,Work In Progress Pre-Cert 40373 Spend,Neighbourhoods,STOKE-ON-TRENT CITY COUNCIL,,Large,,,7600006641,Revenue Grant To Be Paid,ST4 1HP,"3,272.59",Yes
Communities & Local Government,DCLG,07/11/2013,Work In Progress Pre-Cert 40373 Spend,Neighbourhoods,STOKE-ON-TRENT CITY COUNCIL,,Large,,,7600006642,Revenue Grant To Be Paid,ST4 1HP,"2,103.99",Yes
Communities & Local Government,DCLG,07/11/2013,Work In Progress Pre-Cert 40373 Spend,Neighbourhoods,STOKE-ON-TRENT CITY COUNCIL,,Large,,,7600006654,Revenue Grant To Be Paid,ST4 1HP,"102,914.16",Yes
Communities & Local Government,DCLG,07/11/2013,Work In Progress Pre-Cert 40373 Spend,Neighbourhoods,UNIVERSITY OF SHEFFIELD,,,,,7600006624,Revenue Grant To Be Paid,S60 5TZ,"37,198.96",Yes
Communities & Local Government,DCLG,07/11/2013,Work In Progress Pre-Cert 40373 Spend,Neighbourhoods,UNIVERSITY OF SHEFFIELD,,,,,7600006653,Revenue Grant To Be Paid,S60 5TZ,"55,798.44",Yes
Communities & Local Government,DCLG,07/11/2013,Work In Progress Pre-Cert 40373 Spend,Neighbourhoods,UNIVERSITY OF WOLVERHAMPTON,,Large,,,7600006619,Revenue Grant To Be Paid,WV1 1SB,"80,902.03",Yes
Communities & Local Government,DCLG,07/11/2013,Work In Progress Pre-Cert 40373 Spend,Neighbourhoods,UNIVERSITY OF WOLVERHAMPTON,,Large,,,7600006625,Revenue Grant To Be Paid,WV1 1SB,"44,049.33",Yes
Communities & Local Government,DCLG,07/11/2013,Work In Progress Pre-Cert 40373 Spend,Neighbourhoods,YTKO LIMITED,,,,,7600006648,Revenue Grant To Be Paid,CB4 2QH,"56,755.20",Yes
Communities & Local Government,DCLG,07/11/2013,Work In Progress Pre-Cert 40467 Spend,Neighbourhoods,DEPT FOR BUSINESS INNOVATION & SKIL,,,,,7600006614,Capital Grant To Be Paid,SW1H 0ET,"177,900.00",Yes
Communities & Local Government,DCLG,07/11/2013,Work In Progress Pre-Cert 40467 Spend,Neighbourhoods,DERBY CITY COUNCIL,,Large,,,7600006634,Capital Grant Clawback Offset,DE1 2FE,-145.32,Yes
Communities & Local Government,DCLG,07/11/2013,Work In Progress Pre-Cert 40467 Spend,Neighbourhoods,DERBY CITY COUNCIL,,Large,,,7600006634,Capital Grant To Be Paid,DE1 2FE,"146,685.22",Yes
Communities & Local Government,DCLG,07/11/2013,Work In Progress Pre-Cert 40467 Spend,Neighbourhoods,MARKETING BIRMINGHAM LIMITED,,Medium,,,7600006655,Capital Grant To Be Paid,B1 2ND,"2,788.66",Yes
Communities & Local Government,DCLG,07/11/2013,Work In Progress Pre-Cert 40467 Spend,Neighbourhoods,PASTURES DEVELOPMENT COMPANY LTD,,,,,7600006646,Capital Grant To Be Paid,DN31 1LW,"53,650.67",Yes
Communities & Local Government,DCLG,07/11/2013,Work In Progress Pre-Cert 40467 Spend,Neighbourhoods,PRINCES TRUST,,Medium,,,7600006620,Capital Grant To Be Paid,B9 4AA,"41,650.00",Yes
Communities & Local Government,DCLG,07/11/2013,Work In Progress Pre-Cert 40467 Spend,Neighbourhoods,SHEFFIELD CITY COUNCIL,,,,,7600006633,Capital Grant To Be Paid,S1 2SH,"55,121.36",Yes
Communities & Local Government,DCLG,07/11/2013,Work In Progress Pre-Cert 40467 Spend,Neighbourhoods,SHROPSHIRE COUNCIL,,Public Bodies,,,7600006651,Capital Grant To Be Paid,SY2 6ND,"63,810.07",Yes
Communities & Local Government,DCLG,07/11/2013,Work In Progress Pre-Cert 40467 Spend,Neighbourhoods,UNIVERSITY OF SHEFFIELD,,,,,7600006653,Capital Grant To Be Paid,S60 5TZ,"45,094.27",Yes
Communities & Local Government,DCLG,08/11/2013,Electricity,Finance & Corporate Services,EDF ENERGY 1 LIMITED,,Large,,230840469,5106198557,EM Castle Don Electricity 2013-14,PL3 5XQ,"2,851.70",
Communities & Local Government,DCLG,08/11/2013,Grant in Aid to NDPBs (non budget),Localism,COMMISSION LOCAL ADMINISTRATION,,,,215271508,2100236058,Nov DCLG Budget Contribution for the CLAE 2013-14,SW1P 4QP,"728,000.00",Yes
Communities & Local Government,DCLG,08/11/2013,IT - Software Maintenance,Finance & Corporate Services,CESG,,Public Bodies,,423430925,5106198421,CESG Keymat Production PT/PY4014/2006 O,GL51 0EX,"1,545.60",
Communities & Local Government,DCLG,08/11/2013,Legal Fees,Finance & Corporate Services,DLA PIPER UK LLP,,Large,,218124826,5106198197,Legal Advice,LS1 4BY,"2,403.24",
Communities & Local Government,DCLG,08/11/2013,Mobile phone costs,Localism,AST DISTRIBUTION,,Medium,,,5106198532,BGAN Sat phone prepay top up ,NR31 0LX,114.00,
Communities & Local Government,DCLG,08/11/2013,Mobile phone costs,Localism,AST DISTRIBUTION,,Medium,,,5106198532,BGAN Sat phone prepay top up ,NR31 0LX,114.00,
Communities & Local Government,DCLG,08/11/2013,Mobile phone costs,Localism,AST DISTRIBUTION,,Medium,,,5106198532,BGAN Sat phone prepay top up ,NR31 0LX,114.00,
Communities & Local Government,DCLG,08/11/2013,Mobile phone costs,Localism,AST DISTRIBUTION,,Medium,,,5106198532,BGAN Sat phone prepay top up,NR31 0LX,114.00,
Communities & Local Government,DCLG,08/11/2013,Professional services,Finance & Corporate Services,E C HARRIS LLP,,Large,,,5106198445,Bridge House Air con works Phase 3 - 115,N1 9AB,"8,892.31",
Communities & Local Government,DCLG,08/11/2013,Professional services,Neighbourhoods,MR R S MILNE,,,,,2100236121,Production of weekly e-newsletter sent via Planning Portal,,"1,416.25",
Communities & Local Government,DCLG,08/11/2013,Professional services,Neighbourhoods,MS E M COCHRANE,,,,,2100236120,Production of weekly e-newsletter sent via Planning Portal,,"1,699.50",
Communities & Local Government,DCLG,08/11/2013,Research,Finance & Corporate Services,ECORYS UK LTD,,Medium,,,5106198548,Research - Troubled Families,B1 2RA,"20,179.20",
Communities & Local Government,DCLG,08/11/2013,Research,Finance & Corporate Services,GLENIGAN,,Large,,218633327,5106196549,Research - Glenigan,BH8 8AQ,"-12,500.00",
Communities & Local Government,DCLG,08/11/2013,Research,Finance & Corporate Services,GLENIGAN,,Large,,218633327,5106198485,Research - Glenigan,BH8 8AQ,"12,500.00",
Communities & Local Government,DCLG,08/11/2013,Vehicle hire,Finance & Corporate Services,CYCLESCHEME LTD,,Large,,345537935,5106198530,Salaried Cycle to work scheme,BA1 2LN,999.99,
Communities & Local Government,DCLG,08/11/2013,Work In Progress Pre-Cert 40373 Spend,Neighbourhoods,BUSINESS & ENTERPRISE COMMERCIAL,,Medium,,,7600006675,Revenue Grant To Be Paid,SR7 7TT,"163,435.83",Yes
Communities & Local Government,DCLG,08/11/2013,Work In Progress Pre-Cert 40373 Spend,Neighbourhoods,CHESTERFIELD BOROUGH COUNCIL,,Large,,,7600006673,Revenue Grant To Be Paid,S40 1LP,"6,761.63",Yes
Communities & Local Government,DCLG,08/11/2013,Work In Progress Pre-Cert 40373 Spend,Neighbourhoods,DE MONTFORT UNIVERSITY,,Large,,,7600006660,Revenue Grant To Be Paid,LE1 9BH,"12,044.93",Yes
Communities & Local Government,DCLG,08/11/2013,Work In Progress Pre-Cert 40373 Spend,Neighbourhoods,IN COMMUNITIES GROUP LTD,,Large,,,7600006667,Revenue Grant To Be Paid,BD18 3NT,"3,612.36",Yes
Communities & Local Government,DCLG,08/11/2013,Work In Progress Pre-Cert 40373 Spend,Neighbourhoods,IN COMMUNITIES GROUP LTD,,Large,,,7600006668,Revenue Grant To Be Paid,BD18 3NT,"12,062.99",Yes
Communities & Local Government,DCLG,08/11/2013,Work In Progress Pre-Cert 40373 Spend,Neighbourhoods,IN COMMUNITIES GROUP LTD,,Large,,,7600006669,Revenue Grant To Be Paid,BD18 3NT,"19,562.95",Yes
Communities & Local Government,DCLG,08/11/2013,Work In Progress Pre-Cert 40373 Spend,Neighbourhoods,IN COMMUNITIES GROUP LTD,,Large,,,7600006670,Revenue Grant To Be Paid,BD18 3NT,"30,029.88",Yes
Communities & Local Government,DCLG,08/11/2013,Work In Progress Pre-Cert 40373 Spend,Neighbourhoods,LEICESTER CITY COUNCIL,,Large,,,7600006672,Revenue Grant Clawback Offset,LE1 6ZG,"-5,786.66",Yes
Communities & Local Government,DCLG,08/11/2013,Work In Progress Pre-Cert 40373 Spend,Neighbourhoods,LEICESTER CITY COUNCIL,,Large,,,7600006672,Revenue Grant To Be Paid,LE1 6ZG,"6,840.84",Yes
Communities & Local Government,DCLG,08/11/2013,Work In Progress Pre-Cert 40373 Spend,Neighbourhoods,MANSFIELD DISTRICT COUNCIL,,Large,,,7600006677,Revenue Grant To Be Paid,NG19 7BH,"2,367.75",Yes
Communities & Local Government,DCLG,08/11/2013,Work In Progress Pre-Cert 40373 Spend,Neighbourhoods,MARKETING DERBY,,Micro,,,7600006671,Revenue Grant To Be Paid,DE24 8QR,"13,147.23",Yes
Communities & Local Government,DCLG,08/11/2013,Work In Progress Pre-Cert 40373 Spend,Neighbourhoods,MIDDLESBROUGH COUNCIL,,,,,7600006666,Revenue Grant To Be Paid,TS1 9GA,"62,818.88",Yes
Communities & Local Government,DCLG,08/11/2013,Work In Progress Pre-Cert 40373 Spend,Neighbourhoods,NORTH EAST FINANCE (HOLDCO),,,,,7600006674,Revenue Grant To Be Paid,NE1 4AD,"175,448.23",Yes
Communities & Local Government,DCLG,08/11/2013,Work In Progress Pre-Cert 40373 Spend,Neighbourhoods,UNIVERSITY OF PLYMOUTH GENERAL A/C,,,,,7600006662,Revenue Grant To Be Paid,PL4 8AA,"50,468.03",Yes
Communities & Local Government,DCLG,08/11/2013,Work In Progress Pre-Cert 40373 Spend,Neighbourhoods,WILTSHIRE COUNCIL,,Large,,,7600006663,Revenue Grant To Be Paid,BA14 8JN,"13,572.81",Yes
Communities & Local Government,DCLG,08/11/2013,Work In Progress Pre-Cert 40373 Spend,Neighbourhoods,YTKO LIMITED,,,,,7600006665,Revenue Grant To Be Paid,CB4 2QH,"58,710.90",Yes
Communities & Local Government,DCLG,08/11/2013,Work In Progress Pre-Cert 40467 Spend,Neighbourhoods,LEICESTER CITY COUNCIL,,Large,,,7600006661,Capital Grant To Be Paid,LE1 6ZG,"643,649.12",Yes
Communities & Local Government,DCLG,08/11/2013,Work In Progress Pre-Cert 40467 Spend,Neighbourhoods,MANSFIELD DISTRICT COUNCIL,,Large,,,7600006677,Capital Grant To Be Paid,NG19 7BH,"235,956.78",Yes
Communities & Local Government,DCLG,08/11/2013,Work In Progress Pre-Cert 40467 Spend,Neighbourhoods,MILLFIELDS COMMUNITY ECONOMIC DEV T,Yes,,,,7600006664,Capital Grant To Be Paid,PL1 3HQ,"15,033.42",Yes
Communities & Local Government,DCLG,08/11/2013,Work In Progress Pre-Cert 40467 Spend,Neighbourhoods,SCREEN YORKSHIRE LIMITED,,,,,7600006676,Capital Grant To Be Paid,LS2 7EY,"300,000.00",Yes
Communities & Local Government,DCLG,11/11/2013,Current Grants to Non Profit Bodies,Neighbourhoods,ASSOCIATION TOWN CENTRE MANAGEMENT,,Micro,,348626995,2100236181,Sept 2013 Grant Payment - Support to Town Teams,SW1H 9BT,"92,127.75",Yes
Communities & Local Government,DCLG,11/11/2013,Online Database Information Retrieval,Finance & Corporate Services,BRITISH LIBRARY,,Public Bodies,,227256427,5106198580,British Library doc supply 2012-13,LS23 7BQ,"1,265.00",
Communities & Local Government,DCLG,11/11/2013,Online Database Information Retrieval,Finance & Corporate Services,TAMESIDE MBC,,Large,,212635875,5106198568,LeGSB Sponsorship 2012/13,OL6 6DL,"25,000.00",
Communities & Local Government,DCLG,11/11/2013,Steady State Service Provision,Finance & Corporate Services,ALLPAY LIMITED,,Medium,,738359918,5106197860,DC/DC Transaction Charges,HR1 3SE,420.95,
Communities & Local Government,DCLG,11/11/2013,Steady State Service Provision,Finance & Corporate Services,ALLPAY LIMITED,,Medium,,738359918,5106197860,Monthly Management Fee Payments,HR1 3SE,500.00,
Communities & Local Government,DCLG,11/11/2013,Training,Neighbourhoods,R T P I SOUTH WEST,,Medium,,210307650,5106198541,Training course for planners,TA1 3EN,213.75,
Communities & Local Government,DCLG,11/11/2013,Water,Finance & Corporate Services,SEVERN TRENT WATER LTD,,Large,,234404465,5106198573,West Midlands RCC  Water 2013-14,CV3 9FJ,562.48,
Communities & Local Government,DCLG,11/11/2013,Work In Progress Pre-Cert 40373 Spend,Neighbourhoods,GRIMSBY INSTITUTE OF F&H EDUCATION,,Large,,,7600006679,Revenue Grant To Be Paid,DN34 5BQ,"12,519.96",Yes
Communities & Local Government,DCLG,11/11/2013,Work In Progress Pre-Cert 40373 Spend,Neighbourhoods,GRIMSBY INSTITUTE OF F&H EDUCATION,,Large,,,7600006680,Revenue Grant To Be Paid,DN34 5BQ,"12,434.92",Yes
Communities & Local Government,DCLG,11/11/2013,Work In Progress Pre-Cert 40373 Spend,Neighbourhoods,GRIMSBY INSTITUTE OF F&H EDUCATION,,Large,,,7600006681,Revenue Grant To Be Paid,DN34 5BQ,"13,662.87",Yes
Communities & Local Government,DCLG,11/11/2013,Work In Progress Pre-Cert 40373 Spend,Neighbourhoods,GRIMSBY INSTITUTE OF F&H EDUCATION,,Large,,,7600006682,Revenue Grant To Be Paid,DN34 5BQ,"12,829.67",Yes
Communities & Local Government,DCLG,11/11/2013,Work In Progress Pre-Cert 40373 Spend,Neighbourhoods,GRIMSBY INSTITUTE OF F&H EDUCATION,,Large,,,7600006683,Revenue Grant To Be Paid,DN34 5BQ,"13,832.33",Yes
Communities & Local Government,DCLG,11/11/2013,Work In Progress Pre-Cert 40373 Spend,Neighbourhoods,SERCO REGIONAL SERVICES LTD,,,,,7600006678,Revenue Grant To Be Paid,PL6 8BT,"42,180.07",Yes
Communities & Local Government,DCLG,12/11/2013,Central Share,Localism,OFFICE OF THE PAYMASTER GENERAL (NN,,,,239956253,2100236187,BRR Central Share Receipts,RH10 1UH,"1,140,350,931.00",
Communities & Local Government,DCLG,12/11/2013,Conferences and Meeting Facilities,Neighbourhoods,GOVERNMENT KNOWLEDGE EVENTS LTD,,Small,,,5106198565,The Social Justice Conference,WC2N 5BW,324.00,
Communities & Local Government,DCLG,12/11/2013,Courier Services,Neighbourhoods,DCLG GOVERNMENT PROCUREMENT CARD,,,,,1000003895,Attendance of senior manager at the Employee Ownership Association Conference 2013 ,TN37 7GA,367.76,
Communities & Local Government,DCLG,12/11/2013,"IT - PC, Network & Hardware",Finance & Corporate Services,BANNER BUSINESS SUPPLIES LTD,,Large,,236638362,5106198491,DELWEEKLY CD-R 80 Minutes Duration 700mb,NR3 1PD,25.20,
Communities & Local Government,DCLG,12/11/2013,"IT - PC, Network & Hardware",Finance & Corporate Services,BANNER BUSINESS SUPPLIES LTD,,Large,,236638362,5106198491,DELWEEKLY Maxell CD-RW 80minute 700mb 1x,NR3 1PD,39.60,
Communities & Local Government,DCLG,12/11/2013,"IT - PC, Network & Hardware",Finance & Corporate Services,COMPUTACENTER (UK) LTD,,Large,,226023463,5106198419,x15) 4Gb IronKey S250 SLC basic edition,AL10 9TW,"1,496.70",
Communities & Local Government,DCLG,12/11/2013,IT - Service Contracts,Neighbourhoods,JEREMY BENN ASSOCIATES LTD,,Medium,,525608741,5106198546,RGF web based sysyem,BD23 3AE,"5,330.26",
Communities & Local Government,DCLG,12/11/2013,NNDR Central List Receipts,Localism,OFFICE OF THE PAYMASTER GENERAL (NN,,,,239956253,2100236187,Central List Receipts,RH10 1UH,"131,131,901.00",Yes
Communities & Local Government,DCLG,12/11/2013,NNDR Outturn Receipts,Localism,OFFICE OF THE PAYMASTER GENERAL (NN,,,,239956253,2100236187,NNDR Outturn Receipts,RH10 1UH,"293,571,232.00",Yes
Communities & Local Government,DCLG,12/11/2013,Office Supplies,Finance & Corporate Services,BANNER BUSINESS SUPPLIES LTD,,Large,,236638362,5106198491,DELWEEKLY Banner A4 Recycled Copier Pape,NR3 1PD,157.97,
Communities & Local Government,DCLG,12/11/2013,Office Supplies,Finance & Corporate Services,BANNER BUSINESS SUPPLIES LTD,,Large,,236638362,5106198491,DELWEEKLY Banner Adhesive Putty 70g,NR3 1PD,1.08,
Communities & Local Government,DCLG,12/11/2013,Office Supplies,Finance & Corporate Services,BANNER BUSINESS SUPPLIES LTD,,Large,,236638362,5106198491,DELWEEKLY Banner Flipchart Marker Assort,NR3 1PD,1.84,
Communities & Local Government,DCLG,12/11/2013,Office Supplies,Finance & Corporate Services,BANNER BUSINESS SUPPLIES LTD,,Large,,236638362,5106198491,DELWEEKLY Banner Recycled Casebound Book,NR3 1PD,9.60,
Communities & Local Government,DCLG,12/11/2013,Office Supplies,Finance & Corporate Services,BANNER BUSINESS SUPPLIES LTD,,Large,,236638362,5106198491,DELWEEKLY Himark Dry Wipe Bullet Tip Mar,NR3 1PD,1.44,
Communities & Local Government,DCLG,12/11/2013,Office Supplies,Finance & Corporate Services,BANNER BUSINESS SUPPLIES LTD,,Large,,236638362,5106198491,DELWEEKLY Himark Highlighter Assorted,NR3 1PD,2.16,
Communities & Local Government,DCLG,12/11/2013,Office Supplies,Finance & Corporate Services,BANNER BUSINESS SUPPLIES LTD,,Large,,236638362,5106198491,DELWEEKLY Rapesco Foldback Clip 32mm,NR3 1PD,1.05,
Communities & Local Government,DCLG,12/11/2013,Office Supplies,Finance & Corporate Services,BANNER BUSINESS SUPPLIES LTD,,Large,,236638362,5106198491,DELWEEKLY Steinbeis Classic A3 Copier Pa,NR3 1PD,81.54,
Communities & Local Government,DCLG,12/11/2013,Office Supplies,Finance & Corporate Services,BANNER BUSINESS SUPPLIES LTD,,Large,,236638362,5106198491,DELWEEKLY Stylo Stik Ballpoint Pen Black,NR3 1PD,5.65,
Communities & Local Government,DCLG,12/11/2013,Professional services,Finance & Corporate Services,E C HARRIS LLP,,Large,,,5106197422,COM 094 - 12 month proff servs - CS,N1 9AB,"15,600.00",
Communities & Local Government,DCLG,12/11/2013,Professional services,Finance & Corporate Services,E C HARRIS LLP,,Large,,,5106198451,COM 094 - 12 month proff servs - CS,N1 9AB,"10,140.00",
Communities & Local Government,DCLG,12/11/2013,Research,Neighbourhoods,DECC,,Public Bodies,,218443151,5106198398,Research for Renovation Strategy,YO1 7PX,"50,000.00",
Communities & Local Government,DCLG,12/11/2013,Steady State Service Provision,Neighbourhoods,CEL GROUP,,Medium,,394794614,5106198589,Extension 30/09/13 to 31/03/14,SK13 8HT,"69,756.08",
Communities & Local Government,DCLG,12/11/2013,Subscriptions,Finance & Corporate Services,RECORDS MANAGEMENT SOCIETY,,Small,,,5106198566,IRMS membership for 2014 - bulletin part,NE1 4HZ,50.00,
Communities & Local Government,DCLG,12/11/2013,Subscriptions,Finance & Corporate Services,RECORDS MANAGEMENT SOCIETY,,Small,,,5106198566,IRMS membership for 2014 - corporate,NE1 4HZ,300.00,
Communities & Local Government,DCLG,12/11/2013,Training,Finance & Corporate Services,CACFOA (SERVICES) LTD,,Small,,500027297,5106198593,Protection Seminar; Consistency-Collabor,B77 4RD,525.00,
Communities & Local Government,DCLG,12/11/2013,Transitional Receipts,Localism,OFFICE OF THE PAYMASTER GENERAL (NN,,,,239956253,2100236187,BRR Transitional Protection Receipts,RH10 1UH,"2,434,400.00",
Communities & Local Government,DCLG,12/11/2013,Vehicle hire,Finance & Corporate Services,MULLANY'S COACHES LTD,,,,548474758,5106198539,Coach Hire,WD25 0GB,380.00,
Communities & Local Government,DCLG,12/11/2013,Work In Progress Pre-Cert 40373 Spend,Neighbourhoods,ASSOCIATION OF TOWN CENTRE MGT,,,,,7600006731,Revenue Grant Clawback Offset,SW1H 9BT,"-2,589.59",Yes
Communities & Local Government,DCLG,12/11/2013,Work In Progress Pre-Cert 40373 Spend,Neighbourhoods,ASSOCIATION OF TOWN CENTRE MGT,,,,,7600006731,Revenue Grant To Be Paid,SW1H 9BT,"5,207.19",Yes
Communities & Local Government,DCLG,12/11/2013,Work In Progress Pre-Cert 40373 Spend,Neighbourhoods,BARNSLEY METROPOLITAN BC,,Public Bodies,,,7600006689,Revenue Grant To Be Paid,S70 9OO,"60,127.22",Yes
Communities & Local Government,DCLG,12/11/2013,Work In Progress Pre-Cert 40373 Spend,Neighbourhoods,BARNSLEY METROPOLITAN BC,,Public Bodies,,,7600006715,Revenue Grant To Be Paid,S70 9OO,"25,448.85",Yes
Communities & Local Government,DCLG,12/11/2013,Work In Progress Pre-Cert 40373 Spend,Neighbourhoods,BRADFORD ENTERPRISE AGENCY LIMITED,,Micro,,,7600006687,Revenue Grant To Be Paid,BD1 0AH,"4,506.20",Yes
Communities & Local Government,DCLG,12/11/2013,Work In Progress Pre-Cert 40373 Spend,Neighbourhoods,BRADFORD ENTERPRISE AGENCY LIMITED,,Micro,,,7600006703,Revenue Grant To Be Paid,BD1 0AH,"2,544.63",Yes
Communities & Local Government,DCLG,12/11/2013,Work In Progress Pre-Cert 40373 Spend,Neighbourhoods,CARBON LIMITING TECHNOLOGIES LTD,,Small,,,7600006696,Revenue Grant To Be Paid,GU51 5SY,"14,370.29",Yes
Communities & Local Government,DCLG,12/11/2013,Work In Progress Pre-Cert 40373 Spend,Neighbourhoods,DONCASTER METROPOLITAN BC,,,,,7600006711,Revenue Grant To Be Paid,DN1 1DE,"67,377.71",Yes
Communities & Local Government,DCLG,12/11/2013,Work In Progress Pre-Cert 40373 Spend,Neighbourhoods,DONCASTER METROPOLITAN BC,,,,,7600006712,Revenue Grant To Be Paid,DN1 1DE,"63,924.64",Yes
Communities & Local Government,DCLG,12/11/2013,Work In Progress Pre-Cert 40373 Spend,Neighbourhoods,GROUNDWORK SHEFFIELD,Yes,Small,,,7600006705,Revenue Grant To Be Paid,S1 4DP,"4,186.14",Yes
Communities & Local Government,DCLG,12/11/2013,Work In Progress Pre-Cert 40373 Spend,Neighbourhoods,GROUNDWORK SHEFFIELD,Yes,Small,,,7600006717,Revenue Grant To Be Paid,S1 4DP,"3,964.93",Yes
Communities & Local Government,DCLG,12/11/2013,Work In Progress Pre-Cert 40373 Spend,Neighbourhoods,INSTITUTE FOR SUSTAINABILITY,,Small,,,7600006730,Revenue Grant To Be Paid,N1 6AH,"15,580.73",Yes
Communities & Local Government,DCLG,12/11/2013,Work In Progress Pre-Cert 40373 Spend,Neighbourhoods,ISLE OF WIGHT COUNCIL,,Public Bodies,,,7600006726,Revenue Grant To Be Paid,PO30 1UD,"11,020.03",Yes
Communities & Local Government,DCLG,12/11/2013,Work In Progress Pre-Cert 40373 Spend,Neighbourhoods,LEEDS CITY COUNCIL,,,,,7600006693,Revenue Grant To Be Paid,LS1 1UR,"4,836.17",Yes
Communities & Local Government,DCLG,12/11/2013,Work In Progress Pre-Cert 40373 Spend,Neighbourhoods,MARKETING DERBY,,Micro,,,7600006701,Revenue Grant To Be Paid,DE24 8QR,"22,522.48",Yes
Communities & Local Government,DCLG,12/11/2013,Work In Progress Pre-Cert 40373 Spend,Neighbourhoods,NGAGE SOLUTIONS LTD,,Medium,,,7600006710,Revenue Grant To Be Paid,HP14 4BF,"6,619.00",Yes
Communities & Local Government,DCLG,12/11/2013,Work In Progress Pre-Cert 40373 Spend,Neighbourhoods,NORFOLK & WAVENEY ENTERPRISE SERV'S,,Medium,,,7600006729,Revenue Grant To Be Paid,NR2 1JH,"35,604.63",Yes
Communities & Local Government,DCLG,12/11/2013,Work In Progress Pre-Cert 40373 Spend,Neighbourhoods,NORTH EAST LINCOLNSHIRE COUNCIL,,Public Bodies,,,7600006690,Revenue Grant To Be Paid,DN31 1HN,"5,709.92",Yes
Communities & Local Government,DCLG,12/11/2013,Work In Progress Pre-Cert 40373 Spend,Neighbourhoods,NORTH EAST LINCOLNSHIRE COUNCIL,,Public Bodies,,,7600006691,Revenue Grant To Be Paid,DN31 1HN,"35,165.11",Yes
Communities & Local Government,DCLG,12/11/2013,Work In Progress Pre-Cert 40373 Spend,Neighbourhoods,PRINCES TRUST,,Large,,,7600006708,Revenue Grant To Be Paid,LS2 8NG,"11,881.88",Yes
Communities & Local Government,DCLG,12/11/2013,Work In Progress Pre-Cert 40373 Spend,Neighbourhoods,PRINCES TRUST,,Large,,,7600006709,Revenue Grant To Be Paid,LS2 8NG,"5,492.09",Yes
Communities & Local Government,DCLG,12/11/2013,Work In Progress Pre-Cert 40373 Spend,Neighbourhoods,PRINCES TRUST,,Large,,,7600006721,Revenue Grant To Be Paid,LS2 8NG,"12,324.59",Yes
Communities & Local Government,DCLG,12/11/2013,Work In Progress Pre-Cert 40373 Spend,Neighbourhoods,PRINCES TRUST,,Large,,,7600006722,Revenue Grant To Be Paid,LS2 8NG,"5,473.25",Yes
Communities & Local Government,DCLG,12/11/2013,Work In Progress Pre-Cert 40373 Spend,Neighbourhoods,ROTHERHAM METROPOLITAN BC,,,,,7600006686,Revenue Grant Clawback Offset,S65 1DJ,"-1,667.96",Yes
Communities & Local Government,DCLG,12/11/2013,Work In Progress Pre-Cert 40373 Spend,Neighbourhoods,ROTHERHAM METROPOLITAN BC,,,,,7600006686,Revenue Grant To Be Paid,S65 1DJ,"8,822.52",Yes
Communities & Local Government,DCLG,12/11/2013,Work In Progress Pre-Cert 40373 Spend,Neighbourhoods,SCARBOROUGH BOROUGH COUNCIL,,,,,7600006723,Revenue Grant To Be Paid,YO11 2HG,"16,894.01",Yes
Communities & Local Government,DCLG,12/11/2013,Work In Progress Pre-Cert 40373 Spend,Neighbourhoods,SHEFFIELD CITY COUNCIL,,,,,7600006685,Revenue Grant To Be Paid,S1 2SH,"31,695.51",Yes
Communities & Local Government,DCLG,12/11/2013,Work In Progress Pre-Cert 40373 Spend,Neighbourhoods,SHEFFIELD CITY COUNCIL,,,,,7600006688,Revenue Grant To Be Paid,S1 2SH,"15,621.07",Yes
Communities & Local Government,DCLG,12/11/2013,Work In Progress Pre-Cert 40373 Spend,Neighbourhoods,SHEFFIELD CITY COUNCIL,,,,,7600006692,Revenue Grant To Be Paid,S1 2SH,"28,539.30",Yes
Communities & Local Government,DCLG,12/11/2013,Work In Progress Pre-Cert 40373 Spend,Neighbourhoods,SHEFFIELD CITY COUNCIL,,,,,7600006719,Revenue Grant To Be Paid,S1 2SH,"17,368.55",Yes
Communities & Local Government,DCLG,12/11/2013,Work In Progress Pre-Cert 40373 Spend,Neighbourhoods,SHEFFIELD HALLAM UNIVERSITY,,,,,7600006698,Revenue Grant Clawback Offset,S1 1WB,-102.29,Yes
Communities & Local Government,DCLG,12/11/2013,Work In Progress Pre-Cert 40373 Spend,Neighbourhoods,SHEFFIELD HALLAM UNIVERSITY,,,,,7600006698,Revenue Grant To Be Paid,S1 1WB,"29,872.92",Yes
Communities & Local Government,DCLG,12/11/2013,Work In Progress Pre-Cert 40373 Spend,Neighbourhoods,SHEFFIELD HALLAM UNIVERSITY,,,,,7600006699,Revenue Grant To Be Paid,S1 1WB,"18,822.37",Yes
Communities & Local Government,DCLG,12/11/2013,Work In Progress Pre-Cert 40373 Spend,Neighbourhoods,SHEFFIELD HALLAM UNIVERSITY,,,,,7600006700,Revenue Grant To Be Paid,S1 1WB,"7,385.91",Yes
Communities & Local Government,DCLG,12/11/2013,Work In Progress Pre-Cert 40373 Spend,Neighbourhoods,SHEFFIELD HALLAM UNIVERSITY,,,,,7600006716,Revenue Grant Clawback Offset,S1 1WB,-51.28,Yes
Communities & Local Government,DCLG,12/11/2013,Work In Progress Pre-Cert 40373 Spend,Neighbourhoods,SHEFFIELD HALLAM UNIVERSITY,,,,,7600006716,Revenue Grant To Be Paid,S1 1WB,"11,977.37",Yes
Communities & Local Government,DCLG,12/11/2013,Work In Progress Pre-Cert 40373 Spend,Neighbourhoods,WAKEFIELD COUNCIL,,Large,,,7600006704,Revenue Grant To Be Paid,WF1 2EB,"16,497.93",Yes
Communities & Local Government,DCLG,12/11/2013,Work In Progress Pre-Cert 40373 Spend,Neighbourhoods,WAKEFIELD COUNCIL,,Large,,,7600006720,Revenue Grant To Be Paid,WF1 2EB,"22,390.06",Yes
Communities & Local Government,DCLG,12/11/2013,Work In Progress Pre-Cert 40373 Spend,Neighbourhoods,YORK UNIVERSITY,,Large,,,7600006702,Revenue Grant To Be Paid,YO10 5DD,"10,133.10",Yes
Communities & Local Government,DCLG,12/11/2013,Work In Progress Pre-Cert 40373 Spend,Neighbourhoods,YORKS & HUMBER PEOPLE UTD AGAINST C,,,,,7600006713,Revenue Grant To Be Paid,S1 2AH,"40,026.09",Yes
Communities & Local Government,DCLG,12/11/2013,Work In Progress Pre-Cert 40373 Spend,Neighbourhoods,YORKS & HUMBER PEOPLE UTD AGAINST C,,,,,7600006714,Revenue Grant To Be Paid,S1 2AH,"22,216.22",Yes
Communities & Local Government,DCLG,12/11/2013,Work In Progress Pre-Cert 40373 Spend,Neighbourhoods,YTKO LIMITED,,,,,7600006694,Revenue Grant To Be Paid,CB4 2QH,"49,884.08",Yes
Communities & Local Government,DCLG,12/11/2013,Work In Progress Pre-Cert 40373 Spend,Neighbourhoods,YTKO LIMITED,,,,,7600006695,Revenue Grant To Be Paid,CB4 2QH,"15,389.48",Yes
Communities & Local Government,DCLG,12/11/2013,Work In Progress Pre-Cert 40467 Spend,Neighbourhoods,BRADFORD ENTERPRISE AGENCY LIMITED,,Micro,,,7600006687,Capital Grant To Be Paid,BD1 0AH,"6,087.59",Yes
Communities & Local Government,DCLG,12/11/2013,Work In Progress Pre-Cert 40467 Spend,Neighbourhoods,DONCASTER METROPOLITAN BC,,,,,7600006697,Capital Grant To Be Paid,DN1 1DE,"16,501.57",Yes
Communities & Local Government,DCLG,12/11/2013,Work In Progress Pre-Cert 40467 Spend,Neighbourhoods,DONCASTER METROPOLITAN BC,,,,,7600006706,Capital Grant To Be Paid,DN1 1DE,"2,540.68",Yes
Communities & Local Government,DCLG,12/11/2013,Work In Progress Pre-Cert 40467 Spend,Neighbourhoods,DRANSFIELD PROPERTIES LTD,,,,,7600006727,Capital Grant To Be Paid,S75 3DP,"155,580.64",Yes
Communities & Local Government,DCLG,12/11/2013,Work In Progress Pre-Cert 40467 Spend,Neighbourhoods,HORNCASTLE GROUP PLC,,Medium,,,7600006724,Capital Grant To Be Paid,HU15 2AT,"130,100.25",Yes
Communities & Local Government,DCLG,12/11/2013,Work In Progress Pre-Cert 40467 Spend,Neighbourhoods,INSTITUTE FOR SUSTAINABILITY,,Small,,,7600006730,Capital Grant To Be Paid,N1 6AH,"134,234.56",Yes
Communities & Local Government,DCLG,12/11/2013,Work In Progress Pre-Cert 40467 Spend,Neighbourhoods,ISPACE INVESTMENTS LLP,,Micro,,,7600006725,Capital Grant To Be Paid,YO43 4RW,923.99,Yes
Communities & Local Government,DCLG,12/11/2013,Work In Progress Pre-Cert 40467 Spend,Neighbourhoods,LEEDS CITY COUNCIL,,,,,7600006684,Capital Grant To Be Paid,LS1 2EZ,"7,479.79",Yes
Communities & Local Government,DCLG,12/11/2013,Work In Progress Pre-Cert 40467 Spend,Neighbourhoods,LIVERPOOL CITY COUNCIL,,,,,2300002059,Recovery of irregular payment,L2 2DH,"-119,087.45",Yes
Communities & Local Government,DCLG,12/11/2013,Work In Progress Pre-Cert 40467 Spend,Neighbourhoods,PROPERTY ALLIANCE GROUP (PAG),,,,,7600006728,Capital Grant To Be Paid,M17 1QS,"334,104.15",Yes
Communities & Local Government,DCLG,12/11/2013,Work In Progress Pre-Cert 40467 Spend,Neighbourhoods,SHEFFIELD CITY COUNCIL,,,,,7600006688,Capital Grant Clawback Offset,S1 2SH,"-10,053.30",Yes
Communities & Local Government,DCLG,12/11/2013,Work In Progress Pre-Cert 40467 Spend,Neighbourhoods,SHEFFIELD CITY COUNCIL,,,,,7600006688,Capital Grant To Be Paid,S1 2SH,"10,697.94",Yes
Communities & Local Government,DCLG,12/11/2013,Work In Progress Pre-Cert 40467 Spend,Neighbourhoods,SHEFFIELD CITY COUNCIL,,,,,7600006719,Capital Grant Clawback Offset,S1 2SH,"-20,000.00",Yes
Communities & Local Government,DCLG,12/11/2013,Work In Progress Pre-Cert 40467 Spend,Neighbourhoods,SHEFFIELD CITY COUNCIL,,,,,7600006719,Capital Grant To Be Paid,S1 2SH,"5,582.94",Yes
Communities & Local Government,DCLG,12/11/2013,Work In Progress Pre-Cert 40467 Spend,Neighbourhoods,YORK UNIVERSITY,,Large,,,7600006702,Capital Grant To Be Paid,YO10 5DD,"265,472.36",Yes
Communities & Local Government,DCLG,13/11/2013,Agency Staff,Finance & Corporate Services,CAPITA RESOURCING LTD,,Large,,215581006,5106198605,Expenses,SL6 1DP,603.66,
Communities & Local Government,DCLG,13/11/2013,Agency Staff,Finance & Corporate Services,CAPITA RESOURCING LTD,,Large,,215581006,5106198605,Interim Manager - Ext 01,SL6 1DP,"2,235.60",
Communities & Local Government,DCLG,13/11/2013,Agency Staff,Finance & Corporate Services,CAPITA RESOURCING LTD,,Large,,215581006,5106198611,CPD 0492030 Capita MSP,SL6 1DP,"1,275.00",
Communities & Local Government,DCLG,13/11/2013,Agency Staff,Finance & Corporate Services,CAPITA RESOURCING LTD,,Large,,215581006,5106198612,Interim Manager,SL6 1DP,"2,862.00",
Communities & Local Government,DCLG,13/11/2013,Agency Staff,Finance & Corporate Services,CAPITA RESOURCING LTD,,Large,,215581006,5106198615,Extension of Interim Mgr,SL6 1DP,"5,940.00",
Communities & Local Government,DCLG,13/11/2013,Agency Staff,Finance & Corporate Services,CAPITA RESOURCING LTD,,Large,,215581006,5106198616,Interim Manager,SL6 1DP,"2,653.81",
Communities & Local Government,DCLG,13/11/2013,Agency Staff,Finance & Corporate Services,CAPITA RESOURCING LTD,,Large,,215581006,5106198629,Interim Manager (IAS),SL6 1DP,"1,742.40",
Communities & Local Government,DCLG,13/11/2013,Agency Staff,Finance & Corporate Services,SBS GROUP (UK) LTD,,Large,,423935241,5106198641,SAP Technical Support,EC1N 8UA,"14,893.20",
Communities & Local Government,DCLG,13/11/2013,Agency Staff,Localism,CAPITA RESOURCING LTD,,Large,,215581006,5106198626,Interim Manager (Ext 01),SL6 1DP,"2,995.32",
Communities & Local Government,DCLG,13/11/2013,Agency Staff,Neighbourhoods,CAPITA RESOURCING LTD,,Large,,215581006,5106198603,Interim Manager,SL6 1DP,318.00,
Communities & Local Government,DCLG,13/11/2013,Agency Staff,Neighbourhoods,CAPITA RESOURCING LTD,,Large,,215581006,5106198606,Interim Manager - Ext 01,SL6 1DP,"2,375.94",
Communities & Local Government,DCLG,13/11/2013,Agency Staff,Neighbourhoods,CAPITA RESOURCING LTD,,Large,,215581006,5106198608,Interim Manager - Ext 01,SL6 1DP,"1,242.00",
Communities & Local Government,DCLG,13/11/2013,Agency Staff,Neighbourhoods,CAPITA RESOURCING LTD,,Large,,215581006,5106198609,Interim Manager (Expenses),SL6 1DP,467.04,
Communities & Local Government,DCLG,13/11/2013,Agency Staff,Neighbourhoods,CAPITA RESOURCING LTD,,Large,,215581006,5106198609,Interim Manager - Ext 01,SL6 1DP,"3,825.00",
Communities & Local Government,DCLG,13/11/2013,Agency Staff,Neighbourhoods,CAPITA RESOURCING LTD,,Large,,215581006,5106198614,Expenses,SL6 1DP,57.90,
Communities & Local Government,DCLG,13/11/2013,Agency Staff,Neighbourhoods,CAPITA RESOURCING LTD,,Large,,215581006,5106198614,Interim Manager - Ext 01,SL6 1DP,"1,794.72",
Communities & Local Government,DCLG,13/11/2013,Agency Staff,Neighbourhoods,CAPITA RESOURCING LTD,,Large,,215581006,5106198616,Expenses INTERREG 2Seas-Territorial Faci,SL6 1DP,434.10,
Communities & Local Government,DCLG,13/11/2013,Agency Staff,Neighbourhoods,CAPITA RESOURCING LTD,,Large,,215581006,5106198619,Contractor ERDF,SL6 1DP,"1,530.00",
Communities & Local Government,DCLG,13/11/2013,Agency Staff,Neighbourhoods,CAPITA RESOURCING LTD,,Large,,215581006,5106198619,Contractor ERDF Expenses,SL6 1DP,58.08,
Communities & Local Government,DCLG,13/11/2013,Agency Staff,Neighbourhoods,CAPITA RESOURCING LTD,,Large,,215581006,5106198621,Expenses,SL6 1DP,136.52,
Communities & Local Government,DCLG,13/11/2013,Agency Staff,Neighbourhoods,CAPITA RESOURCING LTD,,Large,,215581006,5106198621,Interim Manager - Ext 01,SL6 1DP,"1,530.00",
Communities & Local Government,DCLG,13/11/2013,Agency Staff,Neighbourhoods,CAPITA RESOURCING LTD,,Large,,215581006,5106198622,Interim Manager - Ext 01,SL6 1DP,"1,530.00",
Communities & Local Government,DCLG,13/11/2013,Agency Staff,Neighbourhoods,CAPITA RESOURCING LTD,,Large,,215581006,5106198623,Expenses,SL6 1DP,63.30,
Communities & Local Government,DCLG,13/11/2013,Agency Staff,Neighbourhoods,CAPITA RESOURCING LTD,,Large,,215581006,5106198623,Interim Manager - Ext 01,SL6 1DP,"1,552.50",
Communities & Local Government,DCLG,13/11/2013,Agency Staff,Neighbourhoods,CAPITA RESOURCING LTD,,Large,,215581006,5106198624,Interim Manager,SL6 1DP,"2,035.20",
Communities & Local Government,DCLG,13/11/2013,Agency Staff,Neighbourhoods,CAPITA RESOURCING LTD,,Large,,215581006,5106198627,Interim Manager - Ext 01,SL6 1DP,"2,018.28",
Communities & Local Government,DCLG,13/11/2013,Current Grants to Non Profit Bodies,Neighbourhoods,TPAS LTD,Yes,Small,,399552603,2100236347,Tenant Central - tenant training and support progr,M16 0LD,"11,399.00",Yes
Communities & Local Government,DCLG,13/11/2013,Current Grants to Non Profit Bodies,Neighbourhoods,ZERO CARBON HUB LTD,Yes,Small,,211345158,2100236348,Funding to lead work programme 1April to 30June 13,MK5 8FP,"76,000.00",Yes
Communities & Local Government,DCLG,13/11/2013,IT - Software Maintenance,Finance & Corporate Services,READSOFT LTD,,Medium,,578437485,5106198644,Readsoft Invoices upgrade,MK9 1BZ,"1,440.00",
Communities & Local Government,DCLG,13/11/2013,IT Maintenance,Finance & Corporate Services,VOCA LINK,,Large,,217397207,5106198660,20% BACS sort code ISCD for SAP,WD3 1FX,420.00,
Communities & Local Government,DCLG,13/11/2013,Legal Fees,Localism,FIELD FISHER WATERHOUSE LLP,,Large,,349487996,5106198673,Legal Advice,EC3N 2AA,"1,041.64",
Communities & Local Government,DCLG,13/11/2013,Mobile phone costs,Localism,BABCOCK CRITICAL SERVICES LTD,,Large,,641006945,5106198620,Orange Airtime Bills For ND Flt-2013/14,NG15 0DR,752.15,
Communities & Local Government,DCLG,13/11/2013,Office machinery consumables,Finance & Corporate Services,X M A LTD,,Large,,298484148,5106198661,Delweekly Longbow Hp Black Print Cartrid,NG11 7EP,229.30,
Communities & Local Government,DCLG,13/11/2013,Office machinery consumables,Finance & Corporate Services,X M A LTD,,Large,,298484148,5106198661,Delweekly Longbow Hp Colour Laserjet 470,NG11 7EP,375.98,
Communities & Local Government,DCLG,13/11/2013,Physical Storage,Finance & Corporate Services,IRON MOUNTAIN (UK) LIMITED,,Large,,290040211,5106198646,Offsite storage - tapes,EH54 7DF,424.01,
Communities & Local Government,DCLG,13/11/2013,Physical Storage,Finance & Corporate Services,WILLIAMS LEA LIMITED,,Large,,393456413,5106198674,Document Storage,W2 6LG,"1,792.55",
Communities & Local Government,DCLG,13/11/2013,Printing,Finance & Corporate Services,STATIONERY OFFICE LTD,,Large,,779375633,5106198671,Statutory Instruments  publication,NR3 1PD,208.00,
Communities & Local Government,DCLG,13/11/2013,Printing,Finance & Corporate Services,STATIONERY OFFICE LTD,,Large,,779375633,5106198671,VAT chargeable printing services,NR3 1PD,130.00,
Communities & Local Government,DCLG,13/11/2013,Printing,Finance & Corporate Services,WILLIAMS LEA LIMITED,,Large,,393456413,5106198596,Year 2 Print services (0% VAT),W2 6LG,"1,477.61",
Communities & Local Government,DCLG,13/11/2013,Printing,Finance & Corporate Services,WILLIAMS LEA LIMITED,,Large,,393456413,5106198674,Year 2 Print services,W2 6LG,"4,093.99",
Communities & Local Government,DCLG,13/11/2013,Professional services,Finance & Corporate Services,GVA GRIMLEY LTD,,Large,,210158990,5106198561,Com-95 Disposal & Management of FSC,B1 2JB,"2,970.00",
Communities & Local Government,DCLG,13/11/2013,Research,Finance & Corporate Services,HEALTH & SAFETY LABORATORIES,,Public Bodies,,233542641,5106198637,Research - Mass Decontamination shower,SK17 9JN,"43,443.00",
Communities & Local Government,DCLG,13/11/2013,Research,Neighbourhoods,SURVEYMONKEY EUROPE SARL,,,,400864445,5106198555,Renewal of Survey Monkey Licence to enable online surveys to aid commercial revenues,2520,299.00,
Communities & Local Government,DCLG,13/11/2013,Security,Finance & Corporate Services,SIEMENS FINANCIAL SERVICES LTD,,Large,,225115880,5106198667,17 PCQ Rental-Security Equipment 2013/14,SL2 4JS,721.00,
Communities & Local Government,DCLG,13/11/2013,Subscriptions,Localism,BSI,,Large,,211210801,5106198613,technical library subscription,MK1 9EL,528.00,
Communities & Local Government,DCLG,13/11/2013,Telecoms equipment (non-capitalised),Finance & Corporate Services,DAMOVO UK LTD,,Large,,221481042,5106198597,LOGASnet/Steria room move,RH12 4QP,880.32,
Communities & Local Government,DCLG,13/11/2013,Training,Finance & Corporate Services,BADENOCH & CLARK,,Large,,227149267,5106198617,Coaching/Team Development Support,W1T 5AE,500.00,
Communities & Local Government,DCLG,13/11/2013,Training,Finance & Corporate Services,ILLUMINE LTD,,Micro,,458467479,5106198600,Think on Your Feet� Course,SL4 5JL,875.00,
Communities & Local Government,DCLG,13/11/2013,Training,Finance & Corporate Services,INSTITUTE OF INTERNAL AUDITORS,,Small,,292669967,5106198636,"Auditing Projects, Project Management an",SW4 7BX,920.00,
Communities & Local Government,DCLG,13/11/2013,Training,Finance & Corporate Services,INSTITUTE OF INTERNAL AUDITORS,,Small,,292669967,5106198670,Internal Auditing - A Beginner's Course,SW4 7BX,"1,650.00",
Communities & Local Government,DCLG,13/11/2013,Training,Finance & Corporate Services,WHITEHALL & INDUSTRY GROUP,,Small,,385853957,5106198639,Women�s Leadership Seminar,SW1H 9EX,650.00,
Communities & Local Government,DCLG,13/11/2013,Training,Finance & Corporate Services,WHITEHALL & INDUSTRY GROUP,,Small,,385853957,5106198639,Women�s Leadership Seminar,SW1H 9EX,650.00,
Communities & Local Government,DCLG,13/11/2013,Training,Finance & Corporate Services,WHITEHALL & INDUSTRY GROUP,,Small,,385853957,5106198639,Women�s Leadership Seminar,SW1H 9EX,650.00,
Communities & Local Government,DCLG,13/11/2013,Water,Finance & Corporate Services,SEVERN TRENT WATER LTD,,Large,,234404465,5106198649,EM RCC Water Supply 2013-14,CV3 9FJ,448.36,
Communities & Local Government,DCLG,13/11/2013,Water,Finance & Corporate Services,YORKSHIRE WATER,,Large,,236623377,5106198648,"2013/14 Queen Street, Leeds Annual Water",BD3 7YD,287.69,
Communities & Local Government,DCLG,13/11/2013,Work In Progress Pre-Cert 40373 Spend,Neighbourhoods,ANGLIA RUSKIN UNIVERSITY,,,,,7600006748,Revenue Grant To Be Paid,CM1 1SQ,"2,752.16",Yes
Communities & Local Government,DCLG,13/11/2013,Work In Progress Pre-Cert 40373 Spend,Neighbourhoods,ANGLIA RUSKIN UNIVERSITY,,,,,7600006749,Revenue Grant To Be Paid,CM1 1SQ,"3,820.22",Yes
Communities & Local Government,DCLG,13/11/2013,Work In Progress Pre-Cert 40373 Spend,Neighbourhoods,BIRMINGHAM CITY COUNCIL (NOT RATES),,Large,,,7600006741,Revenue Grant To Be Paid,B1 1BB,"5,505.35",Yes
Communities & Local Government,DCLG,13/11/2013,Work In Progress Pre-Cert 40373 Spend,Neighbourhoods,BIRMINGHAM CITY COUNCIL (NOT RATES),,Large,,,7600006757,Revenue Grant To Be Paid,B1 1BB,"7,212.92",Yes
Communities & Local Government,DCLG,13/11/2013,Work In Progress Pre-Cert 40373 Spend,Neighbourhoods,BIRMINGHAM SCIENCE PARK ASTON,,Small,,,7600006747,Revenue Grant To Be Paid,B7 4BB,"9,614.62",Yes
Communities & Local Government,DCLG,13/11/2013,Work In Progress Pre-Cert 40373 Spend,Neighbourhoods,BRECKLAND COUNCIL,,,,,7600006745,Revenue Grant To Be Paid,NR19 1EE,"8,510.47",Yes
Communities & Local Government,DCLG,13/11/2013,Work In Progress Pre-Cert 40373 Spend,Neighbourhoods,CHESTER UNIVERSITY,,,,,7600006734,Revenue Grant To Be Paid,WA2 0DB,"2,952.90",Yes
Communities & Local Government,DCLG,13/11/2013,Work In Progress Pre-Cert 40373 Spend,Neighbourhoods,CLIMATE ENERGY (NFP) LTD,,Small,,,7600006740,Revenue Grant To Be Paid,CR0 6BA,"6,437.53",Yes
Communities & Local Government,DCLG,13/11/2013,Work In Progress Pre-Cert 40373 Spend,Neighbourhoods,COVENTRY & WARKS CO-OP DEVEL AGENCY,,Small,,,7600006743,Revenue Grant To Be Paid,CV1 5EA,"16,324.73",Yes
Communities & Local Government,DCLG,13/11/2013,Work In Progress Pre-Cert 40373 Spend,Neighbourhoods,COVENTRY UNIVERSITY,,Large,,,7600006764,Revenue Grant To Be Paid,CV1 5FB,"19,907.56",Yes
Communities & Local Government,DCLG,13/11/2013,Work In Progress Pre-Cert 40373 Spend,Neighbourhoods,COVENTRY UNIVERSITY ENTERPRISES LTD,,Medium,,,7600006752,Revenue Grant To Be Paid,CV1 2TT,"22,709.42",Yes
Communities & Local Government,DCLG,13/11/2013,Work In Progress Pre-Cert 40373 Spend,Neighbourhoods,COVENTRY UNIVERSITY ENTERPRISES LTD,,Medium,,,7600006766,Revenue Grant To Be Paid,CV1 2TT,"53,677.40",Yes
Communities & Local Government,DCLG,13/11/2013,Work In Progress Pre-Cert 40373 Spend,Neighbourhoods,COVENTRY UNIVERSITY ENTERPRISES LTD,,Medium,,,7600006767,Revenue Grant To Be Paid,CV1 2TT,"28,597.37",Yes
Communities & Local Government,DCLG,13/11/2013,Work In Progress Pre-Cert 40373 Spend,Neighbourhoods,COVENTRY UNIVERSITY ENTERPRISES LTD,,Medium,,,7600006768,Revenue Grant To Be Paid,CV1 2TT,"46,318.20",Yes
Communities & Local Government,DCLG,13/11/2013,Work In Progress Pre-Cert 40373 Spend,Neighbourhoods,COVENTRY UNIVERSITY ENTERPRISES LTD,,Medium,,,7600006769,Revenue Grant To Be Paid,CV1 2TT,"18,075.25",Yes
Communities & Local Government,DCLG,13/11/2013,Work In Progress Pre-Cert 40373 Spend,Neighbourhoods,CUMBRIA CHAMBER OF COMMERCE,,Small,,,7600006754,Revenue Grant To Be Paid,CA3 8DA,"31,796.01",Yes
Communities & Local Government,DCLG,13/11/2013,Work In Progress Pre-Cert 40373 Spend,Neighbourhoods,DERBY UNIVERSITY,,Large,,,7600006765,Revenue Grant To Be Paid,DE22 1XB,"12,532.83",Yes
Communities & Local Government,DCLG,13/11/2013,Work In Progress Pre-Cert 40373 Spend,Neighbourhoods,LANCASTER UNIVERISTY,,,,,7600006738,Revenue Grant To Be Paid,LA1 4YW,"5,364.52",Yes
Communities & Local Government,DCLG,13/11/2013,Work In Progress Pre-Cert 40373 Spend,Neighbourhoods,LANCASTER UNIVERISTY,,,,,7600006739,Revenue Grant To Be Paid,LA1 4YW,"31,299.00",Yes
Communities & Local Government,DCLG,13/11/2013,Work In Progress Pre-Cert 40373 Spend,Neighbourhoods,LEICESTER CITY COUNCIL,,Large,,,7600006772,Revenue Grant To Be Paid,LE1 6ZG,"9,620.57",Yes
Communities & Local Government,DCLG,13/11/2013,Work In Progress Pre-Cert 40373 Spend,Neighbourhoods,MERSEY MARTIME LTD,,Micro,,,7600006736,Revenue Grant To Be Paid,CH41 5LH,"11,216.88",Yes
Communities & Local Government,DCLG,13/11/2013,Work In Progress Pre-Cert 40373 Spend,Neighbourhoods,MERSEY MARTIME LTD,,Micro,,,7600006756,Revenue Grant To Be Paid,CH41 5LH,"12,414.54",Yes
Communities & Local Government,DCLG,13/11/2013,Work In Progress Pre-Cert 40373 Spend,Neighbourhoods,MERSEY MARTIME LTD,,Micro,,,7600006758,Revenue Grant To Be Paid,CH41 5LH,"11,612.92",Yes
Communities & Local Government,DCLG,13/11/2013,Work In Progress Pre-Cert 40373 Spend,Neighbourhoods,MERSEY MARTIME LTD,,Micro,,,7600006771,Revenue Grant To Be Paid,CH41 5LH,"9,585.13",Yes
Communities & Local Government,DCLG,13/11/2013,Work In Progress Pre-Cert 40373 Spend,Neighbourhoods,NAT INS OF AGRICULTURAL BOTANY TRUS,,Medium,,,7600006751,Revenue Grant To Be Paid,CB3 0LE,"8,638.90",Yes
Communities & Local Government,DCLG,13/11/2013,Work In Progress Pre-Cert 40373 Spend,Neighbourhoods,NORTH EAST FINANCE (HOLDCO),,,,,7600006744,Revenue Grant To Be Paid,NE1 4AD,"390,138.14",Yes
Communities & Local Government,DCLG,13/11/2013,Work In Progress Pre-Cert 40373 Spend,Neighbourhoods,NORTH WEST AEROSPACE ALLIANCE,,,,,7600006759,Revenue Grant Clawback Offset,BB9 9BT,"-5,331.10",Yes
Communities & Local Government,DCLG,13/11/2013,Work In Progress Pre-Cert 40373 Spend,Neighbourhoods,NORTH WEST AEROSPACE ALLIANCE,,,,,7600006759,Revenue Grant To Be Paid,BB9 9BT,"41,550.31",Yes
Communities & Local Government,DCLG,13/11/2013,Work In Progress Pre-Cert 40373 Spend,Neighbourhoods,NTH STAFFS CHAMBER OF COMM & IND,,Small,,,7600006742,Revenue Grant To Be Paid,ST1 5BE,"9,915.21",Yes
Communities & Local Government,DCLG,13/11/2013,Work In Progress Pre-Cert 40373 Spend,Neighbourhoods,SERCO REGIONAL SERVICES LTD,,,,,7600006737,Revenue Grant To Be Paid,PL6 8BT,"19,823.14",Yes
Communities & Local Government,DCLG,13/11/2013,Work In Progress Pre-Cert 40373 Spend,Neighbourhoods,SHROPSHIRE COUNCIL,,Public Bodies,,,7600006755,Revenue Grant To Be Paid,SY2 6ND,"15,211.75",Yes
Communities & Local Government,DCLG,13/11/2013,Work In Progress Pre-Cert 40373 Spend,Neighbourhoods,SOCIAL ENTERPRISE NORTH WEST,,,,,7600006762,Revenue Grant To Be Paid,L2 2AH,"179,541.10",Yes
Communities & Local Government,DCLG,13/11/2013,Work In Progress Pre-Cert 40373 Spend,Neighbourhoods,SOLIHULL METROPOLITAN BC,,Large,,,7600006746,Revenue Grant To Be Paid,B91 3QS,"15,424.23",Yes
Communities & Local Government,DCLG,13/11/2013,Work In Progress Pre-Cert 40373 Spend,Neighbourhoods,SOLIHULL METROPOLITAN BC,,Large,,,7600006770,Revenue Grant To Be Paid,B91 3QS,"42,332.11",Yes
Communities & Local Government,DCLG,13/11/2013,Work In Progress Pre-Cert 40373 Spend,Neighbourhoods,STOCKPORT MBC,,Large,,,7600006732,Revenue Grant To Be Paid,SK1 3XE,"15,809.29",Yes
Communities & Local Government,DCLG,13/11/2013,Work In Progress Pre-Cert 40373 Spend,Neighbourhoods,STOCKPORT MBC,,Large,,,7600006735,Revenue Grant To Be Paid,SK1 3XE,"23,201.90",Yes
Communities & Local Government,DCLG,13/11/2013,Work In Progress Pre-Cert 40373 Spend,Neighbourhoods,STOKE-ON-TRENT CITY COUNCIL,,Large,,,7600006760,Revenue Grant To Be Paid,ST4 1HP,"1,380.26",Yes
Communities & Local Government,DCLG,13/11/2013,Work In Progress Pre-Cert 40373 Spend,Neighbourhoods,STOKE-ON-TRENT CITY COUNCIL,,Large,,,7600006761,Revenue Grant To Be Paid,ST4 1HP,"2,181.72",Yes
Communities & Local Government,DCLG,13/11/2013,Work In Progress Pre-Cert 40373 Spend,Neighbourhoods,WASTE & RESOURCES ACTION PROG'M,,Small,,,7600006750,Revenue Grant To Be Paid,OX16 0AH,828.98,Yes
Communities & Local Government,DCLG,13/11/2013,Work In Progress Pre-Cert 40467 Spend,Neighbourhoods,BIRMINGHAM CITY COUNCIL (NOT RATES),,Large,,,7600006757,Capital Grant To Be Paid,B1 1BB,"6,889.96",Yes
Communities & Local Government,DCLG,13/11/2013,Work In Progress Pre-Cert 40467 Spend,Neighbourhoods,COVENTRY UNIVERSITY,,Large,,,7600006764,Capital Grant To Be Paid,CV1 5FB,"1,376.40",Yes
Communities & Local Government,DCLG,13/11/2013,Work In Progress Pre-Cert 40467 Spend,Neighbourhoods,COVENTRY UNIVERSITY ENTERPRISES LTD,,Medium,,,7600006766,Capital Grant To Be Paid,CV1 2TT,"1,625.09",Yes
Communities & Local Government,DCLG,13/11/2013,Work In Progress Pre-Cert 40467 Spend,Neighbourhoods,COVENTRY UNIVERSITY ENTERPRISES LTD,,Medium,,,7600006768,Capital Grant To Be Paid,CV1 2TT,"19,926.00",Yes
Communities & Local Government,DCLG,13/11/2013,Work In Progress Pre-Cert 40467 Spend,Neighbourhoods,FAIRFORD ELECTRONICS LTD,,Small,,,7600006733,Capital Grant To Be Paid,PL21 9GG,"26,273.11",Yes
Communities & Local Government,DCLG,13/11/2013,Work In Progress Pre-Cert 40467 Spend,Neighbourhoods,SHAWBROOK DEVELOPMENTS LTD,,Small,,,7600006763,Capital Grant To Be Paid,LS20 9AA,"309,421.61",Yes
Communities & Local Government,DCLG,13/11/2013,Work In Progress Pre-Cert 40467 Spend,Neighbourhoods,SPEKE BUSINESS PARK LTD,,,,,7600006753,Capital Grant To Be Paid,BB9 5SP,"252,057.91",Yes
Communities & Local Government,DCLG,13/11/2013,Work In Progress Pre-Cert 40467 Spend,Neighbourhoods,WASTE & RESOURCES ACTION PROG'M,,Small,,,7600006750,Capital Grant To Be Paid,OX16 0AH,"296,050.29",Yes
Communities & Local Government,DCLG,14/11/2013,Advertising,Finance & Corporate Services,DATA LATERAL LTD,,Medium,,348077673,5106198722,Right to Buy Phase 2,NG17 5FB,"49,721.36",
Communities & Local Government,DCLG,14/11/2013,Advertising,Finance & Corporate Services,M4C-DIVISION OF GROUPM UK LTD,,Large,,734728194,5106198729,Asbof fee,WC1X 8RX,28.10,
Communities & Local Government,DCLG,14/11/2013,Advertising,Finance & Corporate Services,M4C-DIVISION OF GROUPM UK LTD,,Large,,734728194,5106198729,RtB 2013/14 Digital Advertising Campaign,WC1X 8RX,"35,885.77",
Communities & Local Government,DCLG,14/11/2013,Agency Staff,Finance & Corporate Services,CAPITA RESOURCING LTD,,Large,,215581006,5106198681,Extension (1),SL6 1DP,"3,446.58",
Communities & Local Government,DCLG,14/11/2013,Agency Staff,Finance & Corporate Services,REED EMPLOYMENT SERVICES,,Large,,292193364,5106198699,PA admin = AWR,SW20 0BA,888.01,
Communities & Local Government,DCLG,14/11/2013,Agency Staff,Neighbourhoods,REED EMPLOYMENT SERVICES,,Large,,292193364,5106198700,POLICY SUPPORT FOR HGAH,SW20 0BA,"1,104.65",
Communities & Local Government,DCLG,14/11/2013,Agency Staff,Neighbourhoods,REED SPECIALIST RECRUITMENT LTD,,Large,,288656960,5106198696,interim manager,NN1 1UE,"1,032.91",
Communities & Local Government,DCLG,14/11/2013,Agency Staff,Neighbourhoods,REED SPECIALIST RECRUITMENT LTD,,Large,,288656960,5106198697,interim manager,NN1 1UE,"1,032.91",
Communities & Local Government,DCLG,14/11/2013,Current (non AEF) Grants to Local Authorities,Localism,GREATER LONDON AUTHORITY,,Public Bodies,,232112404,2600061858,GLA Communities Right to build,SE10 1AJ,"600,000.00",Yes
Communities & Local Government,DCLG,14/11/2013,Current (non AEF) Grants to Local Authorities,Neighbourhoods,FAREHAM BC,,Public Bodies,,228474144,2100236436,Resource Grant for Housing Development,PO16 7PU,"485,000.00",Yes
Communities & Local Government,DCLG,14/11/2013,Current (non AEF) Grants to Local Authorities,Strategic Performance Team,GREATER LONDON AUTHORITY,,Public Bodies,,232112404,2600061859,GLA Communities Right to build 13-14,SE10 1AJ,"1,250,000.00",Yes
Communities & Local Government,DCLG,14/11/2013,Fixed Maintenance,Finance & Corporate Services,BABCOCK SUPPORT SERVICES LTD,,Large,,233110530,5106198662,WM Wolv Fixed Maintainance 2013-14,BS34 8JH,"15,300.72",
Communities & Local Government,DCLG,14/11/2013,Fixed Maintenance,Finance & Corporate Services,BABCOCK SUPPORT SERVICES LTD,,Large,,233110530,5106198663,EoE Waterbeach Fixed Maintainanc 2,BS34 8JH,"15,300.72",
Communities & Local Government,DCLG,14/11/2013,Fixed Maintenance,Finance & Corporate Services,BABCOCK SUPPORT SERVICES LTD,,Large,,233110530,5106198664,SW Taunton Fixed Maintainance 2013,BS34 8JH,"15,300.72",
Communities & Local Government,DCLG,14/11/2013,Fixed Maintenance,Finance & Corporate Services,BABCOCK SUPPORT SERVICES LTD,,Large,,233110530,5106198665,EM Castle Don Fixed Maintainance 2,BS34 8JH,"15,300.72",
Communities & Local Government,DCLG,14/11/2013,Fixed Maintenance,Finance & Corporate Services,BABCOCK SUPPORT SERVICES LTD,,Large,,233110530,5106198666,Y&H Wakefield Fixed Maintainance2013-14,BS34 8JH,"15,300.72",
Communities & Local Government,DCLG,14/11/2013,Legal Fees,Neighbourhoods,HAMMONDS,,Large,,217493472,5106198707,Legal Advice,LS3 1ES,675.00,
Communities & Local Government,DCLG,14/11/2013,Legal Fees,Neighbourhoods,LEASE CONFERENCES LTD,,Small,,,5106198535,Legal Advice,W1T 7BN,"24,164.40",
Communities & Local Government,DCLG,14/11/2013,Physical Storage,Finance & Corporate Services,TNT UK LIMITED,,Large,,,5106198701,Offsite Records Storage FYR 13/14,BL10 9GR,254.33,
Communities & Local Government,DCLG,14/11/2013,Physical Storage,Finance & Corporate Services,TNT UK LIMITED,,Large,,,5106198702,Offsite Records Storage FYR 13/14,BL10 9GR,923.22,
Communities & Local Government,DCLG,14/11/2013,Physical Storage,Finance & Corporate Services,TNT UK LIMITED,,Large,,,5106198703,Offsite Records Storage FYR 13/14,BL10 9GR,"22,977.42",
Communities & Local Government,DCLG,14/11/2013,Physical Storage,Finance & Corporate Services,TNT UK LIMITED,,Large,,,5106198704,Offsite Records Storage FYR 13/14,BL10 9GR,360.13,
Communities & Local Government,DCLG,14/11/2013,Physical Storage,Finance & Corporate Services,TNT UK LIMITED,,Large,,,5106198705,Offsite Records Storage FYR 13/14,BL10 9GR,514.55,
Communities & Local Government,DCLG,14/11/2013,Physical Storage,Finance & Corporate Services,TNT UK LIMITED,,Large,,,5106198706,Offsite Records Storage FYR 13/14,BL10 9GR,306.37,
Communities & Local Government,DCLG,14/11/2013,Physical Storage,Finance & Corporate Services,TNT UK LIMITED,,Large,,,5106198708,Offsite Records Storage FYR 13/14,BL10 9GR,774.98,
Communities & Local Government,DCLG,14/11/2013,Physical Storage,Finance & Corporate Services,TNT UK LIMITED,,Large,,,5106198709,Offsite Records Storage FYR 13/14,BL10 9GR,683.43,
Communities & Local Government,DCLG,14/11/2013,Physical Storage,Finance & Corporate Services,TNT UK LIMITED,,Large,,,5106198710,Offsite Records Storage FYR 13/14,BL10 9GR,326.67,
Communities & Local Government,DCLG,14/11/2013,Physical Storage,Finance & Corporate Services,TNT UK LIMITED,,Large,,,5106198711,Offsite Records Storage FYR 13/14,BL10 9GR,474.85,
Communities & Local Government,DCLG,14/11/2013,Physical Storage,Finance & Corporate Services,TNT UK LIMITED,,Large,,,5106198721,Offsite Records Storage FYR 13/14,BL10 9GR,809.00,
Communities & Local Government,DCLG,14/11/2013,Research,Neighbourhoods,BUILDING RESEARCH ESTABLISHMENT,,Large,,896495033,5106198698,Interim project report,WD25 9XX,"34,120.78",
Communities & Local Government,DCLG,14/11/2013,Research,Neighbourhoods,BUILDING RESEARCH ESTABLISHMENT,,Large,,896495033,5106198720,Milestones 3-8,WD25 9XX,"4,738.80",
Communities & Local Government,DCLG,14/11/2013,Research,Neighbourhoods,BUILDING RESEARCH ESTABLISHMENT,,Large,,896495033,5106198728,3rd PSC group meeting,WD25 9XX,"3,654.46",
Communities & Local Government,DCLG,14/11/2013,Software Licences,Localism,SOFTWARE BOX LTD,,,,390294056,5106198682,IntelliJ IDEA Commercial License,YO61 1ET,594.02,
Communities & Local Government,DCLG,14/11/2013,Software Licences,Localism,SOFTWARE BOX LTD,,,,390294056,5106198682,Toad for SQL Server Development Suite,YO61 1ET,"1,071.34",
Communities & Local Government,DCLG,14/11/2013,Training,Finance & Corporate Services,EAST OF ENGLAND AMBULANCE SERVICE,,Public Bodies,,210706597,5106198714,GFP seminar PS,NR6 5NA,480.00,
Communities & Local Government,DCLG,14/11/2013,Water,Finance & Corporate Services,SEVERN TRENT WATER LTD,,Large,,234404465,5106198713,2013/14 St Philips B'ham Annual Water,CV3 9FJ,"1,145.34",
Communities & Local Government,DCLG,14/11/2013,Work In Progress Pre-Cert 40373 Spend,Neighbourhoods,ASSOCIATION OF TOWN CENTRE MGT,,,,,7600006784,Revenue Grant To Be Paid,SW1H 9BT,"14,063.30",Yes
Communities & Local Government,DCLG,14/11/2013,Work In Progress Pre-Cert 40373 Spend,Neighbourhoods,CLIMATE ENERGY (NFP) LTD,,Small,,,7600006773,Revenue Grant To Be Paid,CR0 6BA,"36,100.87",Yes
Communities & Local Government,DCLG,14/11/2013,Work In Progress Pre-Cert 40373 Spend,Neighbourhoods,CLIMATE ENERGY (NFP) LTD,,Small,,,7600006777,Revenue Grant To Be Paid,CR0 6BA,"18,051.35",Yes
Communities & Local Government,DCLG,14/11/2013,Work In Progress Pre-Cert 40373 Spend,Neighbourhoods,CLIMATE ENERGY (NFP) LTD,,Small,,,7600006783,Revenue Grant To Be Paid,CR0 6BA,"26,075.34",Yes
Communities & Local Government,DCLG,14/11/2013,Work In Progress Pre-Cert 40373 Spend,Neighbourhoods,LOWER CARBON ECONOMY-RESOURCE EFF,,,,,7600006774,Revenue Grant Clawback Offset,LS11 5AE,"-4,793.47",Yes
Communities & Local Government,DCLG,14/11/2013,Work In Progress Pre-Cert 40373 Spend,Neighbourhoods,LOWER CARBON ECONOMY-RESOURCE EFF,,,,,7600006774,Revenue Grant To Be Paid,LS11 5AE,"44,474.09",Yes
Communities & Local Government,DCLG,14/11/2013,Work In Progress Pre-Cert 40373 Spend,Neighbourhoods,LOWER CARBON ECONOMY-RESOURCE EFF,,,,,7600006775,Revenue Grant Clawback Offset,LS11 5AE,"-8,384.95",Yes
Communities & Local Government,DCLG,14/11/2013,Work In Progress Pre-Cert 40373 Spend,Neighbourhoods,LOWER CARBON ECONOMY-RESOURCE EFF,,,,,7600006775,Revenue Grant To Be Paid,LS11 5AE,"191,160.76",Yes
Communities & Local Government,DCLG,14/11/2013,Work In Progress Pre-Cert 40373 Spend,Neighbourhoods,MEDIAWORKS TRUST,,Small,,,7600006782,Revenue Grant To Be Paid,DE22 3RG,"7,380.96",Yes
Communities & Local Government,DCLG,14/11/2013,Work In Progress Pre-Cert 40373 Spend,Neighbourhoods,SERCO REGIONAL SERVICES LTD,,,,,7600006778,Revenue Grant To Be Paid,PL6 8BT,"69,002.06",Yes
Communities & Local Government,DCLG,14/11/2013,Work In Progress Pre-Cert 40373 Spend,Neighbourhoods,SERCO REGIONAL SERVICES LTD,,,,,7600006779,Revenue Grant To Be Paid,PL6 8BT,"187,804.79",Yes
Communities & Local Government,DCLG,14/11/2013,Work In Progress Pre-Cert 40373 Spend,Neighbourhoods,YTKO LIMITED,,,,,7600006780,Revenue Grant To Be Paid,CB4 2QH,"55,604.91",Yes
Communities & Local Government,DCLG,14/11/2013,Work In Progress Pre-Cert 40467 Spend,Neighbourhoods,CLIMATE ENERGY (NFP) LTD,,Small,,,7600006783,Capital Grant To Be Paid,CR0 6BA,"61,706.79",Yes
Communities & Local Government,DCLG,14/11/2013,Work In Progress Pre-Cert 40467 Spend,Neighbourhoods,LINCONSHIRE COUNTY COUNCIL,,Large,,,7600006781,Capital Grant Clawback Offset,LN1 1YT,"-87,468.68",Yes
Communities & Local Government,DCLG,14/11/2013,Work In Progress Pre-Cert 40467 Spend,Neighbourhoods,LINCONSHIRE COUNTY COUNCIL,,Large,,,7600006781,Capital Grant To Be Paid,LN1 1YT,"88,124.83",Yes
Communities & Local Government,DCLG,14/11/2013,Work In Progress Pre-Cert 40467 Spend,Neighbourhoods,LOWER CARBON ECONOMY-RESOURCE EFF,,,,,7600006774,Capital Grant To Be Paid,LS11 5AE,"4,687.54",Yes
Communities & Local Government,DCLG,14/11/2013,Work In Progress Pre-Cert 40467 Spend,Neighbourhoods,LOWER CARBON ECONOMY-RESOURCE EFF,,,,,7600006775,Capital Grant To Be Paid,LS11 5AE,"23,632.44",Yes
Communities & Local Government,DCLG,14/11/2013,Work In Progress Pre-Cert 40467 Spend,Neighbourhoods,R M DEVELOPMENTS LTD,,,,,7600006776,Capital Grant To Be Paid,TR1 2NY,"89,086.89",Yes
Communities & Local Government,DCLG,15/11/2013,Accommodation Service Charges,Finance & Corporate Services,GVA GRIMLEY LTD,,Large,,210158990,5106198675,T/F Hemel Hempstead ASC 2013,B1 2JB,"15,257.07",
Communities & Local Government,DCLG,15/11/2013,Accommodation Service Charges,Finance & Corporate Services,GVA GRIMLEY LTD,,Large,,210158990,5106198675,T/F Hemel Hempstead insurance 2013,B1 2JB,"5,219.06",
Communities & Local Government,DCLG,15/11/2013,Accommodation Service Charges,Finance & Corporate Services,GVA GRIMLEY LTD,,Large,,210158990,5106198675,T/F Bridge House Insurance,B1 2JB,"11,293.03",
Communities & Local Government,DCLG,15/11/2013,Accommodation Service Charges,Finance & Corporate Services,GVA GRIMLEY LTD,,Large,,210158990,5106198675,T/F Cumberland ASC 2013,B1 2JB,"12,054.13",
Communities & Local Government,DCLG,15/11/2013,Accommodation Service Charges,Finance & Corporate Services,GVA GRIMLEY LTD,,Large,,210158990,5106198675,T/F Cumberland Admin Fee  2013,B1 2JB,"1,061.64",
Communities & Local Government,DCLG,15/11/2013,Advertising,Finance & Corporate Services,M4C-DIVISION OF GROUPM UK LTD,,Large,,734728194,5106198740,Media Buying Non-VATable,WC1X 8RX,98.91,
Communities & Local Government,DCLG,15/11/2013,Advertising,Finance & Corporate Services,M4C-DIVISION OF GROUPM UK LTD,,Large,,734728194,5106198740,Media Buying VATable,WC1X 8RX,"118,693.83",
Communities & Local Government,DCLG,15/11/2013,Advertising,Finance & Corporate Services,M4C-DIVISION OF GROUPM UK LTD,,Large,,734728194,5106198741,Media Buying Non-VATable,WC1X 8RX,30.23,
Communities & Local Government,DCLG,15/11/2013,Advertising,Finance & Corporate Services,M4C-DIVISION OF GROUPM UK LTD,,Large,,734728194,5106198741,Media Buying VATable,WC1X 8RX,"36,647.15",
Communities & Local Government,DCLG,15/11/2013,Agency Staff,Finance & Corporate Services,ALLEN LANE FINANCIAL RECRUITMENT,,Medium,Yes,234388853,5106198736,Interim Manager (Qualified Accountant),,"3,606.28",
Communities & Local Government,DCLG,15/11/2013,Agency Staff,Neighbourhoods,CAPITA RESOURCING LTD,,Large,,215581006,5106198737,Contractor ERDF,SL6 1DP,"2,040.00",
Communities & Local Government,DCLG,15/11/2013,Cap Grants to Private Sector Companies,Neighbourhoods,AESICA PHARMACEUTICALS LTD,,,,,2100236246,Regional Growth Fund Qtr 3 grant payment,NE12 8BS,"16,635.00",Yes
Communities & Local Government,DCLG,15/11/2013,Cap Grants to Private Sector Companies,Neighbourhoods,AVANTI HYLAS 2 LIMITED,,,,,2100236188,Regional Growth Fund Qtr 3 grant payment  2013/14,EC2A 3AY,"42,439.00",Yes
Communities & Local Government,DCLG,15/11/2013,Cap Grants to Private Sector Companies,Neighbourhoods,BIRMINGHAM CITY COUNCIL,,,,213270263,2100236235,Regional Growth Fund Qtr 3 grant payment,B3 3PL,"1,079,815.00",Yes
Communities & Local Government,DCLG,15/11/2013,Cap Grants to Private Sector Companies,Neighbourhoods,BMW (UK) MANUFACTURING LIMITED,,Large,,,2100236200,Regional Growth Fund Qtr 3 grant payment  2013/14,OX4 6NL,"1,195,322.00",Yes
Communities & Local Government,DCLG,15/11/2013,Cap Grants to Private Sector Companies,Neighbourhoods,BURNLEY BC,,,,,2100236270,Regional Growth Fund Qtr 3 grant payment,BB11 2DS,"823,173.00",Yes
Communities & Local Government,DCLG,15/11/2013,Cap Grants to Private Sector Companies,Neighbourhoods,CERAM RESEARCH LIMITED,,Medium,,,2100236285,Regional Growth Fund Qtr 3 grant payment,ST4 7LQ,"134,541.00",Yes
Communities & Local Government,DCLG,15/11/2013,Cap Grants to Private Sector Companies,Neighbourhoods,DARCHEM ENGINEERING LIMITED,,,,,2100236240,Regional Growth Fund Qtr 3 grant payment,TS21 1LB,"286,002.00",Yes
Communities & Local Government,DCLG,15/11/2013,Cap Grants to Private Sector Companies,Neighbourhoods,DERBY CITY COUNCIL,,Large,,229641378,2100236352,Regional Growth Fund Qtr 3 grant payment,DE1 2YL,"4,488,071.00",Yes
Communities & Local Government,DCLG,15/11/2013,Cap Grants to Private Sector Companies,Neighbourhoods,DONCASTER MBC,,Large,,218042997,2100236256,Regional Growth Fund Qtr 3 grant payment,DN1 3QA,"3,000,000.00",Yes
Communities & Local Government,DCLG,15/11/2013,Cap Grants to Private Sector Companies,Neighbourhoods,DRUCK LTD,,,,,2100236195,Regional Growth Fund Qtr 3 grant payment  2013/14,LE6 0FH,"460,481.00",Yes
Communities & Local Government,DCLG,15/11/2013,Cap Grants to Private Sector Companies,Neighbourhoods,ENERGY COAST WEST CUMBRIA LTD,,Medium,,,2100236257,Regional Growth Fund Qtr 3 grant payment,CA24 3JZ,"349,119.00",Yes
Communities & Local Government,DCLG,15/11/2013,Cap Grants to Private Sector Companies,Neighbourhoods,FERGUSON POLYCOM LTD,,Medium,,,2100236280,Regional Growth Fund Qtr 3 grant payment,OL8 3RA,"181,121.00",Yes
Communities & Local Government,DCLG,15/11/2013,Cap Grants to Private Sector Companies,Neighbourhoods,GATESHEAD COLLEGE,,Large,,,2100236238,Regional Growth Fund Qtr 3 grant payment,NE8 3BE,"140,080.00",Yes
Communities & Local Government,DCLG,15/11/2013,Cap Grants to Private Sector Companies,Neighbourhoods,GATESHEAD COLLEGE,,Large,,,2100236239,Regional Growth Fund Qtr 3 grant payment,NE8 3BE,"388,766.00",Yes
Communities & Local Government,DCLG,15/11/2013,Cap Grants to Private Sector Companies,Neighbourhoods,GREENCROFT BOTTLING COMPANY LIMITED,,Medium,,,2100236253,Regional Growth Fund Qtr 3 grant payment,DH9 7XP,"150,000.00",Yes
Communities & Local Government,DCLG,15/11/2013,Cap Grants to Private Sector Companies,Neighbourhoods,HEIGHTS (UK) LIMITED,,,,,2100236274,Regional Growth Fund Qtr 3 grant payment,HX2 7TJ,"63,611.63",Yes
Communities & Local Government,DCLG,15/11/2013,Cap Grants to Private Sector Companies,Neighbourhoods,HEREFORDSHIRE COUNCIL,,Public Bodies,,230359700,2100236234,Regional Growth Fund Qtr 3 grant payment,HR1 1ZT,"40,951.51",Yes
Communities & Local Government,DCLG,15/11/2013,Cap Grants to Private Sector Companies,Neighbourhoods,HINCKLEY &  BOSWORTH BOROUGH COUNCI,,Large,,,2100236351,Regional Growth Fund Qtr 3 grant payment,LE10 1BZ,"8,913,546.00",Yes
Communities & Local Government,DCLG,15/11/2013,Cap Grants to Private Sector Companies,Neighbourhoods,INTERNATIONAL PIPELINE PRODUCTS LTD,,,,,2100236245,Regional Growth Fund Qtr 3 grant payment,DL10 7JH,"47,442.00",Yes
Communities & Local Government,DCLG,15/11/2013,Cap Grants to Private Sector Companies,Neighbourhoods,JCB SERVICE,,Large,,,2100236197,Regional Growth Fund Qtr 3 grant payment  2013/14,ST14 5JP,"356,469.00",Yes
Communities & Local Government,DCLG,15/11/2013,Cap Grants to Private Sector Companies,Neighbourhoods,LIVERPOOL CITY COUNCIL,,Public Bodies,,228646113,2100236277,Regional Growth Fund Qtr 3 grant payment,L2 2DH,"863,220.00",Yes
Communities & Local Government,DCLG,15/11/2013,Cap Grants to Private Sector Companies,Neighbourhoods,LIVERPOOL CITY COUNCIL,,Public Bodies,,228646113,2100236282,Regional Growth Fund Qtr 3 grant payment,L2 2DH,"224,890.78",Yes
Communities & Local Government,DCLG,15/11/2013,Cap Grants to Private Sector Companies,Neighbourhoods,LUCITE INTERNATIONAL UK LTD,,,,,2100236279,Regional Growth Fund Qtr 3 grant payment,BB3 1QB,"45,756.00",Yes
Communities & Local Government,DCLG,15/11/2013,Cap Grants to Private Sector Companies,Neighbourhoods,MOLCULAR PROFILES LTD,,,,,2100236196,Regional Growth Fund Qtr 3 grant payment  2013/14,NG15 6UP,"138,590.00",Yes
Communities & Local Government,DCLG,15/11/2013,Cap Grants to Private Sector Companies,Neighbourhoods,MULBERRY COMPANY (DESIGN) LTD,,Large,,,2100236189,Regional Growth Fund Qtr 3 grant payment  2013/14,BA3 4EH,"136,000.00",Yes
Communities & Local Government,DCLG,15/11/2013,Cap Grants to Private Sector Companies,Neighbourhoods,NAREC,,Large,,,2100236247,Regional Growth Fund Qtr 3 grant payment,NE24 3AG,"1,052,862.00",Yes
Communities & Local Government,DCLG,15/11/2013,Cap Grants to Private Sector Companies,Neighbourhoods,NDC POLYTHENES LTD,,Small,,,2100236194,Regional Growth Fund Qtr 3 grant payment  2013/14,DY2 0XQ,"445,740.75",Yes
Communities & Local Government,DCLG,15/11/2013,Cap Grants to Private Sector Companies,Neighbourhoods,NEWCASTLE CITY COUNCIL,,,,210061649,2100236243,Regional Growth Fund Qtr 3 grant payment,NE1 8QN,"982,401.00",Yes
Communities & Local Government,DCLG,15/11/2013,Cap Grants to Private Sector Companies,Neighbourhoods,NEWCASTLE CITY COUNCIL,,,,210061649,2100236249,Regional Growth Fund Qtr 3 grant payment,NE1 8QN,"275,068.00",Yes
Communities & Local Government,DCLG,15/11/2013,Cap Grants to Private Sector Companies,Neighbourhoods,PARGAT & COMPANY LTD,,,,,2100236198,Regional Growth Fund Qtr 3 grant payment  2013/14,B71 4JZ,"1,785.00",Yes
Communities & Local Government,DCLG,15/11/2013,Cap Grants to Private Sector Companies,Neighbourhoods,PIRELLI TYRES LTD,,Large,,,2100236255,Regional Growth Fund Qtr 3 grant payment,DE13 0BH,"311,055.00",Yes
Communities & Local Government,DCLG,15/11/2013,Cap Grants to Private Sector Companies,Neighbourhoods,PORTSMOUTH NAVAL BASE PROP TRUST,,,,,2100236349,Regional Growth Fund Qtr 3 grant payment,PO1 3LJ,"254,863.00",Yes
Communities & Local Government,DCLG,15/11/2013,Cap Grants to Private Sector Companies,Neighbourhoods,PRECISION HYDRAULIC CYLINDERS (UK),,,,,2100236254,Regional Growth Fund Qtr 3 grant payment,NE23 8AE,"220,000.00",Yes
Communities & Local Government,DCLG,15/11/2013,Cap Grants to Private Sector Companies,Neighbourhoods,ROAD TANKERS (NORTHERN) LTD,,Medium,,,2100236264,Regional Growth Fund Qtr 3 grant payment,S9 1RT,"21,210.00",Yes
Communities & Local Government,DCLG,15/11/2013,Cap Grants to Private Sector Companies,Neighbourhoods,SALFORD CITY COUNCIL,,Public Bodies,,210765504,2100236261,Regional Growth Fund Qtr 3 grant payment,M27 5AW,"191,999.60",Yes
Communities & Local Government,DCLG,15/11/2013,Cap Grants to Private Sector Companies,Neighbourhoods,SHEFFIELD UNIVERSITY,,,,,2100236259,Regional Growth Fund Qtr 3 grant payment,S1 2LX,"1,892,152.78",Yes
Communities & Local Government,DCLG,15/11/2013,Cap Grants to Private Sector Companies,Neighbourhoods,SOUTHAMPTON CITY COUNCIL,,Public Bodies,,216927475,2100236350,Regional Growth Fund Qtr 3 grant payment,SO14 7LY,"1,378,506.19",Yes
Communities & Local Government,DCLG,15/11/2013,Cap Grants to Private Sector Companies,Neighbourhoods,STEELITE INTERNATIONAL PLC,,Large,,,2100236192,Regional Growth Fund Qtr 3 grant payment  2013/14,ST6 3RB,"164,636.00",Yes
Communities & Local Government,DCLG,15/11/2013,Cap Grants to Private Sector Companies,Neighbourhoods,TAMESIDE MBC,,Large,,212635875,2100236281,Regional Growth Fund Qtr 3 grant payment,OL6 6DL,"624,945.87",Yes
Communities & Local Government,DCLG,15/11/2013,Cap Grants to Private Sector Companies,Neighbourhoods,THARSUS ENGINEERING LTD,,,,,2100236241,Regional Growth Fund Qtr 3 grant payment,NE24 5TG,"195,882.69",Yes
Communities & Local Government,DCLG,15/11/2013,Cap Grants to Private Sector Companies,Neighbourhoods,TRAC GROUP LTD,,,,,2100236236,Regional Growth Fund Qtr 3 grant payment,WV3 0BJ,"73,982.72",Yes
Communities & Local Government,DCLG,15/11/2013,Cap Grants to Private Sector Companies,Neighbourhoods,TYGAVAC ADVANCED MATERIALS LTD,,Small,,,2100236271,Regional Growth Fund Qtr 3 grant payment,OL16 5LX,"192,580.77",Yes
Communities & Local Government,DCLG,15/11/2013,Cap Grants to Private Sector Companies,Neighbourhoods,UK HISTORIC BUILDING PRESERVATION T,Yes,Small,,,2100236201,Regional Growth Fund Qtr 3 grant payment  2013/14,SW1W 0QP,"198,398.00",Yes
Communities & Local Government,DCLG,15/11/2013,Cap Grants to Private Sector Companies,Neighbourhoods,VANTEC EUROPE LIMITED,,Large,,,2100236252,Regional Growth Fund Qtr 3 grant payment,SR5 3QZ,"215,000.00",Yes
Communities & Local Government,DCLG,15/11/2013,Cap Grants to Private Sector Companies,Neighbourhoods,WAKEFIELD MDC,,Large,,347764511,2100236258,Regional Growth Fund Qtr 3 grant payment,WF1 1ZS,"146,229.00",Yes
Communities & Local Government,DCLG,15/11/2013,Cap Grants to Private Sector Companies,Neighbourhoods,WAKEFIELD MDC,,Large,,347764511,2100236265,Regional Growth Fund Qtr 3 grant payment,WF1 1ZS,"107,907.00",Yes
Communities & Local Government,DCLG,15/11/2013,Cap Grants to Private Sector Companies,Neighbourhoods,ZYTEC AUTOMOTIVE LTD,,Medium,,,2100236237,Regional Growth Fund Qtr 3 grant payment,WS13 8RY,"38,175.00",Yes
Communities & Local Government,DCLG,15/11/2013,Current (non AEF) Grants to Local Authorities,Localism,ADUR DC,,,,227472891,5000237905,Council Tax Freeze,BN11 1HB,"6,325.00",Yes
Communities & Local Government,DCLG,15/11/2013,Current (non AEF) Grants to Local Authorities,Localism,AMBER VALLEY BC,,,,,5000237906,Council Tax Freeze,DE5 3WZ,"6,280.00",Yes
Communities & Local Government,DCLG,15/11/2013,Current (non AEF) Grants to Local Authorities,Localism,ARUN DC,,,,211217668,5000237810,Council Tax Freeze,BN17 5LF,"10,193.00",Yes
Communities & Local Government,DCLG,15/11/2013,Current (non AEF) Grants to Local Authorities,Localism,ASHFIELD DC,,,,235415296,5000237907,Council Tax Freeze,NG17 8DA,"6,120.00",Yes
Communities & Local Government,DCLG,15/11/2013,Current (non AEF) Grants to Local Authorities,Localism,AVON & SOMERSET POLICE AUTHORITY,,,,211229406,5000238085,Council Tax Freeze,TA1 4DY,"96,157.00",Yes
Communities & Local Government,DCLG,15/11/2013,Current (non AEF) Grants to Local Authorities,Localism,AVON & SOMERSET POLICE AUTHORITY,,,,211229406,5000238086,Council Tax Freeze for Police and Crime Commission,TA1 4DY,"236,940.00",Yes
Communities & Local Government,DCLG,15/11/2013,Current (non AEF) Grants to Local Authorities,Localism,AVON & SOMERSET POLICE AUTHORITY,,,,211229406,5000238087,Local Council Tax Support for Police Commissioners,TA1 4DY,"1,134,138.00",Yes
Communities & Local Government,DCLG,15/11/2013,Current (non AEF) Grants to Local Authorities,Localism,BABERGH DC,,,,232618405,5000237811,Council Tax Freeze,IP7 6SJ,"4,940.00",Yes
Communities & Local Government,DCLG,15/11/2013,Current (non AEF) Grants to Local Authorities,Localism,BARKING & DAGENHAM LB (HSG),,,,217142293,5000237812,Council Tax Freeze,RM10 7BY,"54,036.00",Yes
Communities & Local Government,DCLG,15/11/2013,Current (non AEF) Grants to Local Authorities,Localism,BARNET LBC,,,,211049507,5000237908,Council Tax Freeze,NW4 4BG,"160,368.00",Yes
Communities & Local Government,DCLG,15/11/2013,Current (non AEF) Grants to Local Authorities,Localism,BARNSLEY MBC,,,,211178595,5000237909,Council Tax Freeze,S70 2AQ,"85,376.00",Yes
Communities & Local Government,DCLG,15/11/2013,Current (non AEF) Grants to Local Authorities,Localism,BASILDON BOROUGH COUNCIL,,,,,5000237910,Council Tax Freeze,SS14 0DF,"16,164.00",Yes
Communities & Local Government,DCLG,15/11/2013,Current (non AEF) Grants to Local Authorities,Localism,BASINGSTOKE & DEANE BC,,,,228328506,5000237911,Council Tax Freeze,RG21 2AJ,"6,906.00",Yes
Communities & Local Government,DCLG,15/11/2013,Current (non AEF) Grants to Local Authorities,Localism,BASSETLAW DC (HSG),,,,,5000237813,Council Tax Freeze,S80 2AH,"5,562.00",Yes
Communities & Local Government,DCLG,15/11/2013,Current (non AEF) Grants to Local Authorities,Localism,BATH & NE SOMERSET DC (HSG),,,,214502499,5000237814,Council Tax Freeze,BA1 5AW,"79,022.00",Yes
Communities & Local Government,DCLG,15/11/2013,Current (non AEF) Grants to Local Authorities,Localism,BEDFORD UNITARY AUTHORITY,,,,225682160,5000238081,Council Tax Freeze,MK40 1SJ,"74,916.00",Yes
Communities & Local Government,DCLG,15/11/2013,Current (non AEF) Grants to Local Authorities,Localism,BEDFORDSHIRE POLICE AUTHORITY,,,,210335070,5000238088,Council Tax Freeze for Police and Crime Commission,MK43 9AX,"75,094.00",Yes
Communities & Local Government,DCLG,15/11/2013,Current (non AEF) Grants to Local Authorities,Localism,BEDFORDSHIRE POLICE AUTHORITY,,,,210335070,5000238089,Local Council Tax Support for Police Commissioners,MK43 9AX,"387,392.00",Yes
Communities & Local Government,DCLG,15/11/2013,Current (non AEF) Grants to Local Authorities,Localism,BEXLEY LB (HSG),,,,,5000237815,Council Tax Freeze,DA8 1TL,"95,872.00",Yes
Communities & Local Government,DCLG,15/11/2013,Current (non AEF) Grants to Local Authorities,Localism,BIRMINGHAM CITY CNCL,,,,213780559,5000237912,Council Tax Freeze,B2 2AJ,"334,618.00",Yes
Communities & Local Government,DCLG,15/11/2013,Current (non AEF) Grants to Local Authorities,Localism,BLABY DC (HSG),,,,,5000237816,Council Tax Freeze,LE9 5EP,"4,435.00",Yes
Communities & Local Government,DCLG,15/11/2013,Current (non AEF) Grants to Local Authorities,Localism,BLACKBURN WITH DARWEN BC,,,,,5000237913,Council Tax Freeze,BB1 7DY,"49,160.00",Yes
Communities & Local Government,DCLG,15/11/2013,Current (non AEF) Grants to Local Authorities,Localism,BLACKPOOL BC,,,,,5000237914,Council Tax Freeze,FY1 1NA,"59,757.00",Yes
Communities & Local Government,DCLG,15/11/2013,Current (non AEF) Grants to Local Authorities,Localism,BOLSOVER DC,,,,235516523,5000237915,Council Tax Freeze,S44 6NF,"3,606.00",Yes
Communities & Local Government,DCLG,15/11/2013,Current (non AEF) Grants to Local Authorities,Localism,BOSTON BC,,,,236417713,5000237817,Council Tax Freeze,PE21 8QR,"3,342.00",Yes
Communities & Local Government,DCLG,15/11/2013,Current (non AEF) Grants to Local Authorities,Localism,BOURNEMOUTH DC,,,,,5000237916,Council Tax Freeze,BH2 6EB,"79,982.00",Yes
Communities & Local Government,DCLG,15/11/2013,Current (non AEF) Grants to Local Authorities,Localism,BRACKNELL FOREST DC,,,,236184867,5000237917,Council Tax Freeze,RG12 1AQ,"49,776.00",Yes
Communities & Local Government,DCLG,15/11/2013,Current (non AEF) Grants to Local Authorities,Localism,BRAINTREE DC,,,,226941730,5000237818,Council Tax Freeze,CM7 6HB,"8,826.00",Yes
Communities & Local Government,DCLG,15/11/2013,Current (non AEF) Grants to Local Authorities,Localism,BRENT LB (HSG),,,,,5000237819,Council Tax Freeze,HA9 9HD,"99,421.00",Yes
Communities & Local Government,DCLG,15/11/2013,Current (non AEF) Grants to Local Authorities,Localism,BRENTWOOD BC,,,,227473188,5000237918,Council Tax Freeze,CM15 8AY,"5,670.00",Yes
Communities & Local Government,DCLG,15/11/2013,Current (non AEF) Grants to Local Authorities,Localism,BROADLAND DC,,Large,,219737785,5000237820,Council Tax Freeze,NR7 0DU,"5,336.00",Yes
Communities & Local Government,DCLG,15/11/2013,Current (non AEF) Grants to Local Authorities,Localism,BROXBOURNE BC,,Public Bodies,,239931918,5000237919,Council Tax Freeze,EN8 9XG,"4,245.00",Yes
Communities & Local Government,DCLG,15/11/2013,Current (non AEF) Grants to Local Authorities,Localism,BROXTOWE BC,,,,239877640,5000237920,Council Tax Freeze,NG9 1AB,"5,930.00",Yes
Communities & Local Government,DCLG,15/11/2013,Current (non AEF) Grants to Local Authorities,Localism,BUCKINGHAMSHIRE CC,,,,293750923,5000237921,Council Tax Freeze,HP20 1UD,"232,198.00",Yes
Communities & Local Government,DCLG,15/11/2013,Current (non AEF) Grants to Local Authorities,Localism,BUCKS & MILTON KEYNES FIRE AUTH,,,,423679463,5000238063,Council Tax Freeze,HP20 1BD,"17,730.00",Yes
Communities & Local Government,DCLG,15/11/2013,Current (non AEF) Grants to Local Authorities,Localism,CAMBRIDGESHIRE POLICE AUTHORITY,,,,,5000238090,Local Council Tax Support for Police Commissioners,P18 8NP,"480,698.00",Yes
Communities & Local Government,DCLG,15/11/2013,Current (non AEF) Grants to Local Authorities,Localism,CAMBRIDGESHIRE POLICE AUTHORITY,,,,,5000238091,Council Tax Freeze for Police and Crime Commission,P18 8NP,"117,250.00",Yes
Communities & Local Government,DCLG,15/11/2013,Current (non AEF) Grants to Local Authorities,Localism,CAMDEN LB,,,,211651836,5000237922,Council Tax Freeze,WC1H 8NG,"102,147.00",Yes
Communities & Local Government,DCLG,15/11/2013,Current (non AEF) Grants to Local Authorities,Localism,CARLISLE CITY CNCL,,,,227471059,5000237821,Council Tax Freeze,CA3 8QG,"6,846.00",Yes
Communities & Local Government,DCLG,15/11/2013,Current (non AEF) Grants to Local Authorities,Localism,CENTRAL BEDFORDSHIRE COUNCIL,,,,232624882,5000238079,Council Tax Freeze,SG17 5TQ,"131,021.00",Yes
Communities & Local Government,DCLG,15/11/2013,Current (non AEF) Grants to Local Authorities,Localism,CHARNWOOD BC,,,,,5000237923,Council Tax Freeze,LE11 2TU,"7,019.00",Yes
Communities & Local Government,DCLG,15/11/2013,Current (non AEF) Grants to Local Authorities,Localism,CHELTENHAM BC,,,,,5000237924,Council Tax Freeze,GL50 1PW,"7,858.00",Yes
Communities & Local Government,DCLG,15/11/2013,Current (non AEF) Grants to Local Authorities,Localism,CHERWELL DC,,,,,5000237822,Council Tax Freeze,OX15 4AA,"6,303.00",Yes
Communities & Local Government,DCLG,15/11/2013,Current (non AEF) Grants to Local Authorities,Localism,CHESHIRE EAST COUNCIL,,,,,5000238080,Council Tax Freeze,SK10 1DP,"180,515.00",Yes
Communities & Local Government,DCLG,15/11/2013,Current (non AEF) Grants to Local Authorities,Localism,CHORLEY BOROUGH COUNCIL,,,,236415576,5000237925,Council Tax Freeze,PR7 1DP,"6,596.00",Yes
Communities & Local Government,DCLG,15/11/2013,Current (non AEF) Grants to Local Authorities,Localism,CITY OF LONDON (HSG),,,,217471460,5000237823,Local Council Tax Support for Police Commissioners,EC2P 2EJ,"7,925.00",Yes
Communities & Local Government,DCLG,15/11/2013,Current (non AEF) Grants to Local Authorities,Localism,CITY OF LONDON (HSG),,,,217471460,5000237824,Council Tax Freeze,EC2P 2EJ,"5,001.00",Yes
Communities & Local Government,DCLG,15/11/2013,Current (non AEF) Grants to Local Authorities,Localism,CITY OF SUNDERLAND (HSG),,,,215599312,5000237825,Council Tax Freeze,SR2 7DN,"97,908.00",Yes
Communities & Local Government,DCLG,15/11/2013,Current (non AEF) Grants to Local Authorities,Localism,COLCHESTER BC,,,,,5000237926,Council Tax Freeze,CO3 3WG,"10,692.00",Yes
Communities & Local Government,DCLG,15/11/2013,Current (non AEF) Grants to Local Authorities,Localism,CORBY BC,,,,,5000237826,Council Tax Freeze,NN17 1GD,"3,338.00",Yes
Communities & Local Government,DCLG,15/11/2013,Current (non AEF) Grants to Local Authorities,Localism,CORNWALL UNITARY AUTHORITY,,,,211334404,5000238083,Council Tax Freeze,TR1 3AY,"251,331.00",Yes
Communities & Local Government,DCLG,15/11/2013,Current (non AEF) Grants to Local Authorities,Localism,COTSWOLD DC,,,,232462085,5000237827,Council Tax Freeze,GL7 1PX,"5,462.00",Yes
Communities & Local Government,DCLG,15/11/2013,Current (non AEF) Grants to Local Authorities,Localism,COUNTY DURHAM & DARLINGTON,,,,424872851,5000238072,Council Tax Freeze,DH1 5UE,"17,428.00",Yes
Communities & Local Government,DCLG,15/11/2013,Current (non AEF) Grants to Local Authorities,Localism,COVENTRY CITY CNCL,,,,210384802,5000237927,Council Tax Freeze,CV1 2QL,"120,753.00",Yes
Communities & Local Government,DCLG,15/11/2013,Current (non AEF) Grants to Local Authorities,Localism,CRAVEN DC (HSG),,,,,5000237828,Council Tax Freeze,BD23 1PS,"3,425.00",Yes
Communities & Local Government,DCLG,15/11/2013,Current (non AEF) Grants to Local Authorities,Localism,CRAWLEY BC,,,,211222500,5000237829,Council Tax Freeze,RH10 1UZ,"6,990.00",Yes
Communities & Local Government,DCLG,15/11/2013,Current (non AEF) Grants to Local Authorities,Localism,CUMBRIA COUNTY CNCL,,,,211316542,5000237928,Council Tax Freeze,CA3 8NA,"209,923.00",Yes
Communities & Local Government,DCLG,15/11/2013,Current (non AEF) Grants to Local Authorities,Localism,DARTFORD BC,,,,225694942,5000237830,Council Tax Freeze,DA1 1DR,"5,783.00",Yes
Communities & Local Government,DCLG,15/11/2013,Current (non AEF) Grants to Local Authorities,Localism,DERBYSHIRE COUNTYCOUNCIL,,,,232152967,5000237929,Council Tax Freeze,DE4 3AH,"281,204.00",Yes
Communities & Local Government,DCLG,15/11/2013,Current (non AEF) Grants to Local Authorities,Localism,DERBYSHIRE DALES DC,,,,,5000237831,Council Tax Freeze,DE4 3NN,"5,673.00",Yes
Communities & Local Government,DCLG,15/11/2013,Current (non AEF) Grants to Local Authorities,Localism,DERBYSHIRE FIRE AUTHORITY,,,,424872935,5000238073,Council Tax Freeze,DE55 1RH,"22,379.00",Yes
Communities & Local Government,DCLG,15/11/2013,Current (non AEF) Grants to Local Authorities,Localism,DEVON & CORNWALL POLICE AUTHORITY,,,,,5000238092,Council Tax Freeze for Police and Crime Commission,EX2 5YT,"239,225.00",Yes
Communities & Local Government,DCLG,15/11/2013,Current (non AEF) Grants to Local Authorities,Localism,DEVON & CORNWALL POLICE AUTHORITY,,,,,5000238093,Local Council Tax Support for Police Commissioners,EX2 5YT,"1,302,718.00",Yes
Communities & Local Government,DCLG,15/11/2013,Current (non AEF) Grants to Local Authorities,Localism,DEVON COUNTY CNCL,,,,213754018,5000237930,Council Tax Freeze,EX2 4QJ,"330,149.00",Yes
Communities & Local Government,DCLG,15/11/2013,Current (non AEF) Grants to Local Authorities,Localism,DONCASTER MBC,,,,,5000237931,Council Tax Freeze,DN1 3QA,"96,909.00",Yes
Communities & Local Government,DCLG,15/11/2013,Current (non AEF) Grants to Local Authorities,Localism,DORSET COUNTY CNCL,,,,225431279,5000237932,Council Tax Freeze,DT1 1XJ,"203,847.00",Yes
Communities & Local Government,DCLG,15/11/2013,Current (non AEF) Grants to Local Authorities,Localism,DUDLEY MBC,,,,,5000237933,Council Tax Freeze,DY1 1HF,"113,608.00",Yes
Communities & Local Government,DCLG,15/11/2013,Current (non AEF) Grants to Local Authorities,Localism,DURHAM POLICE AUTHORITY,,,,224004882,5000238094,Council Tax Freeze for Police and Crime Commission,DH1 5TT,"72,798.00",Yes
Communities & Local Government,DCLG,15/11/2013,Current (non AEF) Grants to Local Authorities,Localism,DURHAM POLICE AUTHORITY,,,,224004882,5000238095,Local Council Tax Support for Police Commissioners,DH1 5TT,"536,487.00",Yes
Communities & Local Government,DCLG,15/11/2013,Current (non AEF) Grants to Local Authorities,Localism,DURHAM UNITARY AUTHORITY,,,,224004882,5000238084,Council Tax Freeze,DH1 5UE,"202,931.00",Yes
Communities & Local Government,DCLG,15/11/2013,Current (non AEF) Grants to Local Authorities,Localism,EALING LB,,,,,5000237934,Council Tax Freeze,W5 2HL,"126,478.00",Yes
Communities & Local Government,DCLG,15/11/2013,Current (non AEF) Grants to Local Authorities,Localism,EAST DEVON DC,,,,,5000237832,Council Tax Freeze,EX10 8HL,"7,086.00",Yes
Communities & Local Government,DCLG,15/11/2013,Current (non AEF) Grants to Local Authorities,Localism,EAST HERTFORDSHIRE DC,,,,236176954,5000237833,Council Tax Freeze,SG13 8EQ,"9,330.00",Yes
Communities & Local Government,DCLG,15/11/2013,Current (non AEF) Grants to Local Authorities,Localism,EAST NORTHAMPTONSHIRE COUNCIL,,,,227475290,5000237834,Council Tax Freeze,NN14 4LZ,"3,837.00",Yes
Communities & Local Government,DCLG,15/11/2013,Current (non AEF) Grants to Local Authorities,Localism,EAST RIDING OF YORKS (HSG),,,,423159987,5000237835,Council Tax Freeze,HU17 9BA,"144,830.00",Yes
Communities & Local Government,DCLG,15/11/2013,Current (non AEF) Grants to Local Authorities,Localism,EAST STAFFORDSHIRE BC,,,,226778033,5000237836,Council Tax Freeze,DE14 2EB,"6,884.00",Yes
Communities & Local Government,DCLG,15/11/2013,Current (non AEF) Grants to Local Authorities,Localism,EAST SUSSEX COUNTY CNCL,,,,,5000237935,Council Tax Freeze,BN7 1SF,"243,507.00",Yes
Communities & Local Government,DCLG,15/11/2013,Current (non AEF) Grants to Local Authorities,Localism,EAST SUSSEX FIRE AUTHORITY,,Large,,,5000238075,Council Tax Freeze,BN21 1EU,"24,993.00",Yes
Communities & Local Government,DCLG,15/11/2013,Current (non AEF) Grants to Local Authorities,Localism,EASTBOURNE BC,,,,229896428,5000237936,Council Tax Freeze,BN21 4TW,"8,120.00",Yes
Communities & Local Government,DCLG,15/11/2013,Current (non AEF) Grants to Local Authorities,Localism,EASTLEIGH BOROUGH COUNCIL,,,,232669911,5000237937,Council Tax Freeze,SO5 9YN,"6,009.00",Yes
Communities & Local Government,DCLG,15/11/2013,Current (non AEF) Grants to Local Authorities,Localism,ENFIELD LB,,,,,5000237938,Council Tax Freeze,EN1 3XF,"120,360.00",Yes
Communities & Local Government,DCLG,15/11/2013,Current (non AEF) Grants to Local Authorities,Localism,EPPING FOREST DC,,,,775876360,5000237939,Council Tax Freeze,CM16 4BZ,"8,208.00",Yes
Communities & Local Government,DCLG,15/11/2013,Current (non AEF) Grants to Local Authorities,Localism,EREWASH BC,,,,211209762,5000237940,Council Tax Freeze,DE7 5RP,"6,040.00",Yes
Communities & Local Government,DCLG,15/11/2013,Current (non AEF) Grants to Local Authorities,Localism,ESSEX COUNTY CNCL,,,,233572986,5000237941,Council Tax Freeze,CM1 1JZ,"582,275.00",Yes
Communities & Local Government,DCLG,15/11/2013,Current (non AEF) Grants to Local Authorities,Localism,ESSEX FIRE AUTHORITY,,Large,,424873099,5000238064,Council Tax Freeze,CM8 3HB,"43,259.00",Yes
Communities & Local Government,DCLG,15/11/2013,Current (non AEF) Grants to Local Authorities,Localism,ESSEX POLICE AUTHORITY,,,,232247825,5000238096,Local Council Tax Support for Police Commissioners,CM2 6DA,"1,095,708.00",Yes
Communities & Local Government,DCLG,15/11/2013,Current (non AEF) Grants to Local Authorities,Localism,ESSEX POLICE AUTHORITY,,,,232247825,5000238097,Council Tax Freeze for Police and Crime Commission,CM2 6DA,"213,298.00",Yes
Communities & Local Government,DCLG,15/11/2013,Current (non AEF) Grants to Local Authorities,Localism,FAREHAM BC,,,,228474144,5000237837,Council Tax Freeze,PO16 7PU,"6,100.00",Yes
Communities & Local Government,DCLG,15/11/2013,Current (non AEF) Grants to Local Authorities,Localism,FOREST HEATH DISTRICT COUNCIL,,,,236678116,5000237838,Council Tax Freeze,IP28 7EY,"2,489.00",Yes
Communities & Local Government,DCLG,15/11/2013,Current (non AEF) Grants to Local Authorities,Localism,FOREST OF DEAN DC,,,,211278890,5000237839,Council Tax Freeze,GL16 8HG,"4,839.00",Yes
Communities & Local Government,DCLG,15/11/2013,Current (non AEF) Grants to Local Authorities,Localism,FYLDE BC,,,,227479912,5000237942,Council Tax Freeze,FY8 1LW,"5,663.00",Yes
Communities & Local Government,DCLG,15/11/2013,Current (non AEF) Grants to Local Authorities,Localism,GATESHEAD MBC,,,,216116041,5000237943,Council Tax Freeze,NE8 1HH,"85,708.00",Yes
Communities & Local Government,DCLG,15/11/2013,Current (non AEF) Grants to Local Authorities,Localism,GLOUCESTER CITY CNCL,,,,230841392,5000237944,Council Tax Freeze,GL1 2EQ,"7,252.00",Yes
Communities & Local Government,DCLG,15/11/2013,Current (non AEF) Grants to Local Authorities,Localism,GLOUCESTERSHIRE COUNTY CNCL,,,,211272067,5000237945,Council Tax Freeze,GL1 2TG,"246,182.00",Yes
Communities & Local Government,DCLG,15/11/2013,Current (non AEF) Grants to Local Authorities,Localism,GOSPORT BOROUGH COUNCIL,,,,239825078,5000237946,Council Tax Freeze,PO12 1ED,"5,624.00",Yes
Communities & Local Government,DCLG,15/11/2013,Current (non AEF) Grants to Local Authorities,Localism,GREAT YARMOUTH BC,,,,292697372,5000237947,Council Tax Freeze,NR30 2QG,"4,642.00",Yes
Communities & Local Government,DCLG,15/11/2013,Current (non AEF) Grants to Local Authorities,Localism,GREATER LONDON AUTHORITY,,,,,5000238141,Local Council Tax Support for Police Commissioners,SE10 1AJ,"11,929,192.00",Yes
Communities & Local Government,DCLG,15/11/2013,Current (non AEF) Grants to Local Authorities,Localism,GREATER LONDON AUTHORITY,,,,,5000238142,Council Tax Freeze,SE10 1AJ,"944,771.00",Yes
Communities & Local Government,DCLG,15/11/2013,Current (non AEF) Grants to Local Authorities,Localism,GREENWICH LB,,,,,5000237948,Council Tax Freeze,SE18 6BU,"80,764.00",Yes
Communities & Local Government,DCLG,15/11/2013,Current (non AEF) Grants to Local Authorities,Localism,HAMBLETON DC (HSG),,,,503481319,5000237840,Council Tax Freeze,DL6 2UU,"3,266.00",Yes
Communities & Local Government,DCLG,15/11/2013,Current (non AEF) Grants to Local Authorities,Localism,HAMMERSMITH & FULHAM LB,,,,216929489,5000237950,Council Tax Freeze,W6 9JU,"62,574.00",Yes
Communities & Local Government,DCLG,15/11/2013,Current (non AEF) Grants to Local Authorities,Localism,HAMPSHIRE COUNTY COUNCIL,,,,211325832,5000237951,Council Tax Freeze,SO23 8UB,"535,812.00",Yes
Communities & Local Government,DCLG,15/11/2013,Current (non AEF) Grants to Local Authorities,Localism,HAMPSHIRE FIRE & RESCUE AUTHORITY,,Large,,,5000238074,Council Tax Freeze,SO23 8UB,"39,506.00",Yes
Communities & Local Government,DCLG,15/11/2013,Current (non AEF) Grants to Local Authorities,Localism,HAMPSHIRE POLICE AUTHORITY,,,,211325832,5000238098,Local Council Tax Support for Police Commissioners,SO23 8UB,"1,039,073.00",Yes
Communities & Local Government,DCLG,15/11/2013,Current (non AEF) Grants to Local Authorities,Localism,HAMPSHIRE POLICE AUTHORITY,,,,211325832,5000238099,Council Tax Freeze for Police and Crime Commission,SO23 8UB,"251,994.00",Yes
Communities & Local Government,DCLG,15/11/2013,Current (non AEF) Grants to Local Authorities,Localism,HARBOROUGH DC (HSG),,,,212935774,5000237841,Council Tax Freeze,LE16 7AG,"5,607.00",Yes
Communities & Local Government,DCLG,15/11/2013,Current (non AEF) Grants to Local Authorities,Localism,HARINGEY LB,,,,217471767,5000237952,Council Tax Freeze,N22 4TR,"100,997.00",Yes
Communities & Local Government,DCLG,15/11/2013,Current (non AEF) Grants to Local Authorities,Localism,HARROGATE BC,,,,236660031,5000237842,Council Tax Freeze,HG1 2SG,"13,854.00",Yes
Communities & Local Government,DCLG,15/11/2013,Current (non AEF) Grants to Local Authorities,Localism,HART DC,,,,229723895,5000237953,Council Tax Freeze,GU13 8AE,"5,874.00",Yes
Communities & Local Government,DCLG,15/11/2013,Current (non AEF) Grants to Local Authorities,Localism,HARTLEPOOL BOROUGH COUNCIL,,,,424291797,5000237954,Council Tax Freeze,TS24 7BT,"40,811.00",Yes
Communities & Local Government,DCLG,15/11/2013,Current (non AEF) Grants to Local Authorities,Localism,HASTINGS BC,,,,,5000237955,Council Tax Freeze,TN34 3WN,"7,012.00",Yes
Communities & Local Government,DCLG,15/11/2013,Current (non AEF) Grants to Local Authorities,Localism,HAVANT BC,,,,211047543,5000237956,Council Tax Freeze,PO9 2AX,"8,323.00",Yes
Communities & Local Government,DCLG,15/11/2013,Current (non AEF) Grants to Local Authorities,Localism,HAVERING LB,,,,211209770,5000237957,Council Tax Freeze,RM1 3BB,"109,761.00",Yes
Communities & Local Government,DCLG,15/11/2013,Current (non AEF) Grants to Local Authorities,Localism,HEREFORD WORCESTER FIRE & RESCUE,,Large,,236425484,5000238069,Council Tax Freeze,WR5 1JR,"20,964.00",Yes
Communities & Local Government,DCLG,15/11/2013,Current (non AEF) Grants to Local Authorities,Localism,HERTFORDSHIRE COUNTY CNCL,,,,210659897,5000237958,Council Tax Freeze,SG13 8DQ,"505,857.00",Yes
Communities & Local Government,DCLG,15/11/2013,Current (non AEF) Grants to Local Authorities,Localism,HERTFORDSHIRE POLICE AUTHORITY,,,,,5000238100,Local Council Tax Support for Police Commissioners,AL8 6XF,"652,230.00",Yes
Communities & Local Government,DCLG,15/11/2013,Current (non AEF) Grants to Local Authorities,Localism,HERTFORDSHIRE POLICE AUTHORITY,,,,,5000238101,Council Tax Freeze for Police and Crime Commission,AL8 6XF,"166,030.00",Yes
Communities & Local Government,DCLG,15/11/2013,Current (non AEF) Grants to Local Authorities,Localism,HERTFORDSHIRE POLICE AUTHORITY,,,,,5000238102,Council Tax Freeze,AL8 6XF,"66,834.00",Yes
Communities & Local Government,DCLG,15/11/2013,Current (non AEF) Grants to Local Authorities,Localism,HERTSMERE BC,,,,237549253,5000237959,Council Tax Freeze,WD6 1WA,"6,526.00",Yes
Communities & Local Government,DCLG,15/11/2013,Current (non AEF) Grants to Local Authorities,Localism,HIGH PEAK BC,,,,239967771,5000237843,Council Tax Freeze,SK17 6EL,"5,666.00",Yes
Communities & Local Government,DCLG,15/11/2013,Current (non AEF) Grants to Local Authorities,Localism,HILLINGDON LB,,,,211198585,5000237960,Council Tax Freeze,UB8 1UW,"111,894.00",Yes
Communities & Local Government,DCLG,15/11/2013,Current (non AEF) Grants to Local Authorities,Localism,HINCKLEY & BOSWORTH BC,,,,211176144,5000237844,Council Tax Freeze,LE10 1BZ,"4,228.00",Yes
Communities & Local Government,DCLG,15/11/2013,Current (non AEF) Grants to Local Authorities,Localism,HORSHAM DC,,,,229776588,5000237845,Council Tax Freeze,RH12 1RL,"8,181.00",Yes
Communities & Local Government,DCLG,15/11/2013,Current (non AEF) Grants to Local Authorities,Localism,HOUNSLOW LB,,Public Bodies,,210388999,5000237961,Council Tax Freeze,TW3 4DN,"97,363.00",Yes
Communities & Local Government,DCLG,15/11/2013,Current (non AEF) Grants to Local Authorities,Localism,HUMBERSIDE FIRE & RESCUE SERVICE,,,,229832563,5000238065,Council Tax Freeze,HU4 7BB,"22,523.00",Yes
Communities & Local Government,DCLG,15/11/2013,Current (non AEF) Grants to Local Authorities,Localism,HUMBERSIDE POLICE,,,,232100073,5000238103,Council Tax Freeze,HU5 5SF,"50,039.00",Yes
Communities & Local Government,DCLG,15/11/2013,Current (non AEF) Grants to Local Authorities,Localism,HUMBERSIDE POLICE,,,,232100073,5000238104,Council Tax Freeze for Police and Crime Commission,HU5 5SF,"119,945.00",Yes
Communities & Local Government,DCLG,15/11/2013,Current (non AEF) Grants to Local Authorities,Localism,HUMBERSIDE POLICE,,,,232100073,5000238105,Local Council Tax Support for Police Commissioners,HU5 5SF,"831,434.00",Yes
Communities & Local Government,DCLG,15/11/2013,Current (non AEF) Grants to Local Authorities,Localism,HYNDBURN BC,,,,,5000237962,Council Tax Freeze,BB5 1EZ,"5,342.00",Yes
Communities & Local Government,DCLG,15/11/2013,Current (non AEF) Grants to Local Authorities,Localism,ISLE OF WIGHT CNCL,,,,236431730,5000237963,Council Tax Freeze,PO30 1UD,"72,478.00",Yes
Communities & Local Government,DCLG,15/11/2013,Current (non AEF) Grants to Local Authorities,Localism,ISLES OF SCILLY COUNCIL,,,,214146040,5000237964,Council Tax Freeze,TR21 0LW,"1,391.00",Yes
Communities & Local Government,DCLG,15/11/2013,Current (non AEF) Grants to Local Authorities,Localism,ISLINGTON LB,,,,225716729,5000237965,Council Tax Freeze,N1 1XR,"86,416.00",Yes
Communities & Local Government,DCLG,15/11/2013,Current (non AEF) Grants to Local Authorities,Localism,KENT & MEDWAY TOWNS FIRE AUTHORITY,,Large,,423679414,5000238066,Council Tax Freeze,ME15 6XB,"43,443.00",Yes
Communities & Local Government,DCLG,15/11/2013,Current (non AEF) Grants to Local Authorities,Localism,KENT COUNTY CNCL,,,,211334420,5000237967,Council Tax Freeze,ME14 1XQ,"577,588.00",Yes
Communities & Local Government,DCLG,15/11/2013,Current (non AEF) Grants to Local Authorities,Localism,KETTERING BC,,,,211271796,5000237968,Council Tax Freeze,NN15 7QX,"6,310.00",Yes
Communities & Local Government,DCLG,15/11/2013,Current (non AEF) Grants to Local Authorities,Localism,KINGS LYNN & WEST NORFOLK BC,,,,236417671,5000237846,Council Tax Freeze,PE30 1EX,"6,496.00",Yes
Communities & Local Government,DCLG,15/11/2013,Current (non AEF) Grants to Local Authorities,Localism,KNOWSLEY MBC,,,,,5000237969,Council Tax Freeze,L36 9YZ,"52,215.00",Yes
Communities & Local Government,DCLG,15/11/2013,Current (non AEF) Grants to Local Authorities,Localism,LANCASHIRE COMBINED FIRE AUTHORITY,,Large,,230398732,5000238071,Council Tax Freeze,PR2 3LH,"29,967.00",Yes
Communities & Local Government,DCLG,15/11/2013,Current (non AEF) Grants to Local Authorities,Localism,LANCASHIRE COUNTY CNCL,,,,233136584,5000237971,Council Tax Freeze,PR1 8RD,"428,097.00",Yes
Communities & Local Government,DCLG,15/11/2013,Current (non AEF) Grants to Local Authorities,Localism,LANCASHIRE POLICE AUTHORITY,,,,,5000238106,Local Council Tax Support for Police Commissioners,PR1 0LD,"1,107,699.00",Yes
Communities & Local Government,DCLG,15/11/2013,Current (non AEF) Grants to Local Authorities,Localism,LANCASHIRE POLICE AUTHORITY,,,,,5000238107,Council Tax Freeze for Police and Crime Commission,PR1 0LD,"171,410.00",Yes
Communities & Local Government,DCLG,15/11/2013,Current (non AEF) Grants to Local Authorities,Localism,LEEDS CITY CNCL,,Micro,,,5000237972,Council Tax Freeze,LS1 1JF,"276,572.00",Yes
Communities & Local Government,DCLG,15/11/2013,Current (non AEF) Grants to Local Authorities,Localism,LEICESTERSHIRE COUNTY CNCL,,,,423679836,5000237973,Council Tax Freeze,LE3 8RB,"242,736.00",Yes
Communities & Local Government,DCLG,15/11/2013,Current (non AEF) Grants to Local Authorities,Localism,LEICESTERSHIRE POLICE AUTHORITY,,,,,5000238108,Council Tax Freeze for Police and Crime Commission,LE99 1A2,"134,946.00",Yes
Communities & Local Government,DCLG,15/11/2013,Current (non AEF) Grants to Local Authorities,Localism,LEICESTERSHIRE POLICE AUTHORITY,,,,,5000238109,Council Tax Freeze,LE99 1A2,"56,107.00",Yes
Communities & Local Government,DCLG,15/11/2013,Current (non AEF) Grants to Local Authorities,Localism,LEICESTERSHIRE POLICE AUTHORITY,,,,,5000238110,Local Council Tax Support for Police Commissioners,LE99 1A2,"699,787.00",Yes
Communities & Local Government,DCLG,15/11/2013,Current (non AEF) Grants to Local Authorities,Localism,LEWES DC,,,,213090082,5000237847,Council Tax Freeze,BN7 2DQ,"7,546.00",Yes
Communities & Local Government,DCLG,15/11/2013,Current (non AEF) Grants to Local Authorities,Localism,LINCOLNSHIRE COUNTY COUNCIL,,,,,5000237974,Council Tax Freeze,LN1 1YT,"254,652.00",Yes
Communities & Local Government,DCLG,15/11/2013,Current (non AEF) Grants to Local Authorities,Localism,LINCOLNSHIRE POLICE AUTHORITY,,,,210385075,5000238111,Local Council Tax Support for Police Commissioners,LN5 7PH,"575,635.00",Yes
Communities & Local Government,DCLG,15/11/2013,Current (non AEF) Grants to Local Authorities,Localism,LINCOLNSHIRE POLICE AUTHORITY,,,,210385075,5000238112,Council Tax Freeze for Police and Crime Commission,LN5 7PH,"105,867.00",Yes
Communities & Local Government,DCLG,15/11/2013,Current (non AEF) Grants to Local Authorities,Localism,LONDON BOROUGH OF HACKNEY,,,,225221597,5000237949,Council Tax Freeze,E8 4RU,"82,475.00",Yes
Communities & Local Government,DCLG,15/11/2013,Current (non AEF) Grants to Local Authorities,Localism,LONDON BOROUGH OF LAMBETH,,,,228216479,5000237970,Council Tax Freeze,SW2 1RL,"100,060.00",Yes
Communities & Local Government,DCLG,15/11/2013,Current (non AEF) Grants to Local Authorities,Localism,LONDON BOROUGH OF NEWHAM,,,,211381004,5000237979,Council Tax Freeze,E16 2QU,"74,058.00",Yes
Communities & Local Government,DCLG,15/11/2013,Current (non AEF) Grants to Local Authorities,Localism,LONDON BOROUGH OF REDBRIDGE,,,,211341417,5000237989,Council Tax Freeze,IG1 1NN,"102,216.00",Yes
Communities & Local Government,DCLG,15/11/2013,Current (non AEF) Grants to Local Authorities,Localism,MANSFIELD DC,,,,237922968,5000237975,Council Tax Freeze,NG19 7BH,"5,862.00",Yes
Communities & Local Government,DCLG,15/11/2013,Current (non AEF) Grants to Local Authorities,Localism,MELTON BC,,,,346268340,5000237848,Council Tax Freeze,LE13 0UL,"3,426.00",Yes
Communities & Local Government,DCLG,15/11/2013,Current (non AEF) Grants to Local Authorities,Localism,MENDIP DISTRICT COUNCIL,,,,,5000237849,Council Tax Freeze,BA4 5BA,"5,985.00",Yes
Communities & Local Government,DCLG,15/11/2013,Current (non AEF) Grants to Local Authorities,Localism,MERSEYSIDE POLICE AUTHORITY,,,,,5000238113,Council Tax Freeze for Police and Crime Commission,L69 1JD,"153,758.00",Yes
Communities & Local Government,DCLG,15/11/2013,Current (non AEF) Grants to Local Authorities,Localism,MERSEYSIDE POLICE AUTHORITY,,,,,5000238114,Local Council Tax Support for Police Commissioners,L69 1JD,"1,405,816.00",Yes
Communities & Local Government,DCLG,15/11/2013,Current (non AEF) Grants to Local Authorities,Localism,MERTON LB,,,,,5000237976,Council Tax Freeze,SM4 5DX,"84,784.00",Yes
Communities & Local Government,DCLG,15/11/2013,Current (non AEF) Grants to Local Authorities,Localism,MID DEVON DC,,,,213241137,5000237850,Council Tax Freeze,EX16 6PP,"5,284.00",Yes
Communities & Local Government,DCLG,15/11/2013,Current (non AEF) Grants to Local Authorities,Localism,MID SUFFOLK DC,,,,223387239,5000237851,Council Tax Freeze,IP1 2DH,"5,562.00",Yes
Communities & Local Government,DCLG,15/11/2013,Current (non AEF) Grants to Local Authorities,Localism,MID SUSSEX DC,,,,236675989,5000237852,Council Tax Freeze,RH16 1SS,"8,810.00",Yes
Communities & Local Government,DCLG,15/11/2013,Current (non AEF) Grants to Local Authorities,Localism,NEW FOREST DC,,Public Bodies,,,5000237853,Council Tax Freeze,SO43 9ZG,"11,575.00",Yes
Communities & Local Government,DCLG,15/11/2013,Current (non AEF) Grants to Local Authorities,Localism,NEWARK & SHERWOOD DC (HSG),,,,236186755,5000237854,Council Tax Freeze,NG23 5QX,"6,351.00",Yes
Communities & Local Government,DCLG,15/11/2013,Current (non AEF) Grants to Local Authorities,Localism,NEWCASTLE UNDER LYME BC,,,,229894373,5000237977,Council Tax Freeze,ST5 2AG,"6,961.00",Yes
Communities & Local Government,DCLG,15/11/2013,Current (non AEF) Grants to Local Authorities,Localism,NEWCASTLE UPON TYNE DC,,,,239154040,5000237978,Council Tax Freeze,NE99 1RD,"104,671.00",Yes
Communities & Local Government,DCLG,15/11/2013,Current (non AEF) Grants to Local Authorities,Localism,NORFOLK COUNTY COUNCIL,,,,232602789,5000237980,Council Tax Freeze,NR1 2DW,"349,090.00",Yes
Communities & Local Government,DCLG,15/11/2013,Current (non AEF) Grants to Local Authorities,Localism,NORTH DEVON DC,,,,,5000237855,Council Tax Freeze,EX31 1EA,"5,763.00",Yes
Communities & Local Government,DCLG,15/11/2013,Current (non AEF) Grants to Local Authorities,Localism,NORTH EAST LINCOLN DC (HSG),,,,211242737,5000237856,Council Tax Freeze,DN35 8LN,"61,235.00",Yes
Communities & Local Government,DCLG,15/11/2013,Current (non AEF) Grants to Local Authorities,Localism,NORTH LINCOLNSHIRE DC (HSG),,Public Bodies,,424005502,5000237857,Council Tax Freeze,DN16 1AB,"67,189.00",Yes
Communities & Local Government,DCLG,15/11/2013,Current (non AEF) Grants to Local Authorities,Localism,NORTH NORFOLK DC,,,,239975964,5000237858,Council Tax Freeze,NR27 9EJ,"5,776.00",Yes
Communities & Local Government,DCLG,15/11/2013,Current (non AEF) Grants to Local Authorities,Localism,NORTH TYNESIDE MBC,,,,,5000237981,Council Tax Freeze,NE27 0BY,"85,842.00",Yes
Communities & Local Government,DCLG,15/11/2013,Current (non AEF) Grants to Local Authorities,Localism,NORTH WARWICKSHIRE BC,,Large,,,5000237859,Council Tax Freeze,CV9 1DE,"4,466.00",Yes
Communities & Local Government,DCLG,15/11/2013,Current (non AEF) Grants to Local Authorities,Localism,NORTH WEST LEICESTER DC,,,,232605782,5000237860,Council Tax Freeze,LE67 3FJ,"5,606.00",Yes
Communities & Local Government,DCLG,15/11/2013,Current (non AEF) Grants to Local Authorities,Localism,NORTH YORKSHIRE CC (DL7 8AL),,,,,5000237982,Council Tax Freeze,DL7 8AL,"249,548.00",Yes
Communities & Local Government,DCLG,15/11/2013,Current (non AEF) Grants to Local Authorities,Localism,NORTH YORKSHIRE FIRE & RESCUE AUTH,,Large,,423679778,5000238076,Council Tax Freeze,DL6 2ND,"18,810.00",Yes
Communities & Local Government,DCLG,15/11/2013,Current (non AEF) Grants to Local Authorities,Localism,NORTH YORKSHIRE POLICE AUTHORITY,,,,42430130,5000238118,Council Tax Freeze for Police and Crime Commission,DL7 9HA,"153,221.00",Yes
Communities & Local Government,DCLG,15/11/2013,Current (non AEF) Grants to Local Authorities,Localism,NORTH YORKSHIRE POLICE AUTHORITY,,,,42430130,5000238119,Council Tax Freeze,DL7 9HA,"61,957.00",Yes
Communities & Local Government,DCLG,15/11/2013,Current (non AEF) Grants to Local Authorities,Localism,NORTH YORKSHIRE POLICE AUTHORITY,,,,42430130,5000238120,Local Council Tax Support for Police Commissioners,DL7 9HA,"572,767.00",Yes
Communities & Local Government,DCLG,15/11/2013,Current (non AEF) Grants to Local Authorities,Localism,NORTHAMPTON BOROUGH COUNCIL,,,,228310017,5000237983,Council Tax Freeze,NN4 4FF,"14,624.00",Yes
Communities & Local Government,DCLG,15/11/2013,Current (non AEF) Grants to Local Authorities,Localism,NORTHAMPTONSHIRE COUNTY COUNCIL,,,,,5000237984,Council Tax Freeze,CB3 0AP,"244,535.00",Yes
Communities & Local Government,DCLG,15/11/2013,Current (non AEF) Grants to Local Authorities,Localism,NORTHAMPTONSHIRE POLICE AUTH,,,,216745252,5000238115,Local Council Tax Support for Police Commissioners,NN1 5DQ,"503,719.00",Yes
Communities & Local Government,DCLG,15/11/2013,Current (non AEF) Grants to Local Authorities,Localism,NORTHAMPTONSHIRE POLICE AUTH,,,,216745252,5000238116,Council Tax Freeze,NN1 5DQ,"45,952.00",Yes
Communities & Local Government,DCLG,15/11/2013,Current (non AEF) Grants to Local Authorities,Localism,NORTHAMPTONSHIRE POLICE AUTH,,,,216745252,5000238117,Council Tax Freeze for Police and Crime Commission,NN1 5DQ,"113,152.00",Yes
Communities & Local Government,DCLG,15/11/2013,Current (non AEF) Grants to Local Authorities,Localism,NORTHUMBERLAND COUNTY COUNCIL,,,,210308905,5000238078,Council Tax Freeze,NE61 2EF,"153,766.00",Yes
Communities & Local Government,DCLG,15/11/2013,Current (non AEF) Grants to Local Authorities,Localism,NOTTINGHAMSHIRE COUNTY CNCL,,,,,5000237985,Council Tax Freeze,NG1 4BU,"312,392.00",Yes
Communities & Local Government,DCLG,15/11/2013,Current (non AEF) Grants to Local Authorities,Localism,NOTTS & CITY NOTTINGHAM FIRE AUTH,,Large,,296814999,5000238068,Council Tax Freeze,NG5 8PD,"23,581.00",Yes
Communities & Local Government,DCLG,15/11/2013,Current (non AEF) Grants to Local Authorities,Localism,NUNEATON & BEDWORTH BC,,Large,,,5000237986,Council Tax Freeze,CV11 5AA,"8,005.00",Yes
Communities & Local Government,DCLG,15/11/2013,Current (non AEF) Grants to Local Authorities,Localism,OADBY & WIGSTON BC (HSG),,,,239831878,5000237861,Council Tax Freeze,LE8 2DR,"3,763.00",Yes
Communities & Local Government,DCLG,15/11/2013,Current (non AEF) Grants to Local Authorities,Localism,PENDLE BC,,,,548605328,5000237987,Council Tax Freeze,BB9 OLX,"6,228.00",Yes
Communities & Local Government,DCLG,15/11/2013,Current (non AEF) Grants to Local Authorities,Localism,PETERBOROUGH CITY CNCL,,,,,5000237988,Council Tax Freeze,PE1 1HG,"64,927.00",Yes
Communities & Local Government,DCLG,15/11/2013,Current (non AEF) Grants to Local Authorities,Localism,POLICE & CRIME COMM GTR MANCHESTER,,,,212372242,5000238044,Local Council Tax Support for Police Commissioners,M27 5DA,"2,148,651.00",Yes
Communities & Local Government,DCLG,15/11/2013,Current (non AEF) Grants to Local Authorities,Localism,POLICE & CRIME COMM GTR MANCHESTER,,,,212372242,5000238045,Council Tax Freeze for Police and Crime Commission,M27 5DA,"289,997.00",Yes
Communities & Local Government,DCLG,15/11/2013,Current (non AEF) Grants to Local Authorities,Localism,POLICE & CRIME COMM'R DERBYSHIRE (R,,,,365179337,5000238038,Local Council Tax Support for Police Commissioners,DE5 3RS,"732,241.00",Yes
Communities & Local Government,DCLG,15/11/2013,Current (non AEF) Grants to Local Authorities,Localism,POLICE & CRIME COMM'R DERBYSHIRE (R,,,,365179337,5000238039,Council Tax Freeze for Police and Crime Commission,DE5 3RS,"135,401.00",Yes
Communities & Local Government,DCLG,15/11/2013,Current (non AEF) Grants to Local Authorities,Localism,POLICE & CRIME COMM'R FOR CHESHIRE,,,,211207737,5000238032,Council Tax Freeze for Police and Crime Commission,CW7 9FX,"136,142.00",Yes
Communities & Local Government,DCLG,15/11/2013,Current (non AEF) Grants to Local Authorities,Localism,POLICE & CRIME COMM'R FOR CHESHIRE,,,,211207737,5000238033,Local Council Tax Support for Police Commissioners,CW7 9FX,"628,911.00",Yes
Communities & Local Government,DCLG,15/11/2013,Current (non AEF) Grants to Local Authorities,Localism,POLICE & CRIME COMM'R FOR CLEVELAND,,,,211208668,5000238034,Local Council Tax Support for Police Commissioners,TS8 2JX,"684,618.00",Yes
Communities & Local Government,DCLG,15/11/2013,Current (non AEF) Grants to Local Authorities,Localism,POLICE & CRIME COMM'R FOR CLEVELAND,,,,211208668,5000238035,Council Tax Freeze for Police and Crime Commission,TS8 2JX,"79,998.00",Yes
Communities & Local Government,DCLG,15/11/2013,Current (non AEF) Grants to Local Authorities,Localism,POLICE & CRIME COMM'R FOR CUMBRIA (,,,,,5000238036,Council Tax Freeze for Police and Crime Commission,CA10 2AU,"85,782.00",Yes
Communities & Local Government,DCLG,15/11/2013,Current (non AEF) Grants to Local Authorities,Localism,POLICE & CRIME COMM'R FOR CUMBRIA (,,,,,5000238037,Local Council Tax Support for Police Commissioners,CA10 2AU,"397,914.00",Yes
Communities & Local Government,DCLG,15/11/2013,Current (non AEF) Grants to Local Authorities,Localism,POLICE & CRIME COMM'R FOR DORSET (R,,,,855985981,5000238040,Council Tax Freeze for Police and Crime Commission,DT2 8DZ,"133,052.00",Yes
Communities & Local Government,DCLG,15/11/2013,Current (non AEF) Grants to Local Authorities,Localism,POLICE & CRIME COMM'R FOR DORSET (R,,,,855985981,5000238041,Local Council Tax Support for Police Commissioners,DT2 8DZ,"599,012.00",Yes
Communities & Local Government,DCLG,15/11/2013,Current (non AEF) Grants to Local Authorities,Localism,POLICE & CRIME COMM'R FOR GLOCS (RS,,,,210876764,5000238042,Local Council Tax Support for Police Commissioners,GL51 6QH,"446,411.00",Yes
Communities & Local Government,DCLG,15/11/2013,Current (non AEF) Grants to Local Authorities,Localism,POLICE & CRIME COMM'R FOR GLOCS (RS,,,,210876764,5000238043,Council Tax Freeze for Police and Crime Commission,GL51 6QH,"111,675.00",Yes
Communities & Local Government,DCLG,15/11/2013,Current (non AEF) Grants to Local Authorities,Localism,POLICE & CRIME COMM'R FOR KENT,,,,214599107,5000238046,Council Tax Freeze for Police and Crime Commission,ME15 9BZ,"220,350.00",Yes
Communities & Local Government,DCLG,15/11/2013,Current (non AEF) Grants to Local Authorities,Localism,POLICE & CRIME COMM'R FOR KENT,,,,214599107,5000238047,Local Council Tax Support for Police Commissioners,ME15 9BZ,"1,105,851.00",Yes
Communities & Local Government,DCLG,15/11/2013,Current (non AEF) Grants to Local Authorities,Localism,POLICE & CRIME COMM'R FOR NORFOLK (,,,,232602789,5000238048,Local Council Tax Support for Police Commissioners,NR18 0WW,"785,135.00",Yes
Communities & Local Government,DCLG,15/11/2013,Current (non AEF) Grants to Local Authorities,Localism,POLICE & CRIME COMM'R FOR NORFOLK (,,,,232602789,5000238049,Council Tax Freeze for Police and Crime Commission,NR18 0WW,"142,790.00",Yes
Communities & Local Government,DCLG,15/11/2013,Current (non AEF) Grants to Local Authorities,Localism,POLICE & CRIME COMM'R FOR NOTTS (RS,,,,,5000238052,Local Council Tax Support for Police Commissioners,NG5 8PP,"836,716.00",Yes
Communities & Local Government,DCLG,15/11/2013,Current (non AEF) Grants to Local Authorities,Localism,POLICE & CRIME COMM'R FOR NOTTS (RS,,,,,5000238053,Council Tax Freeze for Police and Crime Commission,NG5 8PP,"133,210.00",Yes
Communities & Local Government,DCLG,15/11/2013,Current (non AEF) Grants to Local Authorities,Localism,POLICE & CRIME COMM'R FOR SUSSEX,,,,734063501,5000238054,Local Council Tax Support for Police Commissioners,BN7 2DZ,"1,010,710.00",Yes
Communities & Local Government,DCLG,15/11/2013,Current (non AEF) Grants to Local Authorities,Localism,POLICE & CRIME COMM'R FOR SUSSEX,,,,734063501,5000238055,Council Tax Freeze for Police and Crime Commission,BN7 2DZ,"217,552.00",Yes
Communities & Local Government,DCLG,15/11/2013,Current (non AEF) Grants to Local Authorities,Localism,POLICE & CRIME COMM'R FOR SUSSEX,,,,734063501,5000238056,Council Tax Freeze,BN7 2DZ,"88,647.00",Yes
Communities & Local Government,DCLG,15/11/2013,Current (non AEF) Grants to Local Authorities,Localism,POLICE & CRIME COMM'R FOR WILTSHIRE,,,,,5000238060,Council Tax Freeze for Police and Crime Commission,BA14 8JJ,"99,055.00",Yes
Communities & Local Government,DCLG,15/11/2013,Current (non AEF) Grants to Local Authorities,Localism,POLICE & CRIME COMM'R FOR WILTSHIRE,,,,,5000238061,Council Tax Freeze,BA14 8JJ,"40,228.00",Yes
Communities & Local Government,DCLG,15/11/2013,Current (non AEF) Grants to Local Authorities,Localism,POLICE & CRIME COMM'R FOR WILTSHIRE,,,,,5000238062,Local Council Tax Support for Police Commissioners,BA14 8JJ,"382,967.00",Yes
Communities & Local Government,DCLG,15/11/2013,Current (non AEF) Grants to Local Authorities,Localism,POLICE & CRIME COMM'R NORTHUMBRIA (,,,,,5000238050,Council Tax Freeze for Police and Crime Commission,NE1 8DL,"91,193.00",Yes
Communities & Local Government,DCLG,15/11/2013,Current (non AEF) Grants to Local Authorities,Localism,POLICE & CRIME COMM'R NORTHUMBRIA (,,,,,5000238051,Local Council Tax Support for Police Commissioners,NE1 8DL,"684,464.00",Yes
Communities & Local Government,DCLG,15/11/2013,Current (non AEF) Grants to Local Authorities,Localism,POLICE & CRIME COMM'R THAMES VALLEY,,,,232914853,5000238057,Council Tax Freeze for Police and Crime Commission,OX5 2NX,"337,242.00",Yes
Communities & Local Government,DCLG,15/11/2013,Current (non AEF) Grants to Local Authorities,Localism,POLICE & CRIME COMM'R THAMES VALLEY,,,,232914853,5000238058,Local Council Tax Support for Police Commissioners,OX5 2NX,"1,186,771.00",Yes
Communities & Local Government,DCLG,15/11/2013,Current (non AEF) Grants to Local Authorities,Localism,POOLE BC (HSG),,,,,5000237862,Council Tax Freeze,BH15 2RU,"73,068.00",Yes
Communities & Local Government,DCLG,15/11/2013,Current (non AEF) Grants to Local Authorities,Localism,REDDITCH BC,,,,231421491,5000237990,Council Tax Freeze,B98 8AH,"5,819.00",Yes
Communities & Local Government,DCLG,15/11/2013,Current (non AEF) Grants to Local Authorities,Localism,RIBBLE VALLEY BC,,,,232617894,5000237863,Council Tax Freeze,BB7 2RA,"3,148.00",Yes
Communities & Local Government,DCLG,15/11/2013,Current (non AEF) Grants to Local Authorities,Localism,RICHMOND UPON THAMES LB,,,,228868535,5000237991,Council Tax Freeze,TW1 3BZ,"117,648.00",Yes
Communities & Local Government,DCLG,15/11/2013,Current (non AEF) Grants to Local Authorities,Localism,ROSSENDALE BC,,,,237654020,5000237992,Council Tax Freeze,BB4 7LZ,"5,473.00",Yes
Communities & Local Government,DCLG,15/11/2013,Current (non AEF) Grants to Local Authorities,Localism,ROTHER DC (HSG),,,,,5000237864,Council Tax Freeze,TN39 3JX,"7,337.00",Yes
Communities & Local Government,DCLG,15/11/2013,Current (non AEF) Grants to Local Authorities,Localism,ROTHERHAM MBC,,,,211266937,5000237993,Council Tax Freeze,S60 1AE,"96,472.00",Yes
Communities & Local Government,DCLG,15/11/2013,Current (non AEF) Grants to Local Authorities,Localism,ROYAL BOROUGH OF KENSINGTON & CHELS,,,,211124466,5000237966,Council Tax Freeze,W8 7NX,"80,398.00",Yes
Communities & Local Government,DCLG,15/11/2013,Current (non AEF) Grants to Local Authorities,Localism,RUGBY BC,,,,,5000237994,Council Tax Freeze,CV21 2LA,"6,137.00",Yes
Communities & Local Government,DCLG,15/11/2013,Current (non AEF) Grants to Local Authorities,Localism,RUSHMOOR BC,,,,232607606,5000237995,Council Tax Freeze,GU14 7JU,"5,905.00",Yes
Communities & Local Government,DCLG,15/11/2013,Current (non AEF) Grants to Local Authorities,Localism,RUTLAND CC,,,,,5000237996,Council Tax Freeze,LE15 6HP,"21,042.00",Yes
Communities & Local Government,DCLG,15/11/2013,Current (non AEF) Grants to Local Authorities,Localism,RYEDALE DC,,,,,5000237865,Council Tax Freeze,YO17 0HH,"3,804.00",Yes
Communities & Local Government,DCLG,15/11/2013,Current (non AEF) Grants to Local Authorities,Localism,SALFORD CITY CNCL,,,,213180073,5000237997,Council Tax Freeze,M27 5AW,"94,346.00",Yes
Communities & Local Government,DCLG,15/11/2013,Current (non AEF) Grants to Local Authorities,Localism,SANDWELL MBC,,,,,5000237998,Council Tax Freeze,B69 3BS,"103,789.00",Yes
Communities & Local Government,DCLG,15/11/2013,Current (non AEF) Grants to Local Authorities,Localism,SCARBOROUGH BC,,Large,,,5000237866,Council Tax Freeze,YO11 2HG,"8,994.00",Yes
Communities & Local Government,DCLG,15/11/2013,Current (non AEF) Grants to Local Authorities,Localism,SEFTON MBC,,,,232936125,5000237999,Council Tax Freeze,L20 3NQ,"117,279.00",Yes
Communities & Local Government,DCLG,15/11/2013,Current (non AEF) Grants to Local Authorities,Localism,SELBY DC,,,,239816721,5000237867,Council Tax Freeze,YO8 0SA,"4,812.00",Yes
Communities & Local Government,DCLG,15/11/2013,Current (non AEF) Grants to Local Authorities,Localism,SHEFFIELD CITY CNCL,,,,,5000238000,Council Tax Freeze,S1 1UR,"191,363.00",Yes
Communities & Local Government,DCLG,15/11/2013,Current (non AEF) Grants to Local Authorities,Localism,SHEPWAY DISTRICT COUNCIL,,,,235550878,5000237868,Council Tax Freeze,CT20 2QY,"9,859.00",Yes
Communities & Local Government,DCLG,15/11/2013,Current (non AEF) Grants to Local Authorities,Localism,SHROPSHIRE UNITARY AUTHORITY,,,,217036490,5000238082,Council Tax Freeze,SY2 6ND,"131,245.00",Yes
Communities & Local Government,DCLG,15/11/2013,Current (non AEF) Grants to Local Authorities,Localism,SOLIHULL MBC,,,,,5000238001,Council Tax Freeze,B91 3QR,"94,788.00",Yes
Communities & Local Government,DCLG,15/11/2013,Current (non AEF) Grants to Local Authorities,Localism,SOMERSET COUNTY CNCL,,,,211229406,5000238002,Council Tax Freeze,TA1 4DY,"204,156.00",Yes
Communities & Local Government,DCLG,15/11/2013,Current (non AEF) Grants to Local Authorities,Localism,SOUTH BUCKS DC (HSG),,,,,5000237869,Council Tax Freeze,UB9 4LH,"4,726.00",Yes
Communities & Local Government,DCLG,15/11/2013,Current (non AEF) Grants to Local Authorities,Localism,SOUTH DERBYSHIRE D C,,,,232612416,5000237870,Council Tax Freeze,DE11 0AH,"4,894.00",Yes
Communities & Local Government,DCLG,15/11/2013,Current (non AEF) Grants to Local Authorities,Localism,SOUTH GLOUCESTERSHIRE DC (HSG),,,,,5000237871,Council Tax Freeze,BS15 2TR,"116,078.00",Yes
Communities & Local Government,DCLG,15/11/2013,Current (non AEF) Grants to Local Authorities,Localism,SOUTH HOLLAND,,,,236445383,5000237872,Council Tax Freeze,PE11 2XE,"4,649.00",Yes
Communities & Local Government,DCLG,15/11/2013,Current (non AEF) Grants to Local Authorities,Localism,SOUTH LAKELAND DC,,,,236445466,5000237873,Council Tax Freeze,LA49 4DQ,"8,291.00",Yes
Communities & Local Government,DCLG,15/11/2013,Current (non AEF) Grants to Local Authorities,Localism,SOUTH NORFOLK DC,,,,232605717,5000237874,Council Tax Freeze,NR15 2XE,"6,232.00",Yes
Communities & Local Government,DCLG,15/11/2013,Current (non AEF) Grants to Local Authorities,Localism,SOUTH NORTHAMPTONSHIRE DC,,,,,5000237875,Council Tax Freeze,NN12 7AE,"5,824.00",Yes
Communities & Local Government,DCLG,15/11/2013,Current (non AEF) Grants to Local Authorities,Localism,SOUTH OXFORDSHIRE DC,,,,212296766,5000237876,Council Tax Freeze,OX10 8HQ,"6,754.00",Yes
Communities & Local Government,DCLG,15/11/2013,Current (non AEF) Grants to Local Authorities,Localism,SOUTH RIBBLE BC,,Public Bodies,,,5000238003,Council Tax Freeze,PR5 1DH,"7,698.00",Yes
Communities & Local Government,DCLG,15/11/2013,Current (non AEF) Grants to Local Authorities,Localism,SOUTH SOMERSET DC,,,,239850811,5000237877,Council Tax Freeze,BA20 2DS,"9,125.00",Yes
Communities & Local Government,DCLG,15/11/2013,Current (non AEF) Grants to Local Authorities,Localism,SOUTH STAFFORDSHIRE DC,,,,210305155,5000237878,Council Tax Freeze,WV8 1PX,"3,782.00",Yes
Communities & Local Government,DCLG,15/11/2013,Current (non AEF) Grants to Local Authorities,Localism,SOUTH TYNESIDE COUNCIL,,,,345736438,5000238004,Council Tax Freeze,NE33 2RL,"57,929.00",Yes
Communities & Local Government,DCLG,15/11/2013,Current (non AEF) Grants to Local Authorities,Localism,SOUTH YORKSHIRE P A,,,,232618355,5000238121,Council Tax Freeze for Police and Crime Commission,S3 8LY,"126,894.00",Yes
Communities & Local Government,DCLG,15/11/2013,Current (non AEF) Grants to Local Authorities,Localism,SOUTH YORKSHIRE P A,,,,232618355,5000238122,Local Council Tax Support for Police Commissioners,S3 8LY,"956,046.00",Yes
Communities & Local Government,DCLG,15/11/2013,Current (non AEF) Grants to Local Authorities,Localism,SOUTHWARK LB,,,,,5000238005,Council Tax Freeze,SE1 2QH,"92,892.00",Yes
Communities & Local Government,DCLG,15/11/2013,Current (non AEF) Grants to Local Authorities,Localism,ST ALBANS CITY COUNCIL,,,,218692510,5000238006,Council Tax Freeze,AL1 3JE,"10,476.00",Yes
Communities & Local Government,DCLG,15/11/2013,Current (non AEF) Grants to Local Authorities,Localism,ST EDMUNDSBURY (HSG),,,,212503653,5000237879,Council Tax Freeze,IP33 3YS,"6,719.00",Yes
Communities & Local Government,DCLG,15/11/2013,Current (non AEF) Grants to Local Authorities,Localism,ST HELENS MBC,,,,,5000238007,Council Tax Freeze,WA10 1HP,"65,625.00",Yes
Communities & Local Government,DCLG,15/11/2013,Current (non AEF) Grants to Local Authorities,Localism,STAFFORD BC,,,,227476934,5000238008,Council Tax Freeze,ST16 3AQ,"6,946.00",Yes
Communities & Local Government,DCLG,15/11/2013,Current (non AEF) Grants to Local Authorities,Localism,STAFFORDSHIRE  FIRE & RESCUE SERV,,,,232600577,5000238067,Council Tax Freeze,ST15 0BS,"24,471.00",Yes
Communities & Local Government,DCLG,15/11/2013,Current (non AEF) Grants to Local Authorities,Localism,STAFFORDSHIRE COUNTY CNCL,,,,,5000238009,Council Tax Freeze,ST16 2LH,"298,616.00",Yes
Communities & Local Government,DCLG,15/11/2013,Current (non AEF) Grants to Local Authorities,Localism,STAFFORDSHIRE MOORLANDS DC,,,,232749775,5000237880,Council Tax Freeze,ST13 6HQ,"5,263.00",Yes
Communities & Local Government,DCLG,15/11/2013,Current (non AEF) Grants to Local Authorities,Localism,STAFFORDSHIRE POLICE AUTHORITY,,,,213450609,5000238123,Local Council Tax Support for Police Commissioners,ST16 2NF,"839,644.00",Yes
Communities & Local Government,DCLG,15/11/2013,Current (non AEF) Grants to Local Authorities,Localism,STAFFORDSHIRE POLICE AUTHORITY,,,,213450609,5000238124,Council Tax Freeze for Police and Crime Commission,ST16 2NF,"159,485.00",Yes
Communities & Local Government,DCLG,15/11/2013,Current (non AEF) Grants to Local Authorities,Localism,STAFFORDSHIRE POLICE AUTHORITY,,,,213450609,5000238125,Council Tax Freeze,ST16 2NF,"64,257.00",Yes
Communities & Local Government,DCLG,15/11/2013,Current (non AEF) Grants to Local Authorities,Localism,STEVENAGE BC,,,,236440186,5000238010,Council Tax Freeze,SG1 1HN,"5,483.00",Yes
Communities & Local Government,DCLG,15/11/2013,Current (non AEF) Grants to Local Authorities,Localism,STOKE ON TRENT CITY COUNCIL,,,,216037890,5000238011,Council Tax Freeze,ST4 1RJ,"84,653.00",Yes
Communities & Local Government,DCLG,15/11/2013,Current (non AEF) Grants to Local Authorities,Localism,STRATFORD ON AVON DC,,,,227473881,5000238012,Council Tax Freeze,CV37 6HX,"6,732.00",Yes
Communities & Local Government,DCLG,15/11/2013,Current (non AEF) Grants to Local Authorities,Localism,STROUD DC (HSG),,,,,5000237881,Council Tax Freeze,GL5 4UB,"8,142.00",Yes
Communities & Local Government,DCLG,15/11/2013,Current (non AEF) Grants to Local Authorities,Localism,SUFFOLK CC (SOCIAL CARE SERV) (H,,,,385614821,5000237882,Council Tax Freeze,IP4 1LH,"290,951.00",Yes
Communities & Local Government,DCLG,15/11/2013,Current (non AEF) Grants to Local Authorities,Localism,SUFFOLK COASTAL DC (HSG),,,,239933203,5000237883,Council Tax Freeze,IP12 1AU,"7,393.00",Yes
Communities & Local Government,DCLG,15/11/2013,Current (non AEF) Grants to Local Authorities,Localism,SUFFOLK POLICE AUTHORITY,,,,,5000238126,Council Tax Freeze,IP5 3QS,"43,072.00",Yes
Communities & Local Government,DCLG,15/11/2013,Current (non AEF) Grants to Local Authorities,Localism,SUFFOLK POLICE AUTHORITY,,,,,5000238127,Council Tax Freeze for Police and Crime Commission,IP5 3QS,"103,029.00",Yes
Communities & Local Government,DCLG,15/11/2013,Current (non AEF) Grants to Local Authorities,Localism,SUFFOLK POLICE AUTHORITY,,,,,5000238128,Local Council Tax Support for Police Commissioners,IP5 3QS,"487,524.00",Yes
Communities & Local Government,DCLG,15/11/2013,Current (non AEF) Grants to Local Authorities,Localism,SURREY POLICE AUTHORITY,,,,,5000238129,Local Council Tax Support for Police Commissioners,KT1 2EA,"673,682.00",Yes
Communities & Local Government,DCLG,15/11/2013,Current (non AEF) Grants to Local Authorities,Localism,SURREY POLICE AUTHORITY,,,,,5000238130,Council Tax Freeze for Police and Crime Commission,KT1 2EA,"246,083.00",Yes
Communities & Local Government,DCLG,15/11/2013,Current (non AEF) Grants to Local Authorities,Localism,SUTTON LB,,,,,5000238013,Council Tax Freeze,SM1 1EA,"82,717.00",Yes
Communities & Local Government,DCLG,15/11/2013,Current (non AEF) Grants to Local Authorities,Localism,SWALE BC,,,,239842768,5000238014,Council Tax Freeze,ME10 3HT,"7,808.00",Yes
Communities & Local Government,DCLG,15/11/2013,Current (non AEF) Grants to Local Authorities,Localism,SWINDON BC,,,,458639697,5000238015,Council Tax Freeze,SN1 2JH,"84,311.00",Yes
